Service Area,Dept,Expenses Type,Capital/Revenue,Detailed Expenses Type,Date,Amount,Supplier Name,Supplier ID
CS,FINANCE,"REPAIRS, ALTERATIONS & MTCE",Revenue,"REPS, ALTS & MTCE-BUILDINGS",13.Jan.17,548.21,T BROWN GROUP LTD,Invoice
CS,,"REPAIRS, ALTERATIONS & MTCE",Revenue,"REPS, ALTS & MTCE-BUILDINGS",13.Jan.17,1295,A-LIST WINDOW CLEANG LTD T/A ACS WINDOWS,Invoice
CS,,"REPAIRS, ALTERATIONS & MTCE",Revenue,"REPS, ALTS & MTCE-BUILDINGS",10.Jan.17,800,BESPOKE PLANS LTD,Invoice
CS,,SERVICES,Revenue,CONSULTANTS FEES,20.Jan.17,6500,REGIONAL,Invoice
CS,,SERVICES,Revenue,CONSULTANTS FEES,13.Jan.17,3200,QUATRO PUBLIC RELATIONS,Invoice
CS,,OTHER AGENCIES,Revenue,HEALTHWATCH CONTRACT,04.Jan.17,35911,WANDSWORTH CARE ALLIANCE,Invoice
CS,,PRINTING STAT & GEN OFFICE EXP,Revenue,PRINTING AND STATIONERY,27.Jan.17,72,KINGSFIELD COMPUTER PRODUCTS LTD,Invoice
CS,,PRINTING STAT & GEN OFFICE EXP,Revenue,PRINTING AND STATIONERY,27.Jan.17,162,KINGSFIELD COMPUTER PRODUCTS LTD,Invoice
CS,,PRINTING STAT & GEN OFFICE EXP,Revenue,PRINTING AND STATIONERY,27.Jan.17,69,KINGSFIELD COMPUTER PRODUCTS LTD,Invoice
CS,,PRINTING STAT & GEN OFFICE EXP,Revenue,PRINTING AND STATIONERY,27.Jan.17,250,KINGSFIELD COMPUTER PRODUCTS LTD,Invoice
CS,,PRINTING STAT & GEN OFFICE EXP,Revenue,PRINTING AND STATIONERY,25.Jan.17,892.41,ADARE SEC LIMITED,Invoice
CS,,COMMUNICATIONS & COMP,Revenue,COMMUNICATIONS - POSTAGE,12.Jan.17,1006.53,ROYAL MAIL,Invoice
CS,,COMMUNICATIONS & COMP,Revenue,COMMUNICATIONS - POSTAGE,24.Jan.17,1922.59,ROYAL MAIL,Invoice
CS,,COMMUNICATIONS & COMP,Revenue,COMMUNICATIONS - POSTAGE,24.Jan.17,4.06,ROYAL MAIL,Invoice
CS,,COMMUNICATIONS & COMP,Revenue,COMMUNICATIONS - POSTAGE,24.Jan.17,2002.83,ROYAL MAIL,Invoice
CS,,COMMUNICATIONS & COMP,Revenue,COMMUNICATIONS - POSTAGE,24.Jan.17,6.09,ROYAL MAIL,Invoice
CS,,COMMUNICATIONS & COMP,Revenue,COMMUNICATIONS - POSTAGE,31.Jan.17,503.09,ROYAL MAIL,Invoice
CS,,COMMUNICATIONS & COMP,Revenue,I.T. DEVELOPMENTS,25.Jan.17,1511.24,THE ELECTORAL  REFORM SERVICE,Invoice
CS,,"EQUIPMENT, FURNITURE & MATS",Revenue,FLOWERS,12.Jan.17,566,PATRICIA WONG,Invoice
CS,,"EQUIPMENT, FURNITURE & MATS",Revenue,FLOWERS,31.Jan.17,969,PATRICIA WONG,Invoice
CS,,COMMUNICATIONS & COMP,Revenue,I.T. EQUIPMENT & MAINTENANCE,24.Jan.17,15,CIVICA UK LTD,Invoice
CS,,MISC,Revenue,MISCELLANEOUS EXPENSES,19.Jan.17,1650,MEDIA ON DEMAND LTD,Invoice
CDC,,MISC,Revenue,MISCELLANEOUS EXPENSES,25.Jan.17,16014.19,THE COPYRIGHT LICENSING AGENCY LTD,Invoice
PH,,HEALTH,Revenue,GP LCS CONTRACTS,20.Jan.17,1250,BRIDGE LANE GROUP PRACTICE,Invoice
PH,,HEALTH,Revenue,GP LCS CONTRACTS,20.Jan.17,5845,BALHAM PARK SURGERY,Invoice
PH,,HEALTH,Revenue,GP LCS CONTRACTS,20.Jan.17,1606,CHATFIELD HEALTH CARE,Invoice
PH,,HEALTH,Revenue,GP LCS CONTRACTS,18.Jan.17,2027,THURLEIGH ROAD PRACTICE H85114,Invoice
PH,,HEALTH,Revenue,GP LCS CONTRACTS,20.Jan.17,4277,LAVENDER HILL GROUP PRACTICE H85069,Invoice
PH,,HEALTH,Revenue,GP LCS CONTRACTS,18.Jan.17,1187,QUEENSTOWN ROAD MEDICAL PRACTICE H85003,Invoice
PH,,HEALTH,Revenue,GP LCS CONTRACTS,18.Jan.17,1383,CARE UK CLINICAL SERVICES LTD,Invoice
PH,,HEALTH,Revenue,GP LCS CONTRACTS,18.Jan.17,2307,THE GREYSWOOD PRACTICE,Invoice
PH,,HEALTH,Revenue,GP LCS CONTRACTS,20.Jan.17,4561,PUTNEYMEAD GROUP MEDICAL PRACTICE H85012,Invoice
PH,,HEALTH,Revenue,GP LCS CONTRACTS,18.Jan.17,3654,WANDSWORTH MEDICAL CENTRE,Invoice
PH,,HEALTH,Revenue,GP LCS CONTRACTS,18.Jan.17,522,BATTERSEA RISE GROUP PRACTICE H85049,Invoice
PH,,HEALTH,Revenue,GP LCS CONTRACTS,18.Jan.17,425,DR K BEGG H85659,Invoice
PH,,HEALTH,Revenue,GP LCS CONTRACTS,20.Jan.17,2286,EARLSFIELD PRACTICE,Invoice
PH,,HEALTH,Revenue,GP LCS CONTRACTS,26.Jan.17,585,THE FALCON ROAD MEDICAL CENTRE H85002,Invoice
PH,,HEALTH,Revenue,GP LCS CONTRACTS,20.Jan.17,2469,BROCKLEBANK GROUP PRACTICE,Invoice
PH,,HEALTH,Revenue,GP LCS CONTRACTS,18.Jan.17,865,ELBOROUGH STREET SURGERY H85057,Invoice
PH,,HEALTH,Revenue,GP LCS CONTRACTS,19.Jan.17,1381,ST PAULS COTTAGE PRACTICE,Invoice
PH,,HEALTH,Revenue,GP LCS CONTRACTS,20.Jan.17,2879,HEATHBRIDGE PRACTICE,Invoice
PH,,HEALTH,Revenue,GP LCS CONTRACTS,23.Jan.17,1105,TUDOR LODGE HEALTH CENTRE H85682,Invoice
PH,,HEALTH,Revenue,GP LCS CONTRACTS,18.Jan.17,120,GRAFTON MEDICAL PARTNERS Y02423,Invoice
PH,,HEALTH,Revenue,GP CHLAMYDIA SCREENING LCS,26.Jan.17,248,THE FALCON ROAD MEDICAL CENTRE H85002,Invoice
PH,,HEALTH,Revenue,HIV RAPID TESTING PILOT,18.Jan.17,260,BEDFORD HILL FAMILY PRACTICE H85009,Invoice
PH,,HEALTH,Revenue,HIV RAPID TESTING PILOT,20.Jan.17,5,CHATFIELD HEALTH CARE,Invoice
PH,,HEALTH,Revenue,HIV RAPID TESTING PILOT,20.Jan.17,10,LAVENDER HILL GROUP PRACTICE H85069,Invoice
PH,,HEALTH,Revenue,HIV RAPID TESTING PILOT,18.Jan.17,20,QUEENSTOWN ROAD MEDICAL PRACTICE H85003,Invoice
PH,,HEALTH,Revenue,HIV RAPID TESTING PILOT,18.Jan.17,700,CARE UK CLINICAL SERVICES LTD,Invoice
PH,,HEALTH,Revenue,HIV RAPID TESTING PILOT,18.Jan.17,150,BATTERSEA RISE GROUP PRACTICE H85049,Invoice
PH,,HEALTH,Revenue,HIV RAPID TESTING PILOT,18.Jan.17,440,DR K BEGG H85659,Invoice
PH,,HEALTH,Revenue,HIV RAPID TESTING PILOT,18.Jan.17,160,SOUTHFIELDS GROUP PRACTICE H85007,Invoice
PH,,HEALTH,Revenue,HIV RAPID TESTING PILOT,18.Jan.17,410,THE OPEN DOOR SURGERY H85087,Invoice
PH,,HEALTH,Revenue,HIV RAPID TESTING PILOT,20.Jan.17,35,BOLINGBROKE MEDICAL CENTRE H85077,Invoice
PH,,HEALTH,Revenue,LOCALLY ENHANCED SERVICES,20.Jan.17,2087.94,BRIDGE LANE GROUP PRACTICE,Invoice
PH,,HEALTH,Revenue,LOCALLY ENHANCED SERVICES,20.Jan.17,2118.2,BALHAM PARK SURGERY,Invoice
PH,,HEALTH,Revenue,LOCALLY ENHANCED SERVICES,20.Jan.17,514.42,DR P ILVES T/A DANEBURY SURGERY H85067,Invoice
PH,,HEALTH,Revenue,LOCALLY ENHANCED SERVICES,18.Jan.17,2390.54,BEDFORD HILL FAMILY PRACTICE H85009,Invoice
PH,,HEALTH,Revenue,LOCALLY ENHANCED SERVICES,20.Jan.17,847.28,CHATFIELD HEALTH CARE,Invoice
PH,,HEALTH,Revenue,LOCALLY ENHANCED SERVICES,18.Jan.17,3540.42,THURLEIGH ROAD PRACTICE H85114,Invoice
PH,,HEALTH,Revenue,LOCALLY ENHANCED SERVICES,20.Jan.17,2208.98,LAVENDER HILL GROUP PRACTICE H85069,Invoice
PH,,HEALTH,Revenue,LOCALLY ENHANCED SERVICES,18.Jan.17,272.34,QUEENSTOWN ROAD MEDICAL PRACTICE H85003,Invoice
PH,,HEALTH,Revenue,LOCALLY ENHANCED SERVICES,19.Jan.17,2632.62,TRINITY MEDICAL CENTRE,Invoice
PH,,HEALTH,Revenue,LOCALLY ENHANCED SERVICES,18.Jan.17,786.76,CARE UK CLINICAL SERVICES LTD,Invoice
PH,,HEALTH,Revenue,LOCALLY ENHANCED SERVICES,18.Jan.17,1180.14,THE GREYSWOOD PRACTICE,Invoice
PH,,HEALTH,Revenue,LOCALLY ENHANCED SERVICES,20.Jan.17,1640.59,PUTNEYMEAD GROUP MEDICAL PRACTICE H85012,Invoice
PH,,HEALTH,Revenue,LOCALLY ENHANCED SERVICES,20.Jan.17,5113.94,PUTNEYMEAD GROUP MEDICAL PRACTICE H85012,Invoice
PH,,HEALTH,Revenue,LOCALLY ENHANCED SERVICES,18.Jan.17,2541.84,WANDSWORTH MEDICAL CENTRE,Invoice
PH,,HEALTH,Revenue,LOCALLY ENHANCED SERVICES,18.Jan.17,726.24,BATTERSEA RISE GROUP PRACTICE H85049,Invoice
PH,,HEALTH,Revenue,LOCALLY ENHANCED SERVICES,18.Jan.17,272.34,DR K BEGG H85659,Invoice
PH,,HEALTH,Revenue,LOCALLY ENHANCED SERVICES,20.Jan.17,3873.28,EARLSFIELD PRACTICE,Invoice
PH,,HEALTH,Revenue,LOCALLY ENHANCED SERVICES,18.Jan.17,1966.9,SOUTHFIELDS GROUP PRACTICE H85007,Invoice
PH,,HEALTH,Revenue,LOCALLY ENHANCED SERVICES,26.Jan.17,1361.7,THE FALCON ROAD MEDICAL CENTRE H85002,Invoice
PH,,HEALTH,Revenue,LOCALLY ENHANCED SERVICES,18.Jan.17,907.8,TOOTING SOUTH MEDICAL CENTRE,Invoice
PH,,HEALTH,Revenue,LOCALLY ENHANCED SERVICES,20.Jan.17,1603.78,BROCKLEBANK GROUP PRACTICE,Invoice
PH,,HEALTH,Revenue,LOCALLY ENHANCED SERVICES,19.Jan.17,1845.86,ST PAULS COTTAGE PRACTICE,Invoice
PH,,HEALTH,Revenue,LOCALLY ENHANCED SERVICES,18.Jan.17,438.17,THE ROEHAMPTON SURGERY,Invoice
PH,,HEALTH,Revenue,LOCALLY ENHANCED SERVICES,18.Jan.17,1573.52,THE ROEHAMPTON SURGERY,Invoice
PH,,HEALTH,Revenue,LOCALLY ENHANCED SERVICES,20.Jan.17,4266.66,HEATHBRIDGE PRACTICE,Invoice
PH,,HEALTH,Revenue,LOCALLY ENHANCED SERVICES,18.Jan.17,2148.46,THE OPEN DOOR SURGERY H85087,Invoice
PH,,HEALTH,Revenue,LOCALLY ENHANCED SERVICES,20.Jan.17,877.54,BOLINGBROKE MEDICAL CENTRE H85077,Invoice
PH,,HEALTH,Revenue,LOCALLY ENHANCED SERVICES,23.Jan.17,847.28,TUDOR LODGE HEALTH CENTRE H85682,Invoice
PH,,HEALTH,Revenue,LOCALLY ENHANCED SERVICES,18.Jan.17,4085.1,GRAFTON MEDICAL PARTNERS Y02423,Invoice
PH,,HEALTH,Revenue,LOCALLY ENHANCED SERVICES,18.Jan.17,574.94,STREATHAM PARK SURGERY H85052,Invoice
PH,,HEALTH,Revenue,EY OBESITY PREVENT/TREATMENT,25.Jan.17,1263.23,ENABLE LEISURE AND CULTURE,Invoice
PH,,HEALTH,Revenue,PRESCRIBING SERVICES,18.Jan.17,759.13,PEARL CHEMIST LTD,Invoice
PH,,HEALTH,Revenue,PRESCRIBING SERVICES,18.Jan.17,62,PEARL CHEMIST LTD,Invoice
PH,,HEALTH,Revenue,PRESCRIBING SERVICES,18.Jan.17,1101.85,SALASJI LTD FG443 T/A DUMLERS PHARMACY,Invoice
PH,,HEALTH,Revenue,PRESCRIBING SERVICES,18.Jan.17,86,SALASJI LTD FG443 T/A DUMLERS PHARMACY,Invoice
PH,,HEALTH,Revenue,PRESCRIBING SERVICES,18.Jan.17,466.99,BARKERS CHEMIST LTD,Invoice
PH,,HEALTH,Revenue,PRESCRIBING SERVICES,18.Jan.17,48,BARKERS CHEMIST LTD,Invoice
PH,,HEALTH,Revenue,PRESCRIBING SERVICES,18.Jan.17,48,PATEL JG & KG LLP T/A AURA PHARMAC FV302,Invoice
PH,,HEALTH,Revenue,PRESCRIBING SERVICES,18.Jan.17,694.02,PATEL JG & KG LLP T/A AURA PHARMAC FV302,Invoice
PH,,HEALTH,Revenue,PRESCRIBING SERVICES,18.Jan.17,66,FAZAL PHARMACY,Invoice
PH,,HEALTH,Revenue,PRESCRIBING SERVICES,18.Jan.17,657.68,FAZAL PHARMACY,Invoice
PH,,HEALTH,Revenue,PRESCRIBING SERVICES,18.Jan.17,90,PEARL CHEMIST LTD FDV93 T/A LORDS PHARMA,Invoice
PH,,HEALTH,Revenue,PRESCRIBING SERVICES,18.Jan.17,1098.51,PEARL CHEMIST LTD FDV93 T/A LORDS PHARMA,Invoice
PH,,HEALTH,Revenue,GP LCS CONTRACTS,20.Jan.17,1890,BRIDGE LANE GROUP PRACTICE,Invoice
PH,,HEALTH,Revenue,GP LCS CONTRACTS,18.Jan.17,420,BEDFORD HILL FAMILY PRACTICE H85009,Invoice
PH,,HEALTH,Revenue,GP LCS CONTRACTS,20.Jan.17,350,CHATFIELD HEALTH CARE,Invoice
PH,,HEALTH,Revenue,GP LCS CONTRACTS,18.Jan.17,140,QUEENSTOWN ROAD MEDICAL PRACTICE H85003,Invoice
PH,,HEALTH,Revenue,GP LCS CONTRACTS,18.Jan.17,210,CARE UK CLINICAL SERVICES LTD,Invoice
PH,,HEALTH,Revenue,GP LCS CONTRACTS,18.Jan.17,210,THE GREYSWOOD PRACTICE,Invoice
PH,,HEALTH,Revenue,GP LCS CONTRACTS,20.Jan.17,560,PUTNEYMEAD GROUP MEDICAL PRACTICE H85012,Invoice
PH,,HEALTH,Revenue,GP LCS CONTRACTS,18.Jan.17,420,WANDSWORTH MEDICAL CENTRE,Invoice
PH,,HEALTH,Revenue,GP LCS CONTRACTS,18.Jan.17,210,DR K BEGG H85659,Invoice
PH,,HEALTH,Revenue,GP LCS CONTRACTS,20.Jan.17,210,EARLSFIELD PRACTICE,Invoice
PH,,HEALTH,Revenue,GP LCS CONTRACTS,18.Jan.17,210,SOUTHFIELDS GROUP PRACTICE H85007,Invoice
PH,,HEALTH,Revenue,GP LCS CONTRACTS,26.Jan.17,42,THE FALCON ROAD MEDICAL CENTRE H85002,Invoice
PH,,HEALTH,Revenue,GP LCS CONTRACTS,18.Jan.17,210,TOOTING SOUTH MEDICAL CENTRE,Invoice
PH,,HEALTH,Revenue,GP LCS CONTRACTS,18.Jan.17,70,ELBOROUGH STREET SURGERY H85057,Invoice
PH,,HEALTH,Revenue,GP LCS CONTRACTS,20.Jan.17,140,BOLINGBROKE MEDICAL CENTRE H85077,Invoice
PH,,HEALTH,Revenue,GP LCS CONTRACTS,23.Jan.17,490,TUDOR LODGE HEALTH CENTRE H85682,Invoice
PH,,HEALTH,Revenue,GP LCS CONTRACTS,18.Jan.17,140,GRAFTON MEDICAL PARTNERS Y02423,Invoice
PH,,HEALTH,Revenue,GP LCS CONTRACTS,18.Jan.17,70,STREATHAM PARK SURGERY H85052,Invoice
PH,,HEALTH,Revenue,SCREENING IN COMMUNTIES,09.Jan.17,16797,WILLIAMS & ASSOCIATES,Invoice
PH,,HEALTH,Revenue,AWARENESS TRAINING,12.Jan.17,700,ISLINGTON COUNCIL,Invoice
PH,,VOL ASS,Revenue,WANDSWORTH VICTIM SUPPORT,19.Jan.17,10000,VICTIM SUPPORT,Invoice
NGF HS,,SERVICES,Revenue,HIPS,30.Jan.17,540,GORDON BROWN,Invoice
NGF CS,,PRIVATE,Revenue,REFUSE COLLECTN & PEST CONTROL,09.Jan.17,1202.68,SITA UK LTD,Invoice
NGF CS,,PRIVATE,Revenue,REFUSE COLLECTN & PEST CONTROL,09.Jan.17,690.92,SITA UK LTD,Invoice
NGF CS,,PRIVATE,Revenue,REFUSE COLLECTN & PEST CONTROL,09.Jan.17,690.92,SITA UK LTD,Invoice
NGF CS,FINANCE,PRIVATE,Revenue,GENERAL CONTRACT WORK,04.Jan.17,432,MR R BAKER,Invoice
NGF CS,,PRIVATE,Revenue,REFUSE COLLECTN & PEST CONTROL,09.Jan.17,690.83,SITA UK LTD,Invoice
NGF CS,,PRIVATE,Revenue,REFUSE COLLECTN & PEST CONTROL,09.Jan.17,690.83,SITA UK LTD,Invoice
NGF CS,,CLEANING & DOMESTIC SUPPLIES,Revenue,CLEANING CONTRACT,03.Jan.17,2105.35,WESSEX PRODUCTS (LEASING) LTD,Invoice
NGF CS,,CLEANING & DOMESTIC SUPPLIES,Revenue,WINDOW CLEANING,23.Jan.17,5596.5,PARKERS CLEANING CONTRACTORS LTD,Invoice
NGF CS,FINANCE,"REPAIRS, ALTERATIONS & MTCE",Revenue,"REPS, ALTS & MTCE-BUILDINGS",25.Jan.17,194.03,DEBA UK LTD,Invoice
NGF CS,FINANCE,"REPAIRS, ALTERATIONS & MTCE",Revenue,"REPS, ALTS & MTCE-BUILDINGS",25.Jan.17,194.03,DEBA UK LTD,Invoice
NGF CS,,PRINTING STAT & GEN OFFICE EXP,Revenue,PRINTING AND STATIONERY,10.Jan.17,72.7,DANWOOD GROUP LTD,Invoice
NGF CS,,PRINTING STAT & GEN OFFICE EXP,Revenue,PRINTING AND STATIONERY,10.Jan.17,183.42,DANWOOD GROUP LTD,Invoice
NGF CS,,PRINTING STAT & GEN OFFICE EXP,Revenue,PRINTING AND STATIONERY,10.Jan.17,183.42,DANWOOD GROUP LTD,Invoice
NGF CS,,PRINTING STAT & GEN OFFICE EXP,Revenue,PRINTING AND STATIONERY,10.Jan.17,307.5,DANWOOD GROUP LTD,Invoice
NGF CS,,PRINTING STAT & GEN OFFICE EXP,Revenue,PRINTING AND STATIONERY,10.Jan.17,307.5,DANWOOD GROUP LTD,Invoice
NGF CS,,PRINTING STAT & GEN OFFICE EXP,Revenue,PRINTING AND STATIONERY,10.Jan.17,307.5,DANWOOD GROUP LTD,Invoice
NGF CS,,COMMUNICATIONS & COMP,Revenue,I.T. EQUIPMENT & MAINTENANCE,11.Jan.17,853.42,FATHOM,Invoice
NGF CS,,OTHER AGENCIES,Revenue,DISBURSEMENTS,13.Jan.17,19469.9,ASHFORDS,Invoice
NGF CS,,OTHER AGENCIES,Revenue,DISBURSEMENTS,13.Jan.17,1587.94,ASHFORDS,Invoice
NGF CS,,OTHER AGENCIES,Revenue,DISBURSEMENTS,16.Jan.17,1914,ASHFORDS,Invoice
NGF CS,,OTHER AGENCIES,Revenue,DISBURSEMENTS,16.Jan.17,4250,ASHFORDS,Invoice
NGF CS,,OTHER AGENCIES,Revenue,DISBURSEMENTS,23.Jan.17,2790,ASHFORDS,Invoice
NGF CS,,OTHER AGENCIES,Revenue,DISBURSEMENTS,23.Jan.17,63,ASHFORDS,Invoice
NGF CS,,OTHER AGENCIES,Revenue,DISBURSEMENTS,10.Jan.17,612.36,BEVERLEY F NUNNERY & CO,Invoice
NGF CS,,OTHER AGENCIES,Revenue,DISBURSEMENTS,11.Jan.17,10284.66,SHARPE PRITCHARD LLP,Invoice
NGF CS,,OTHER AGENCIES,Revenue,DISBURSEMENTS,11.Jan.17,121,SHARPE PRITCHARD LLP,Invoice
NGF CS,,OTHER AGENCIES,Revenue,DISBURSEMENTS,17.Jan.17,875,CORNERSTONE BACS,Invoice
NGF CS,,OTHER AGENCIES,Revenue,DISBURSEMENTS,31.Jan.17,832.25,EXPERT IN MIND,Invoice
NGF CS,,OTHER AGENCIES,Revenue,DISBURSEMENTS,10.Jan.17,800,4 BRICK COURT MANAGEMENT LIMITED,Invoice
NGF CS,,OTHER AGENCIES,Revenue,DISBURSEMENTS,10.Jan.17,425,4 BRICK COURT MANAGEMENT LIMITED,Invoice
NGF CS,,OTHER AGENCIES,Revenue,DISBURSEMENTS,10.Jan.17,800,4 BRICK COURT MANAGEMENT LIMITED,Invoice
NGF CS,,OTHER AGENCIES,Revenue,DISBURSEMENTS,10.Jan.17,500,4 BRICK COURT MANAGEMENT LIMITED,Invoice
NGF CS,,OTHER AGENCIES,Revenue,DISBURSEMENTS,10.Jan.17,800,4 BRICK COURT MANAGEMENT LIMITED,Invoice
NGF CS,,OTHER AGENCIES,Revenue,DISBURSEMENTS,18.Jan.17,850,4 BRICK COURT MANAGEMENT LIMITED,Invoice
NGF CS,,OTHER AGENCIES,Revenue,DISBURSEMENTS,18.Jan.17,620,4 BRICK COURT MANAGEMENT LIMITED,Invoice
NGF CS,,OTHER AGENCIES,Revenue,DISBURSEMENTS,18.Jan.17,500,4 BRICK COURT MANAGEMENT LIMITED,Invoice
NGF CS,,OTHER AGENCIES,Revenue,DISBURSEMENTS,18.Jan.17,500,4 BRICK COURT MANAGEMENT LIMITED,Invoice
NGF CS,,OTHER AGENCIES,Revenue,DISBURSEMENTS,18.Jan.17,2650,4 BRICK COURT MANAGEMENT LIMITED,Invoice
NGF CS,,OTHER AGENCIES,Revenue,DISBURSEMENTS,18.Jan.17,890,4 BRICK COURT MANAGEMENT LIMITED,Invoice
NGF CS,,OTHER AGENCIES,Revenue,DISBURSEMENTS,18.Jan.17,500,4 BRICK COURT MANAGEMENT LIMITED,Invoice
NGF CS,,OTHER AGENCIES,Revenue,DISBURSEMENTS,18.Jan.17,800,4 BRICK COURT MANAGEMENT LIMITED,Invoice
NGF CS,,OTHER AGENCIES,Revenue,DISBURSEMENTS,18.Jan.17,3300,4 BRICK COURT MANAGEMENT LIMITED,Invoice
NGF CS,,OTHER AGENCIES,Revenue,DISBURSEMENTS,18.Jan.17,1300,4 BRICK COURT MANAGEMENT LIMITED,Invoice
NGF CS,,OTHER AGENCIES,Revenue,DISBURSEMENTS,18.Jan.17,600,4 BRICK COURT MANAGEMENT LIMITED,Invoice
NGF CS,,OTHER AGENCIES,Revenue,DISBURSEMENTS,17.Jan.17,500,4 BRICK COURT MANAGEMENT LIMITED,Invoice
NGF CS,,OTHER AGENCIES,Revenue,DISBURSEMENTS,19.Jan.17,1150,4 BRICK COURT MANAGEMENT LIMITED,Invoice
NGF CS,,OTHER AGENCIES,Revenue,DISBURSEMENTS,19.Jan.17,500,4 BRICK COURT MANAGEMENT LIMITED,Invoice
NGF CS,,OTHER AGENCIES,Revenue,DISBURSEMENTS,19.Jan.17,500,4 BRICK COURT MANAGEMENT LIMITED,Invoice
NGF CS,,OTHER AGENCIES,Revenue,DISBURSEMENTS,23.Jan.17,500,4 BRICK COURT MANAGEMENT LIMITED,Invoice
NGF CS,,OTHER AGENCIES,Revenue,DISBURSEMENTS,18.Jan.17,582.5,DR P MAGGS CONSULTANT PSYCHOLOGIST,Invoice
NGF CS,,OTHER AGENCIES,Revenue,DISBURSEMENTS,31.Jan.17,1250,11 KBW LTD,Invoice
NGF CS,,OTHER AGENCIES,Revenue,DISBURSEMENTS,17.Jan.17,327,JORDANS PROPERTY SERVICES,Invoice
NGF CS,,OTHER AGENCIES,Revenue,DISBURSEMENTS,17.Jan.17,194.81,JORDANS PROPERTY SERVICES,Invoice
NGF CS,,OTHER AGENCIES,Revenue,DISBURSEMENTS,10.Jan.17,1000,FIELD COURT CHAMBERS,Invoice
NGF CS,,OTHER AGENCIES,Revenue,DISBURSEMENTS,11.Jan.17,450,FIELD COURT CHAMBERS,Invoice
NGF CS,,OTHER AGENCIES,Revenue,DISBURSEMENTS,23.Jan.17,465,FIELD COURT CHAMBERS,Invoice
NGF CS,,OTHER AGENCIES,Revenue,DISBURSEMENTS,25.Jan.17,725,FIELD COURT CHAMBERS,Invoice
NGF CS,,OTHER AGENCIES,Revenue,DISBURSEMENTS,25.Jan.17,1000,FIELD COURT CHAMBERS,Invoice
NGF CS,,OTHER AGENCIES,Revenue,DISBURSEMENTS,25.Jan.17,425,FIELD COURT CHAMBERS,Invoice
NGF CS,,OTHER AGENCIES,Revenue,DISBURSEMENTS,25.Jan.17,725,FIELD COURT CHAMBERS,Invoice
NGF CS,,OTHER AGENCIES,Revenue,DISBURSEMENTS,19.Jan.17,880,LEXTOX,Invoice
NGF CS,,OTHER AGENCIES,Revenue,DISBURSEMENTS,17.Jan.17,516.53,DR MARTIN LOCK,Invoice
NGF CS,,OTHER AGENCIES,Revenue,DISBURSEMENTS,11.Jan.17,800,1 GARDEN COURT CHAMBERS,Invoice
NGF CS,,OTHER AGENCIES,Revenue,DISBURSEMENTS,10.Jan.17,633.33,1 GARDEN COURT CHAMBERS,Invoice
NGF CS,,OTHER AGENCIES,Revenue,DISBURSEMENTS,11.Jan.17,600,1 GARDEN COURT CHAMBERS,Invoice
NGF CS,,OTHER AGENCIES,Revenue,DISBURSEMENTS,18.Jan.17,585,1 GARDEN COURT CHAMBERS,Invoice
NGF CS,,OTHER AGENCIES,Revenue,DISBURSEMENTS,17.Jan.17,1000,1 GARDEN COURT CHAMBERS,Invoice
NGF CS,,OTHER AGENCIES,Revenue,DISBURSEMENTS,17.Jan.17,500,1 GARDEN COURT CHAMBERS,Invoice
NGF CS,,OTHER AGENCIES,Revenue,DISBURSEMENTS,19.Jan.17,500,1 GARDEN COURT CHAMBERS,Invoice
NGF CS,,OTHER AGENCIES,Revenue,DISBURSEMENTS,19.Jan.17,566.67,1 GARDEN COURT CHAMBERS,Invoice
NGF CS,,OTHER AGENCIES,Revenue,DISBURSEMENTS,25.Jan.17,585,1 GARDEN COURT CHAMBERS,Invoice
NGF CS,,OTHER AGENCIES,Revenue,DISBURSEMENTS,31.Jan.17,500,1 GARDEN COURT CHAMBERS,Invoice
NGF CS,,OTHER AGENCIES,Revenue,DISBURSEMENTS,31.Jan.17,600,1 GARDEN COURT CHAMBERS,Invoice
NGF CS,,OTHER AGENCIES,Revenue,DISBURSEMENTS,10.Jan.17,500,FOURTEEN,Invoice
NGF CS,,OTHER AGENCIES,Revenue,DISBURSEMENTS,17.Jan.17,600,FOURTEEN,Invoice
NGF CS,,OTHER AGENCIES,Revenue,DISBURSEMENTS,17.Jan.17,1000,FOURTEEN,Invoice
NGF CS,,OTHER AGENCIES,Revenue,DISBURSEMENTS,19.Jan.17,650,FOURTEEN,Invoice
NGF CS,,OTHER AGENCIES,Revenue,DISBURSEMENTS,25.Jan.17,850,FOURTEEN,Invoice
NGF CS,,OTHER AGENCIES,Revenue,DISBURSEMENTS,25.Jan.17,775,FOURTEEN,Invoice
NGF CS,,OTHER AGENCIES,Revenue,DISBURSEMENTS,31.Jan.17,840,FOURTEEN,Invoice
NGF CS,,OTHER AGENCIES,Revenue,DISBURSEMENTS,31.Jan.17,2890,FOURTEEN,Invoice
NGF CS,,OTHER AGENCIES,Revenue,DISBURSEMENTS,31.Jan.17,450,FOURTEEN,Invoice
NGF CS,,OTHER AGENCIES,Revenue,DISBURSEMENTS,31.Jan.17,500,FOURTEEN,Invoice
NGF CS,,OTHER AGENCIES,Revenue,DISBURSEMENTS,31.Jan.17,500,FOURTEEN,Invoice
NGF CS,,OTHER AGENCIES,Revenue,DISBURSEMENTS,25.Jan.17,432,DR SUMI RATNAM,Invoice
NGF CS,,OTHER AGENCIES,Revenue,DISBURSEMENTS,19.Jan.17,810,DR RODGER KENNEDY,Invoice
NGF CS,,OTHER AGENCIES,Revenue,DISBURSEMENTS,10.Jan.17,480,CANSFORD LABORATORIES LTD,Invoice
NGF CS,,OTHER AGENCIES,Revenue,DISBURSEMENTS,10.Jan.17,525,36 BEDFORD ROW,Invoice
NGF CS,,OTHER AGENCIES,Revenue,DISBURSEMENTS,17.Jan.17,444.6,CARSTAIRS PSYCHOLOGICAL ASSOCIATES LTD,Invoice
NGF CS,,OTHER AGENCIES,Revenue,DISBURSEMENTS,19.Jan.17,1045,DR JOANNA SALES,Invoice
NGF CS,,OTHER AGENCIES,Revenue,DISBURSEMENTS,23.Jan.17,1360,DRYSTONE CHAMBERS,Invoice
NGF CS,,OTHER AGENCIES,Revenue,DISBURSEMENTS,10.Jan.17,718,NEW COURT CHAMBERS,Invoice
NGF CS,,OTHER AGENCIES,Revenue,DISBURSEMENTS,10.Jan.17,800,NEW COURT CHAMBERS,Invoice
NGF CS,,OTHER AGENCIES,Revenue,DISBURSEMENTS,10.Jan.17,500,NEW COURT CHAMBERS,Invoice
NGF CS,,PRIVATE,Revenue,CONTRACT 7 - VNEB LEGAL,25.Jan.17,1169.5,WINCKWORTH SHERWOOD LLP,Invoice
NGF CS,,PRIVATE,Revenue,CONTRACT 4- LITIGATION,23.Jan.17,12346.42,ASHFORDS,Invoice
NGF CS,,PRIVATE,Revenue,CONTRACT 4- LITIGATION,23.Jan.17,18148.33,ASHFORDS,Invoice
NGF CS,,PRIVATE,Revenue,CONTRACT 4- LITIGATION,13.Jan.17,9585.7,SHARPE PRITCHARD LLP,Invoice
NGF CS,,PRIVATE,Revenue,"CONTRACT 6- HWYS, PLAN ETC",19.Jan.17,16620.19,ASHFORDS,Invoice
NGF CS,,PRIVATE,Revenue,"CONTRACT 6- HWYS, PLAN ETC",25.Jan.17,15962.25,ASHFORDS,Invoice
NGF CS,,PRIVATE,Revenue,"CONTRACT 6- HWYS, PLAN ETC",09.Jan.17,2200,A S B LAW,Invoice
NGF CS,,PRIVATE,Revenue,"CONTRACT 6- HWYS, PLAN ETC",09.Jan.17,19360,SHARPE PRITCHARD LLP,Invoice
NGF CS,,PRIVATE,Revenue,LOT 1 - LLORD SERVS PROP MGMT,12.Jan.17,10868.4,LAMBERT SMITH HAMPTON,Invoice
NGF CS,,PRIVATE,Revenue,LOT 1 - LLORD SERVS PROP MGMT,12.Jan.17,595,LAMBERT SMITH HAMPTON,Invoice
NGF CS,,PRIVATE,Revenue,LOT 1 - LLORD SERVS PROP MGMT,12.Jan.17,14158.52,LAMBERT SMITH HAMPTON,Invoice
NGF CS,,PRIVATE,Revenue,LOT 1 - LLORD SERVS PROP MGMT,12.Jan.17,9490.29,LAMBERT SMITH HAMPTON,Invoice
NGF CS,,PRIVATE,Revenue,LOT 2 - GEN VALUATIONS,12.Jan.17,1750,LAMBERT SMITH HAMPTON,Invoice
NGF CS,,PRIVATE,Revenue,LOT 2 - GEN VALUATIONS,12.Jan.17,1055.37,LAMBERT SMITH HAMPTON,Invoice
NGF CS,,PRINTING STAT & GEN OFFICE EXP,Revenue,OUTWORK - LITHO,13.Jan.17,821.22,KALL KWIK,Invoice
NGF CS,,PRINTING STAT & GEN OFFICE EXP,Revenue,OUTWORK - LITHO,13.Jan.17,1170.27,KALL KWIK,Invoice
NGF CS,,PRINTING STAT & GEN OFFICE EXP,Revenue,OUTWORK - LITHO,13.Jan.17,1060,SLS PRINT,Invoice
NGF CS,,PRINTING STAT & GEN OFFICE EXP,Revenue,OUTWORK - EXTERN NON FRAMEWORK,13.Jan.17,516.95,MARLER HALEY LIMITED,Invoice
NGF CS,,PRINTING STAT & GEN OFFICE EXP,Revenue,URGENT PRINT CONTRACT,13.Jan.17,1553.75,KALL KWIK,Invoice
NGF CS,,MISC,Revenue,MISCELLANEOUS EXPENSES,13.Jan.17,873.9,LONDON LETTERBOX MARKETING,Invoice
NGF CDC,,PRINTING STAT & GEN OFFICE EXP,Revenue,PUBLICITY,12.Jan.17,649,DOTMAILER LTD,Invoice
NGF CDC,,PRINTING STAT & GEN OFFICE EXP,Revenue,PUBLICITY,12.Jan.17,649,DOTMAILER LTD,Invoice
NGF CS,,INDIRECT,Revenue,IN-SERVICE TRAINING-SLA,25.Jan.17,1050,FIONNUALA MULLIN & ASSOCIATES,Invoice
NGF CS,,INDIRECT,Revenue,IN-SERVICE TRAINING-SLA,18.Jan.17,110,THE RAPID RESULTS COLLEGE LTD,Invoice
NGF CS,,INDIRECT,Revenue,IN-SERVICE TRAINING-SLA,18.Jan.17,1345.5,THE RAPID RESULTS COLLEGE LTD,Invoice
NGF CS,,INDIRECT,Revenue,IN-SERVICE TRAINING-SLA,18.Jan.17,740,JUST IT TRAINING LTD,Invoice
NGF CS,,INDIRECT,Revenue,HEALTH CARE,04.Jan.17,142.58,BUPA INSURANCE LIMITED,Invoice
NGF CS,,INDIRECT,Revenue,HEALTH CARE,04.Jan.17,1500.78,BUPA INSURANCE LIMITED,Invoice
NGF CS,,INDIRECT,Revenue,CHILDCARE VOUCHERS,18.Jan.17,616.95,COMPUTERSHARE VOUCHER SERVICES,Invoice
NGF CS,,INDIRECT,Revenue,TRAINING - APPROVED QUALS,25.Jan.17,990,ELITE TRAINING & CONSULTANCY LTD,Invoice
NGF CS,,PRINTING STAT & GEN OFFICE EXP,Revenue,PRINTING AND STATIONERY,10.Jan.17,217.35,DANWOOD GROUP LTD,Invoice
NGF CS,,PRINTING STAT & GEN OFFICE EXP,Revenue,PRINTING AND STATIONERY,10.Jan.17,366.84,DANWOOD GROUP LTD,Invoice
NGF CS,,PRINTING STAT & GEN OFFICE EXP,Revenue,PRINTING AND STATIONERY,10.Jan.17,366.84,DANWOOD GROUP LTD,Invoice
NGF CS,,PRINTING STAT & GEN OFFICE EXP,Revenue,PRINTING AND STATIONERY,10.Jan.17,366.84,DANWOOD GROUP LTD,Invoice
NGF CS,,PRINTING STAT & GEN OFFICE EXP,Revenue,PRINTING AND STATIONERY,10.Jan.17,461.25,DANWOOD GROUP LTD,Invoice
NGF CS,ADMINISTRATION,SERVICES,Revenue,LEGAL & COURT COSTS,12.Jan.17,750,Ralli Solicitors,Invoice
NGF CS,,SERVICES,Revenue,OHS SESSIONAL DOCTOR,25.Jan.17,4083.12,HJM ASSOCIATES,Invoice
NGF CS,,MISC,Revenue,MISCELLANEOUS EXPENSES,12.Jan.17,1200,LEE HECHT HARRISON PENNA LTD,Invoice
NGF CS,,PRIVATE,Revenue,GENERAL CONTRACT WORK,25.Jan.17,1200,ROYAL BOROUGH OF KINGSTON-UPON-THAMES,Invoice
NGF CS,,PRIVATE,Revenue,GENERAL CONTRACT WORK,09.Jan.17,3200,GATENBY SANDERSON LTD,Invoice
NGF CS,,INTERNAL RECHARGES,Revenue,RECHARGE - OCCUPATIONAL HEALTH,23.Jan.17,728.77,MEDISAVE (UK) LTD,Invoice
NGF CS,FINANCE,DIRECT2,Revenue,CAP COST-PENSION FUND BENEFITS,09.Jan.17,28569.11,WANDSWORTH COUNCIL PENSION FUND,Invoice
NGF CDC,,MISC,Revenue,MISCELLANEOUS EXPENSES,13.Jan.17,4150,DOWNS FLOORING LTD,Invoice
NGF CDC,,MISC,Revenue,MISCELLANEOUS EXPENSES,13.Jan.17,1000,DOWNS FLOORING LTD,Invoice
NGF CS,,COMMUNICATIONS & COMP,Revenue,I.T. EQUIPMENT & MAINTENANCE,18.Jan.17,763,ACS LTD,Invoice
NGF CS,,COMMUNICATIONS & COMP,Revenue,I.T. EQUIPMENT & MAINTENANCE,18.Jan.17,9.95,ACS LTD,Invoice
NGF CS,,"EQUIPMENT, FURNITURE & MATS",Revenue,ADAPTATIONS - COUNCIL,30.Jan.17,5973.5,SUNA COMMUNICATION LTD,Invoice
NGF CS,,"EQUIPMENT, FURNITURE & MATS",Revenue,CCTV CONTROL ROOM DEVELOPMENT,13.Jan.17,1983.92,VIRGIN MEDIA BUSINESS,Invoice
NGF CS,,"EQUIPMENT, FURNITURE & MATS",Revenue,CCTV CONTROL ROOM DEVELOPMENT,13.Jan.17,119035.04,VIRGIN MEDIA BUSINESS,Invoice
NGF CS,,"EQUIPMENT, FURNITURE & MATS",Revenue,CCTV CONTROL ROOM DEVELOPMENT,13.Jan.17,5039.69,VIRGIN MEDIA BUSINESS,Invoice
NGF CS,,"EQUIPMENT, FURNITURE & MATS",Revenue,CCTV CONTROL ROOM DEVELOPMENT,13.Jan.17,5300.42,VIRGIN MEDIA BUSINESS,Invoice
NGF CS,,"EQUIPMENT, FURNITURE & MATS",Revenue,CCTV CONTROL ROOM DEVELOPMENT,13.Jan.17,5082.25,VIRGIN MEDIA BUSINESS,Invoice
NGF CS,,"EQUIPMENT, FURNITURE & MATS",Revenue,CCTV FIBRE RENTALS,30.Jan.17,615,VODAFONE CORPORATE,Invoice
NGF CS,,"EQUIPMENT, FURNITURE & MATS",Revenue,CONSUMABLES,30.Jan.17,5061.52,BT PAYMENT SERVICES LTD,Invoice
NGF CS,,"EQUIPMENT, FURNITURE & MATS",Revenue,CONSUMABLES,30.Jan.17,13680.25,BT PAYMENT SERVICES LTD,Invoice
NGF CS,,"EQUIPMENT, FURNITURE & MATS",Revenue,"EQUIPMENT, FURNITURE & MATS",27.Jan.17,2500,TRANSWORLDCOM LIMITED,Invoice
NGF CS,,"EQUIPMENT, FURNITURE & MATS",Revenue,"EQUIPMENT, FURNITURE & MATS",11.Jan.17,50.5,COMMS EXPRESS LTD,Invoice
NGF CS,,"EQUIPMENT, FURNITURE & MATS",Revenue,"EQUIPMENT, FURNITURE & MATS",11.Jan.17,65.46,COMMS EXPRESS LTD,Invoice
NGF CS,,"EQUIPMENT, FURNITURE & MATS",Revenue,"EQUIPMENT, FURNITURE & MATS",11.Jan.17,64.86,COMMS EXPRESS LTD,Invoice
NGF CS,,"EQUIPMENT, FURNITURE & MATS",Revenue,"EQUIPMENT, FURNITURE & MATS",11.Jan.17,59.22,COMMS EXPRESS LTD,Invoice
NGF CS,,"EQUIPMENT, FURNITURE & MATS",Revenue,"EQUIPMENT, FURNITURE & MATS",11.Jan.17,63.48,COMMS EXPRESS LTD,Invoice
NGF CS,,"EQUIPMENT, FURNITURE & MATS",Revenue,"EQUIPMENT, FURNITURE & MATS",11.Jan.17,40.56,COMMS EXPRESS LTD,Invoice
NGF CS,,"EQUIPMENT, FURNITURE & MATS",Revenue,"EQUIPMENT, FURNITURE & MATS",11.Jan.17,59.88,COMMS EXPRESS LTD,Invoice
NGF CS,,"EQUIPMENT, FURNITURE & MATS",Revenue,"EQUIPMENT, FURNITURE & MATS",11.Jan.17,31.86,COMMS EXPRESS LTD,Invoice
NGF CS,,"EQUIPMENT, FURNITURE & MATS",Revenue,"EQUIPMENT, FURNITURE & MATS",11.Jan.17,60.12,COMMS EXPRESS LTD,Invoice
NGF CS,,"EQUIPMENT, FURNITURE & MATS",Revenue,"EQUIPMENT, FURNITURE & MATS",05.Jan.17,198.57,PRO2COL,Invoice
NGF CS,,"EQUIPMENT, FURNITURE & MATS",Revenue,"EQUIPMENT, FURNITURE & MATS",05.Jan.17,352.22,PRO2COL,Invoice
NGF CS,,"EQUIPMENT, FURNITURE & MATS",Revenue,"EQUIPMENT, FURNITURE & MATS",05.Jan.17,352.22,PRO2COL,Invoice
NGF CS,,"EQUIPMENT, FURNITURE & MATS",Revenue,"EQUIPMENT, FURNITURE & MATS",05.Jan.17,882.34,PRO2COL,Invoice
NGF CS,,"EQUIPMENT, FURNITURE & MATS",Revenue,"EQUIPMENT, FURNITURE & MATS",05.Jan.17,2913.57,PRO2COL,Invoice
NGF CS,,"EQUIPMENT, FURNITURE & MATS",Revenue,"EQUIPMENT, FURNITURE & MATS",05.Jan.17,970.66,PRO2COL,Invoice
NGF CS,,"EQUIPMENT, FURNITURE & MATS",Revenue,"EQUIPMENT, FURNITURE & MATS",31.Jan.17,9800,BEST PRACTICE GROUP PLC.,Invoice
NGF CS,,SERVICES,Revenue,SERVICES - GENERAL,31.Jan.17,10556.93,RETAIL ASSIST LTD,Invoice
NGF CS,,COMMUNICATIONS & COMP,Revenue,I.T. EQUIPMENT & MAINTENANCE,05.Jan.17,1083,PRO2COL,Invoice
NGF CS,,"EQUIPMENT, FURNITURE & MATS",Revenue,"EQUIPMENT, FURNITURE & MATS",17.Jan.17,6911.49,EBASE TECHNOLOGY LTD,Invoice
NGF CS,,COMMUNICATIONS & COMP,Revenue,I.T. SLA RECHARGE,19.Jan.17,7732,QMATIC UK LTD,Invoice
NGF CS,,COMMUNICATIONS & COMP,Revenue,I.T. SLA RECHARGE,25.Jan.17,850,E FILE UK LTD,Invoice
NGF CS,,COMMUNICATIONS & COMP,Revenue,I.T. EQUIPMENT & MAINTENANCE,10.Jan.17,1200,XMA LIMITED,Invoice
NGF CS,,COMMUNICATIONS & COMP,Revenue,I.T. EQUIPMENT & MAINTENANCE,05.Jan.17,829.1,XMA LIMITED,Invoice
NGF CS,,COMMUNICATIONS & COMP,Revenue,I.T. EQUIPMENT & MAINTENANCE,05.Jan.17,7815,XMA LIMITED,Invoice
NGF CS,,COMMUNICATIONS & COMP,Revenue,I.T. EQUIPMENT & MAINTENANCE,05.Jan.17,1293,XMA LIMITED,Invoice
NGF CS,,COMMUNICATIONS & COMP,Revenue,I.T. EQUIPMENT & MAINTENANCE,20.Jan.17,450,XMA LIMITED,Invoice
NGF CS,,COMMUNICATIONS & COMP,Revenue,I.T. EQUIPMENT & MAINTENANCE,10.Jan.17,2250,I3IT LIMITED,Invoice
NGF CS,,COMMUNICATIONS & COMP,Revenue,I.T. EQUIPMENT & MAINTENANCE,10.Jan.17,2250,I3IT LIMITED,Invoice
NGF CS,,COMMUNICATIONS & COMP,Revenue,I.T. EQUIPMENT & MAINTENANCE,10.Jan.17,3200,OBSTAR LTD,Invoice
NGF CS,,COMMUNICATIONS & COMP,Revenue,I.T. EQUIPMENT & MAINTENANCE,13.Jan.17,1600,OBSTAR LTD,Invoice
NGF CS,,COMMUNICATIONS & COMP,Revenue,I.T. EQUIPMENT & MAINTENANCE,06.Jan.17,1900,SAN DIVISION,Invoice
NGF CS,FINANCE,DIRECT2,Revenue,CAP COST-PENSION FUND BENEFITS,10.Jan.17,4090.5,WANDSWORTH COUNCIL PENSION FUND,Invoice
CS,,DIRECT2,Revenue,AGENCY STAFF,16.Jan.17,3140.83,MATRIX SCM LIMITED,Invoice
CS,,DIRECT2,Revenue,AGENCY STAFF,25.Jan.17,598.7,MATRIX SCM LIMITED,Invoice
CS,,INDIRECT,Revenue,STAFF ADVERTISING - VACANCIES,05.Jan.17,1452.53,PENNA PLC,Invoice
CS,,INDIRECT,Revenue,STAFF ADVERTISING - VACANCIES,12.Jan.17,791,PENNA PLC,Invoice
CS,,INDIRECT,Revenue,STAFF ADVERTISING - VACANCIES,12.Jan.17,791,PENNA PLC,Invoice
CS,,INDIRECT,Revenue,STAFF ADVERTISING - VACANCIES,18.Jan.17,1427.5,PENNA PLC,Invoice
CS,,INDIRECT,Revenue,STAFF ADVERTISING - VACANCIES,18.Jan.17,1492,PENNA PLC,Invoice
CS,,INDIRECT,Revenue,STAFF ADVERTISING - VACANCIES,23.Jan.17,696.5,PENNA PLC,Invoice
CS,,INDIRECT,Revenue,STAFF ADVERTISING - VACANCIES,25.Jan.17,840.5,PENNA PLC,Invoice
CS,,INDIRECT,Revenue,STAFF ADVERTISING - VACANCIES,25.Jan.17,6913.23,PENNA PLC,Invoice
CS,,INDIRECT,Revenue,STAFF ADVERTISING - VACANCIES,25.Jan.17,9421,PENNA PLC,Invoice
ASC,SOCIAL SERVICES,HIRE,Revenue,HIRE - TRANSPORT,11.Jan.17,42,A STAR TRANSPORT LTD,Invoice
ASC,SOCIAL SERVICES,CUSTOMER & CLIENT RECPTS - EXT,Revenue,CL CONT EXTERNAL RESIDENTIAL,27.Jan.17,-578.81,BIRCC,Invoice
ASC,SOCIAL SERVICES,HIRE,Revenue,HIRE - TRANSPORT,17.Jan.17,601.33,BECKETT CORPORATION LTD T/A TINAS CARS,Invoice
ASC,SOCIAL SERVICES,HIRE,Revenue,HIRE - TRANSPORT,17.Jan.17,630.8,BECKETT CORPORATION LTD T/A TINAS CARS,Invoice
ASC,SOCIAL SERVICES,HIRE,Revenue,HIRE - TRANSPORT,17.Jan.17,1566,BECKETT CORPORATION LTD T/A TINAS CARS,Invoice
ASC,SOCIAL SERVICES,HIRE,Revenue,HIRE - TRANSPORT,17.Jan.17,236.94,BECKETT CORPORATION LTD T/A TINAS CARS,Invoice
ASC,SOCIAL SERVICES,HIRE,Revenue,HIRE - TRANSPORT,17.Jan.17,613.4,BECKETT CORPORATION LTD T/A TINAS CARS,Invoice
ASC,SOCIAL SERVICES,HIRE,Revenue,HIRE - TRANSPORT,17.Jan.17,432,BECKETT CORPORATION LTD T/A TINAS CARS,Invoice
ASC,SOCIAL SERVICES,HIRE,Revenue,HIRE - TRANSPORT,17.Jan.17,455,BECKETT CORPORATION LTD T/A TINAS CARS,Invoice
ASC,SOCIAL SERVICES,HIRE,Revenue,HIRE - TRANSPORT,17.Jan.17,540,BECKETT CORPORATION LTD T/A TINAS CARS,Invoice
ASC,SOCIAL SERVICES,HIRE,Revenue,HIRE - TRANSPORT,17.Jan.17,540,BECKETT CORPORATION LTD T/A TINAS CARS,Invoice
ASC,SOCIAL SERVICES,HIRE,Revenue,HIRE - TRANSPORT,17.Jan.17,461.95,BECKETT CORPORATION LTD T/A TINAS CARS,Invoice
ASC,SOCIAL SERVICES,HIRE,Revenue,HIRE - TRANSPORT,17.Jan.17,461.95,BECKETT CORPORATION LTD T/A TINAS CARS,Invoice
ASC,SOCIAL SERVICES,HIRE,Revenue,HIRE - TRANSPORT,17.Jan.17,461.94,BECKETT CORPORATION LTD T/A TINAS CARS,Invoice
ASC,SOCIAL SERVICES,HIRE,Revenue,HIRE - TRANSPORT,17.Jan.17,1440,BECKETT CORPORATION LTD T/A TINAS CARS,Invoice
ASC,SOCIAL SERVICES,HIRE,Revenue,HIRE - TRANSPORT,17.Jan.17,1610,BECKETT CORPORATION LTD T/A TINAS CARS,Invoice
ASC,SOCIAL SERVICES,HIRE,Revenue,HIRE - TRANSPORT,17.Jan.17,1430,BECKETT CORPORATION LTD T/A TINAS CARS,Invoice
ASC,SOCIAL SERVICES,HIRE,Revenue,HIRE - TRANSPORT,17.Jan.17,910,BECKETT CORPORATION LTD T/A TINAS CARS,Invoice
ASC,SOCIAL SERVICES,HIRE,Revenue,HIRE - TRANSPORT,17.Jan.17,443,BECKETT CORPORATION LTD T/A TINAS CARS,Invoice
ASC,SOCIAL SERVICES,HIRE,Revenue,HIRE - TRANSPORT,17.Jan.17,443,BECKETT CORPORATION LTD T/A TINAS CARS,Invoice
ASC,SOCIAL SERVICES,HIRE,Revenue,HIRE - TRANSPORT,17.Jan.17,443,BECKETT CORPORATION LTD T/A TINAS CARS,Invoice
ASC,SOCIAL SERVICES,HIRE,Revenue,HIRE - TRANSPORT,17.Jan.17,660,BECKETT CORPORATION LTD T/A TINAS CARS,Invoice
ASC,SOCIAL SERVICES,HIRE,Revenue,HIRE - TRANSPORT,17.Jan.17,660,BECKETT CORPORATION LTD T/A TINAS CARS,Invoice
ASC,SOCIAL SERVICES,HIRE,Revenue,HIRE - TRANSPORT,17.Jan.17,600,BECKETT CORPORATION LTD T/A TINAS CARS,Invoice
ASC,SOCIAL SERVICES,HIRE,Revenue,HIRE - TRANSPORT,11.Jan.17,576,A STAR TRANSPORT LTD,Invoice
ASC,SOCIAL SERVICES,HIRE,Revenue,HIRE - TRANSPORT,11.Jan.17,1033.33,A STAR TRANSPORT LTD,Invoice
ASC,SOCIAL SERVICES,HIRE,Revenue,HIRE - TRANSPORT,11.Jan.17,1318.33,A STAR TRANSPORT LTD,Invoice
ASC,SOCIAL SERVICES,HIRE,Revenue,HIRE - TRANSPORT,11.Jan.17,1520,A STAR TRANSPORT LTD,Invoice
ASC,SOCIAL SERVICES,HIRE,Revenue,HIRE - TRANSPORT,11.Jan.17,1080,A STAR TRANSPORT LTD,Invoice
ASC,SOCIAL SERVICES,HIRE,Revenue,HIRE - TRANSPORT,11.Jan.17,677.52,A STAR TRANSPORT LTD,Invoice
ASC,SOCIAL SERVICES,HIRE,Revenue,HIRE - TRANSPORT,11.Jan.17,1400,A STAR TRANSPORT LTD,Invoice
ASC,SOCIAL SERVICES,HIRE,Revenue,HIRE - TRANSPORT,11.Jan.17,791,A STAR TRANSPORT LTD,Invoice
ASC,SOCIAL SERVICES,HIRE,Revenue,HIRE - TRANSPORT,11.Jan.17,1260,A STAR TRANSPORT LTD,Invoice
ASC,SOCIAL SERVICES,HIRE,Revenue,HIRE - TRANSPORT,11.Jan.17,694.23,A STAR TRANSPORT LTD,Invoice
ASC,SOCIAL SERVICES,HIRE,Revenue,HIRE - TRANSPORT,11.Jan.17,572,A STAR TRANSPORT LTD,Invoice
ASC,SOCIAL SERVICES,HIRE,Revenue,HIRE - TRANSPORT,11.Jan.17,432,A STAR TRANSPORT LTD,Invoice
ASC,SOCIAL SERVICES,HIRE,Revenue,HIRE - TRANSPORT,11.Jan.17,1976,A STAR TRANSPORT LTD,Invoice
ASC,SOCIAL SERVICES,HIRE,Revenue,HIRE - TRANSPORT,11.Jan.17,1210,A STAR TRANSPORT LTD,Invoice
ASC,SOCIAL SERVICES,HIRE,Revenue,HIRE - TRANSPORT,11.Jan.17,588,A STAR TRANSPORT LTD,Invoice
ASC,SOCIAL SERVICES,HIRE,Revenue,HIRE - TRANSPORT,11.Jan.17,588,A STAR TRANSPORT LTD,Invoice
ASC,SOCIAL SERVICES,HIRE,Revenue,HIRE - TRANSPORT,11.Jan.17,994,A STAR TRANSPORT LTD,Invoice
ASC,SOCIAL SERVICES,HIRE,Revenue,HIRE - TRANSPORT,11.Jan.17,807,A STAR TRANSPORT LTD,Invoice
ASC,SOCIAL SERVICES,HIRE,Revenue,HIRE - TRANSPORT,11.Jan.17,534.8,A STAR TRANSPORT LTD,Invoice
ASC,SOCIAL SERVICES,HIRE,Revenue,HIRE - TRANSPORT,11.Jan.17,547,A STAR TRANSPORT LTD,Invoice
ASC,SOCIAL SERVICES,HIRE,Revenue,HIRE - TRANSPORT,11.Jan.17,484,A STAR TRANSPORT LTD,Invoice
ASC,SOCIAL SERVICES,HIRE,Revenue,HIRE - TRANSPORT,11.Jan.17,576,A STAR TRANSPORT LTD,Invoice
ASC,SOCIAL SERVICES,HIRE,Revenue,HIRE - TRANSPORT,11.Jan.17,554,A STAR TRANSPORT LTD,Invoice
ASC,SOCIAL SERVICES,HIRE,Revenue,HIRE - TRANSPORT,11.Jan.17,568,A STAR TRANSPORT LTD,Invoice
ASC,SOCIAL SERVICES,HIRE,Revenue,HIRE - TRANSPORT,11.Jan.17,568,A STAR TRANSPORT LTD,Invoice
ASC,SOCIAL SERVICES,HIRE,Revenue,HIRE - TRANSPORT,11.Jan.17,814,A STAR TRANSPORT LTD,Invoice
ASC,SOCIAL SERVICES,HIRE,Revenue,HIRE - TRANSPORT,11.Jan.17,1214,A STAR TRANSPORT LTD,Invoice
ASC,SOCIAL SERVICES,HIRE,Revenue,HIRE - TRANSPORT,11.Jan.17,1248,A STAR TRANSPORT LTD,Invoice
ASC,SOCIAL SERVICES,HIRE,Revenue,HIRE - TRANSPORT,11.Jan.17,800,A STAR TRANSPORT LTD,Invoice
ASC,SOCIAL SERVICES,HIRE,Revenue,HIRE - TRANSPORT,11.Jan.17,1000,A STAR TRANSPORT LTD,Invoice
ASC,SOCIAL SERVICES,HIRE,Revenue,HIRE - TRANSPORT,11.Jan.17,1000,A STAR TRANSPORT LTD,Invoice
ASC,SOCIAL SERVICES,HIRE,Revenue,HIRE - TRANSPORT,11.Jan.17,512,A STAR TRANSPORT LTD,Invoice
ASC,SOCIAL SERVICES,HIRE,Revenue,HIRE - TRANSPORT,11.Jan.17,512,A STAR TRANSPORT LTD,Invoice
ASC,SOCIAL SERVICES,HIRE,Revenue,HIRE - TRANSPORT,11.Jan.17,440,A STAR TRANSPORT LTD,Invoice
ASC,SOCIAL SERVICES,HIRE,Revenue,HIRE - TRANSPORT,11.Jan.17,440,A STAR TRANSPORT LTD,Invoice
ASC,SOCIAL SERVICES,HIRE,Revenue,HIRE - TRANSPORT,11.Jan.17,440,A STAR TRANSPORT LTD,Invoice
ASC,SOCIAL SERVICES,HIRE,Revenue,HIRE - TRANSPORT,11.Jan.17,560,A STAR TRANSPORT LTD,Invoice
ASC,SOCIAL SERVICES,HIRE,Revenue,HIRE - TRANSPORT,31.Jan.17,576,A STAR TRANSPORT LTD,Invoice
ASC,SOCIAL SERVICES,HIRE,Revenue,HIRE - TRANSPORT,31.Jan.17,878.33,A STAR TRANSPORT LTD,Invoice
ASC,SOCIAL SERVICES,HIRE,Revenue,HIRE - TRANSPORT,31.Jan.17,1283.33,A STAR TRANSPORT LTD,Invoice
ASC,SOCIAL SERVICES,HIRE,Revenue,HIRE - TRANSPORT,31.Jan.17,612,A STAR TRANSPORT LTD,Invoice
ASC,SOCIAL SERVICES,HIRE,Revenue,HIRE - TRANSPORT,31.Jan.17,684,A STAR TRANSPORT LTD,Invoice
ASC,SOCIAL SERVICES,HIRE,Revenue,HIRE - TRANSPORT,31.Jan.17,600.52,A STAR TRANSPORT LTD,Invoice
ASC,SOCIAL SERVICES,HIRE,Revenue,HIRE - TRANSPORT,31.Jan.17,1190,A STAR TRANSPORT LTD,Invoice
ASC,SOCIAL SERVICES,HIRE,Revenue,HIRE - TRANSPORT,31.Jan.17,750,A STAR TRANSPORT LTD,Invoice
ASC,SOCIAL SERVICES,HIRE,Revenue,HIRE - TRANSPORT,31.Jan.17,810,A STAR TRANSPORT LTD,Invoice
ASC,SOCIAL SERVICES,HIRE,Revenue,HIRE - TRANSPORT,31.Jan.17,440.2,A STAR TRANSPORT LTD,Invoice
ASC,SOCIAL SERVICES,HIRE,Revenue,HIRE - TRANSPORT,31.Jan.17,528,A STAR TRANSPORT LTD,Invoice
ASC,SOCIAL SERVICES,HIRE,Revenue,HIRE - TRANSPORT,31.Jan.17,1664,A STAR TRANSPORT LTD,Invoice
ASC,SOCIAL SERVICES,HIRE,Revenue,HIRE - TRANSPORT,31.Jan.17,1036,A STAR TRANSPORT LTD,Invoice
ASC,SOCIAL SERVICES,HIRE,Revenue,HIRE - TRANSPORT,31.Jan.17,595,A STAR TRANSPORT LTD,Invoice
ASC,SOCIAL SERVICES,HIRE,Revenue,HIRE - TRANSPORT,31.Jan.17,707,A STAR TRANSPORT LTD,Invoice
ASC,SOCIAL SERVICES,HIRE,Revenue,HIRE - TRANSPORT,31.Jan.17,503,A STAR TRANSPORT LTD,Invoice
ASC,SOCIAL SERVICES,HIRE,Revenue,HIRE - TRANSPORT,31.Jan.17,440,A STAR TRANSPORT LTD,Invoice
ASC,SOCIAL SERVICES,HIRE,Revenue,HIRE - TRANSPORT,31.Jan.17,453,A STAR TRANSPORT LTD,Invoice
ASC,SOCIAL SERVICES,HIRE,Revenue,HIRE - TRANSPORT,31.Jan.17,453,A STAR TRANSPORT LTD,Invoice
ASC,SOCIAL SERVICES,HIRE,Revenue,HIRE - TRANSPORT,31.Jan.17,748,A STAR TRANSPORT LTD,Invoice
ASC,SOCIAL SERVICES,HIRE,Revenue,HIRE - TRANSPORT,31.Jan.17,876,A STAR TRANSPORT LTD,Invoice
ASC,SOCIAL SERVICES,HIRE,Revenue,HIRE - TRANSPORT,31.Jan.17,1088,A STAR TRANSPORT LTD,Invoice
ASC,SOCIAL SERVICES,HIRE,Revenue,HIRE - TRANSPORT,31.Jan.17,680,A STAR TRANSPORT LTD,Invoice
ASC,SOCIAL SERVICES,HIRE,Revenue,HIRE - TRANSPORT,31.Jan.17,850,A STAR TRANSPORT LTD,Invoice
ASC,SOCIAL SERVICES,HIRE,Revenue,HIRE - TRANSPORT,31.Jan.17,850,A STAR TRANSPORT LTD,Invoice
ASC,SOCIAL SERVICES,HIRE,Revenue,HIRE - TRANSPORT,31.Jan.17,496,A STAR TRANSPORT LTD,Invoice
ASC,SOCIAL SERVICES,HIRE,Revenue,HIRE - TRANSPORT,04.Jan.17,710,SWALLOWNEST & AIRPORT TAXI LTD,Invoice
ASC,SOCIAL SERVICES,HIRE,Revenue,HIRE - TRANSPORT,11.Jan.17,694.52,ADDISON LEE LTD,Invoice
ASC,SOCIAL SERVICES,HIRE,Revenue,HIRE - TRANSPORT,11.Jan.17,454.23,ADDISON LEE LTD,Invoice
ASC,SOCIAL SERVICES,HIRE,Revenue,HIRE - TRANSPORT,20.Jan.17,753.98,ADDISON LEE LTD,Invoice
ASC,SOCIAL SERVICES,HIRE,Revenue,HIRE - TRANSPORT,26.Jan.17,753.22,ADDISON LEE LTD,Invoice
ASC,SOCIAL SERVICES,HIRE,Revenue,HIRE - TRANSPORT,26.Jan.17,758.9,ADDISON LEE LTD,Invoice
ASC,SOCIAL SERVICES,HIRE,Revenue,HIRE - TRANSPORT,26.Jan.17,510.8,ADDISON LEE LTD,Invoice
ASC,SOCIAL SERVICES,HIRE,Revenue,HIRE - TRANSPORT,12.Jan.17,550,PARKER CARS LIMITED,Invoice
ASC,SOCIAL SERVICES,HIRE,Revenue,HIRE - TRANSPORT,12.Jan.17,907,PARKER CARS LIMITED,Invoice
ASC,SOCIAL SERVICES,HIRE,Revenue,HIRE - TRANSPORT,12.Jan.17,496.8,PARKER CARS LIMITED,Invoice
ASC,SOCIAL SERVICES,HIRE,Revenue,HIRE - TRANSPORT,12.Jan.17,444,PARKER CARS LIMITED,Invoice
ASC,SOCIAL SERVICES,HIRE,Revenue,HIRE - TRANSPORT,12.Jan.17,661.5,PARKER CARS LIMITED,Invoice
ASC,SOCIAL SERVICES,HIRE,Revenue,HIRE - TRANSPORT,12.Jan.17,475.5,PARKER CARS LIMITED,Invoice
ASC,SOCIAL SERVICES,HIRE,Revenue,NEW TRANSPORT CONTRACT,17.Jan.17,1566,BECKETT CORPORATION LTD T/A TINAS CARS,Invoice
ASC,SOCIAL SERVICES,HIRE,Revenue,NEW TRANSPORT CONTRACT,17.Jan.17,236.16,BECKETT CORPORATION LTD T/A TINAS CARS,Invoice
ASC,,HIRE,Revenue,NEW TRANSPORT CONTRACT,10.Jan.17,8498.5,CT PLUS CIC,Invoice
ASC,SOCIAL SERVICES,SERVICES,Revenue,TRAVEL BUDDY SCHEME,04.Jan.17,1.5,ASIAN ELDERS SUPPORT SCHEME,Invoice
ASC,SOCIAL SERVICES,SERVICES,Revenue,TRAVEL BUDDY SCHEME,04.Jan.17,633.2,HARINGEY ASSOCIATION FOR INDEPENDENT LIV,Invoice
ASC,SOCIAL SERVICES,SERVICES,Revenue,TRAVEL BUDDY SCHEME,04.Jan.17,633.2,HARINGEY ASSOCIATION FOR INDEPENDENT LIV,Invoice
ASC,SOCIAL SERVICES,SERVICES,Revenue,TRAVEL BUDDY SCHEME,04.Jan.17,759.84,HARINGEY ASSOCIATION FOR INDEPENDENT LIV,Invoice
ASC,SOCIAL SERVICES,SERVICES,Revenue,TRAVEL BUDDY SCHEME,04.Jan.17,617.37,HARINGEY ASSOCIATION FOR INDEPENDENT LIV,Invoice
ASC,SOCIAL SERVICES,SERVICES,Revenue,TRAVEL BUDDY SCHEME,04.Jan.17,886.48,HARINGEY ASSOCIATION FOR INDEPENDENT LIV,Invoice
ASC,SOCIAL SERVICES,SERVICES,Revenue,TRAVEL BUDDY SCHEME,04.Jan.17,728.18,HARINGEY ASSOCIATION FOR INDEPENDENT LIV,Invoice
ASC,SOCIAL SERVICES,SERVICES,Revenue,TRAVEL BUDDY SCHEME,04.Jan.17,633.2,HARINGEY ASSOCIATION FOR INDEPENDENT LIV,Invoice
ASC,SOCIAL SERVICES,SERVICES,Revenue,TRAVEL BUDDY SCHEME,11.Jan.17,744.01,HARINGEY ASSOCIATION FOR INDEPENDENT LIV,Invoice
ASC,SOCIAL SERVICES,SERVICES,Revenue,TRAVEL BUDDY SCHEME,11.Jan.17,704.44,HARINGEY ASSOCIATION FOR INDEPENDENT LIV,Invoice
ASC,SOCIAL SERVICES,SERVICES,Revenue,TRAVEL BUDDY SCHEME,11.Jan.17,593.63,HARINGEY ASSOCIATION FOR INDEPENDENT LIV,Invoice
ASC,SOCIAL SERVICES,SERVICES,Revenue,TRAVEL BUDDY SCHEME,11.Jan.17,664.86,HARINGEY ASSOCIATION FOR INDEPENDENT LIV,Invoice
ASC,SOCIAL SERVICES,SERVICES,Revenue,TRAVEL BUDDY SCHEME,11.Jan.17,684.65,HARINGEY ASSOCIATION FOR INDEPENDENT LIV,Invoice
ASC,SOCIAL SERVICES,SERVICES,Revenue,TRAVEL BUDDY SCHEME,11.Jan.17,827.12,HARINGEY ASSOCIATION FOR INDEPENDENT LIV,Invoice
ASC,SOCIAL SERVICES,SERVICES,Revenue,TRAVEL BUDDY SCHEME,11.Jan.17,637.16,HARINGEY ASSOCIATION FOR INDEPENDENT LIV,Invoice
ASC,SOCIAL SERVICES,HEALTH,Revenue,EXT RES S28A 100% OLD LONGSTAY,04.Jan.17,6372.68,VOYAGE CARE LTD,Invoice
ASC,SOCIAL SERVICES,HEALTH,Revenue,EXT RES S28A 100% OLD LONGSTAY,04.Jan.17,9358.32,VOYAGE CARE LTD,Invoice
ASC,SOCIAL SERVICES,HEALTH,Revenue,RES CARE - EDUCATION ESTAB,03.Jan.17,25208.67,RUSKIN MILL COLLEGE,Invoice
ASC,SOCIAL SERVICES,HEALTH,Revenue,RES CARE - EDUCATION ESTAB,17.Jan.17,30608.67,RUSKIN MILL COLLEGE,Invoice
ASC,SOCIAL SERVICES,HEALTH,Revenue,RES CARE - EDUCATION ESTAB,20.Jan.17,11074.85,CAMBIAN WHINFELL SCHOOL LTD,Invoice
ASC,SOCIAL SERVICES,HEALTH,Revenue,RES CARE - EDUCATION ESTAB,17.Jan.17,3214.36,DERWEN COLLEGE,Invoice
ASC,SOCIAL SERVICES,HEALTH,Revenue,EXTERNAL RESIDENTIAL CARE S28A,27.Jan.17,7266.4,PROGRESS HOUSING LULWORTH,Invoice
ASC,SOCIAL SERVICES,HEALTH,Revenue,EXT RES CARE S28A 100%,09.Jan.17,4026.4,CMG HOMES LTD,Invoice
ASC,SOCIAL SERVICES,HEALTH,Revenue,EXT RES CARE S28A 100%,26.Jan.17,4026.4,CMG HOMES LTD,Invoice
ASC,SOCIAL SERVICES,HEALTH,Revenue,EXT RES CARE S28A 100%,27.Jan.17,6793.25,HOME FROM HOME CARE LIMITED,Invoice
ASC,SOCIAL SERVICES,HEALTH,Revenue,EXT RES S28A OLD LONG STAY,12.Jan.17,4790.16,METROPOLITAN HOUSING TRUST,Invoice
ASC,SOCIAL SERVICES,HEALTH,Revenue,EXT RES S28A OLD LONG STAY,05.Jan.17,2709,ASHTON CARE,Invoice
ASC,,INDEPENDENT UNITS,Revenue,DAY CARE MUTUAL,26.Jan.17,140180.98,ONE TRUST,Invoice
ASC,SOCIAL SERVICES,OTHER AGENCIES,Revenue,ENABLERS/EDUCATION FEES,17.Jan.17,35744.76,CAMBIAN AUTISM SERVICES LTD,Invoice
ASC,SOCIAL SERVICES,OTHER AGENCIES,Revenue,EXTERNAL OUTREACH,09.Jan.17,2897.3,RAINBOW MEDICAL SERVICES,Invoice
ASC,SOCIAL SERVICES,OTHER AGENCIES,Revenue,EXTERNAL OUTREACH,16.Jan.17,674.9,RAINBOW MEDICAL SERVICES,Invoice
ASC,SOCIAL SERVICES,OTHER AGENCIES,Revenue,EXTERNAL OUTREACH,06.Jan.17,1900,PROTOCOL EDUCATION  LTD,Invoice
ASC,SOCIAL SERVICES,OTHER AGENCIES,Revenue,EXTERNAL OUTREACH,16.Jan.17,950,PROTOCOL EDUCATION  LTD,Invoice
ASC,SOCIAL SERVICES,OTHER AGENCIES,Revenue,EXTERNAL OUTREACH,23.Jan.17,950,PROTOCOL EDUCATION  LTD,Invoice
ASC,SOCIAL SERVICES,OTHER AGENCIES,Revenue,EXTERNAL OUTREACH,31.Jan.17,950,PROTOCOL EDUCATION  LTD,Invoice
ASC,SOCIAL SERVICES,OTHER AGENCIES,Revenue,EXTERNAL OUTREACH,12.Jan.17,681.54,REED,Invoice
ASC,SOCIAL SERVICES,OTHER AGENCIES,Revenue,EXTERNAL OUTREACH,19.Jan.17,2185.32,C M CARE LTD,Invoice
ASC,SOCIAL SERVICES,OTHER AGENCIES,Revenue,EXTERNAL OUTREACH,19.Jan.17,1501.76,C M CARE LTD,Invoice
ASC,SOCIAL SERVICES,OTHER AGENCIES,Revenue,EXTERNAL OUTREACH,19.Jan.17,1540,C M CARE LTD,Invoice
ASC,SOCIAL SERVICES,OTHER AGENCIES,Revenue,EXTERNAL OUTREACH,03.Jan.17,3320.3,GENERATE OPPORTUNITIES LTD,Invoice
ASC,SOCIAL SERVICES,OTHER AGENCIES,Revenue,EXTERNAL OUTREACH,16.Jan.17,638.08,GENERATE OPPORTUNITIES LTD,Invoice
ASC,SOCIAL SERVICES,OTHER AGENCIES,Revenue,EXTERNAL OUTREACH,16.Jan.17,797.6,GENERATE OPPORTUNITIES LTD,Invoice
ASC,SOCIAL SERVICES,OTHER AGENCIES,Revenue,EXTERNAL OUTREACH,16.Jan.17,957.12,GENERATE OPPORTUNITIES LTD,Invoice
ASC,SOCIAL SERVICES,OTHER AGENCIES,Revenue,EXTERNAL OUTREACH,16.Jan.17,638.08,GENERATE OPPORTUNITIES LTD,Invoice
ASC,SOCIAL SERVICES,OTHER AGENCIES,Revenue,EXTERNAL OUTREACH,16.Jan.17,1196.4,GENERATE OPPORTUNITIES LTD,Invoice
ASC,SOCIAL SERVICES,OTHER AGENCIES,Revenue,EXTERNAL OUTREACH,16.Jan.17,2800,GENERATE OPPORTUNITIES LTD,Invoice
ASC,SOCIAL SERVICES,OTHER AGENCIES,Revenue,EXTERNAL OUTREACH,11.Jan.17,725.04,METROPOLITAN HOUSING TRUST,Invoice
ASC,SOCIAL SERVICES,OTHER AGENCIES,Revenue,EXTERNAL OUTREACH,26.Jan.17,664.62,METROPOLITAN HOUSING TRUST,Invoice
ASC,SOCIAL SERVICES,OTHER AGENCIES,Revenue,EXTERNAL OUTREACH,16.Jan.17,1650,ROYAL ASSOCIATION FOR DEAF PEOPLE,Invoice
ASC,SOCIAL SERVICES,OTHER AGENCIES,Revenue,EXTERNAL OUTREACH,20.Jan.17,2640,RELIABLE PERSONNEL LTD,Invoice
ASC,SOCIAL SERVICES,OTHER AGENCIES,Revenue,EXTERNAL OUTREACH,31.Jan.17,630,A NEW LEAF,Invoice
ASC,SOCIAL SERVICES,PRIVATE,Revenue,EXTERNAL DAYCARE,27.Jan.17,2094.62,CMG HOMES LTD,Invoice
ASC,SOCIAL SERVICES,PRIVATE,Revenue,EXTERNAL DAYCARE,27.Jan.17,1213.76,RESIDENTIAL CARE SERVICES T/A FRANKLYN L,Invoice
ASC,SOCIAL SERVICES,PRIVATE,Revenue,EXTERNAL DAYCARE,09.Jan.17,878.48,ORCHARD VALE TRUST,Invoice
ASC,SOCIAL SERVICES,PRIVATE,Revenue,EXTERNAL DAYCARE,31.Jan.17,878.48,ORCHARD VALE TRUST,Invoice
ASC,SOCIAL SERVICES,PRIVATE,Revenue,EXTERNAL DAYCARE,25.Jan.17,1748.96,ST MARYS RESIDENTIAL HOME,Invoice
ASC,SOCIAL SERVICES,PRIVATE,Revenue,EXTERNAL DAYCARE,25.Jan.17,713.44,ST MARYS RESIDENTIAL HOME,Invoice
ASC,SOCIAL SERVICES,PRIVATE,Revenue,EXTERNAL DAYCARE,25.Jan.17,963.36,ST MARYS RESIDENTIAL HOME,Invoice
ASC,SOCIAL SERVICES,PRIVATE,Revenue,EXTERNAL DAYCARE,25.Jan.17,538,ST MARYS RESIDENTIAL HOME,Invoice
ASC,SOCIAL SERVICES,PRIVATE,Revenue,EXTERNAL DAYCARE,17.Jan.17,3807.8,NAS SERVICES LIMITED,Invoice
ASC,SOCIAL SERVICES,PRIVATE,Revenue,EXTERNAL DAYCARE,17.Jan.17,1594.76,NAS SERVICES LIMITED,Invoice
ASC,SOCIAL SERVICES,PRIVATE,Revenue,EXTERNAL DAYCARE,17.Jan.17,3745,NAS SERVICES LIMITED,Invoice
ASC,SOCIAL SERVICES,PRIVATE,Revenue,EXTERNAL DAYCARE,17.Jan.17,2264.08,NAS SERVICES LIMITED,Invoice
ASC,SOCIAL SERVICES,PRIVATE,Revenue,EXTERNAL DAYCARE,17.Jan.17,2331,NAS SERVICES LIMITED,Invoice
ASC,SOCIAL SERVICES,PRIVATE,Revenue,EXTERNAL DAYCARE,03.Jan.17,546,PARCHMENT TRUST LTD,Invoice
ASC,SOCIAL SERVICES,PRIVATE,Revenue,EXTERNAL DAYCARE,09.Jan.17,598.45,SHARE COMMUNITY,Invoice
ASC,SOCIAL SERVICES,PRIVATE,Revenue,EXTERNAL DAYCARE,09.Jan.17,897.65,SHARE COMMUNITY,Invoice
ASC,SOCIAL SERVICES,PRIVATE,Revenue,EXTERNAL DAYCARE,09.Jan.17,1196.9,SHARE COMMUNITY,Invoice
ASC,SOCIAL SERVICES,PRIVATE,Revenue,EXTERNAL DAYCARE,09.Jan.17,598.45,SHARE COMMUNITY,Invoice
ASC,SOCIAL SERVICES,PRIVATE,Revenue,EXTERNAL DAYCARE,09.Jan.17,897.65,SHARE COMMUNITY,Invoice
ASC,SOCIAL SERVICES,PRIVATE,Revenue,EXTERNAL DAYCARE,09.Jan.17,598.45,SHARE COMMUNITY,Invoice
ASC,SOCIAL SERVICES,PRIVATE,Revenue,EXTERNAL DAYCARE,09.Jan.17,1196.8,SHARE COMMUNITY,Invoice
ASC,SOCIAL SERVICES,PRIVATE,Revenue,EXTERNAL DAYCARE,09.Jan.17,897.6,SHARE COMMUNITY,Invoice
ASC,SOCIAL SERVICES,PRIVATE,Revenue,EXTERNAL DAYCARE,09.Jan.17,1496.1,SHARE COMMUNITY,Invoice
ASC,SOCIAL SERVICES,PRIVATE,Revenue,EXTERNAL DAYCARE,09.Jan.17,897.65,SHARE COMMUNITY,Invoice
ASC,SOCIAL SERVICES,PRIVATE,Revenue,EXTERNAL DAYCARE,09.Jan.17,1496.1,SHARE COMMUNITY,Invoice
ASC,SOCIAL SERVICES,PRIVATE,Revenue,EXTERNAL DAYCARE,09.Jan.17,669.2,SHARE COMMUNITY,Invoice
ASC,SOCIAL SERVICES,PRIVATE,Revenue,EXTERNAL DAYCARE,09.Jan.17,1196.9,SHARE COMMUNITY,Invoice
ASC,SOCIAL SERVICES,PRIVATE,Revenue,EXTERNAL DAYCARE,09.Jan.17,897.65,SHARE COMMUNITY,Invoice
ASC,SOCIAL SERVICES,PRIVATE,Revenue,EXTERNAL DAYCARE,09.Jan.17,598.45,SHARE COMMUNITY,Invoice
ASC,SOCIAL SERVICES,PRIVATE,Revenue,EXTERNAL DAYCARE,09.Jan.17,748.05,SHARE COMMUNITY,Invoice
ASC,SOCIAL SERVICES,PRIVATE,Revenue,EXTERNAL DAYCARE,09.Jan.17,897.65,SHARE COMMUNITY,Invoice
ASC,SOCIAL SERVICES,PRIVATE,Revenue,EXTERNAL DAYCARE,09.Jan.17,598.45,SHARE COMMUNITY,Invoice
ASC,SOCIAL SERVICES,PRIVATE,Revenue,EXTERNAL DAYCARE,09.Jan.17,897.65,SHARE COMMUNITY,Invoice
ASC,SOCIAL SERVICES,PRIVATE,Revenue,EXTERNAL DAYCARE,09.Jan.17,1496.1,SHARE COMMUNITY,Invoice
ASC,SOCIAL SERVICES,PRIVATE,Revenue,EXTERNAL DAYCARE,09.Jan.17,598.45,SHARE COMMUNITY,Invoice
ASC,SOCIAL SERVICES,PRIVATE,Revenue,EXTERNAL DAYCARE,09.Jan.17,598.45,SHARE COMMUNITY,Invoice
ASC,SOCIAL SERVICES,PRIVATE,Revenue,EXTERNAL DAYCARE,09.Jan.17,897.65,SHARE COMMUNITY,Invoice
ASC,SOCIAL SERVICES,PRIVATE,Revenue,EXTERNAL DAYCARE,09.Jan.17,897.65,SHARE COMMUNITY,Invoice
ASC,SOCIAL SERVICES,PRIVATE,Revenue,EXTERNAL DAYCARE,09.Jan.17,1196.9,SHARE COMMUNITY,Invoice
ASC,SOCIAL SERVICES,PRIVATE,Revenue,EXTERNAL DAYCARE,09.Jan.17,897.65,SHARE COMMUNITY,Invoice
ASC,SOCIAL SERVICES,PRIVATE,Revenue,EXTERNAL DAYCARE,09.Jan.17,598.45,SHARE COMMUNITY,Invoice
ASC,SOCIAL SERVICES,PRIVATE,Revenue,EXTERNAL DAYCARE,09.Jan.17,897.65,SHARE COMMUNITY,Invoice
ASC,SOCIAL SERVICES,PRIVATE,Revenue,EXTERNAL DAYCARE,09.Jan.17,1196.8,SHARE COMMUNITY,Invoice
ASC,SOCIAL SERVICES,PRIVATE,Revenue,EXTERNAL DAYCARE,09.Jan.17,598.45,SHARE COMMUNITY,Invoice
ASC,SOCIAL SERVICES,PRIVATE,Revenue,EXTERNAL DAYCARE,09.Jan.17,897.65,SHARE COMMUNITY,Invoice
ASC,SOCIAL SERVICES,PRIVATE,Revenue,EXTERNAL DAYCARE,09.Jan.17,598.45,SHARE COMMUNITY,Invoice
ASC,SOCIAL SERVICES,PRIVATE,Revenue,EXTERNAL DAYCARE,09.Jan.17,897.65,SHARE COMMUNITY,Invoice
ASC,SOCIAL SERVICES,PRIVATE,Revenue,EXTERNAL DAYCARE,09.Jan.17,1196.85,SHARE COMMUNITY,Invoice
ASC,SOCIAL SERVICES,PRIVATE,Revenue,EXTERNAL DAYCARE,09.Jan.17,1196.85,SHARE COMMUNITY,Invoice
ASC,SOCIAL SERVICES,PRIVATE,Revenue,EXTERNAL DAYCARE,09.Jan.17,897.65,SHARE COMMUNITY,Invoice
ASC,SOCIAL SERVICES,PRIVATE,Revenue,EXTERNAL DAYCARE,09.Jan.17,897.65,SHARE COMMUNITY,Invoice
ASC,SOCIAL SERVICES,PRIVATE,Revenue,EXTERNAL DAYCARE,09.Jan.17,598.45,SHARE COMMUNITY,Invoice
ASC,SOCIAL SERVICES,PRIVATE,Revenue,EXTERNAL DAYCARE,13.Jan.17,897.6,SHARE COMMUNITY,Invoice
ASC,SOCIAL SERVICES,PRIVATE,Revenue,EXTERNAL DAYCARE,27.Jan.17,973.6,DOLPHIN HOMES LTD,Invoice
ASC,SOCIAL SERVICES,PRIVATE,Revenue,EXTERNAL DAYCARE,27.Jan.17,973.6,DOLPHIN HOMES LTD,Invoice
ASC,SOCIAL SERVICES,PRIVATE,Revenue,EXTERNAL DAYCARE,16.Jan.17,2014.16,NORWOOD SCHOOLS LTD,Invoice
ASC,SOCIAL SERVICES,PRIVATE,Revenue,EXTERNAL DAYCARE,16.Jan.17,2070.04,NORWOOD SCHOOLS LTD,Invoice
ASC,SOCIAL SERVICES,PRIVATE,Revenue,EXTERNAL DAYCARE,04.Jan.17,1831.17,VOYAGE CARE LTD,Invoice
ASC,SOCIAL SERVICES,PRIVATE,Revenue,EXTERNAL DAYCARE,17.Jan.17,1057,ST DAVIDS CARE IN THE COMMUNITY,Invoice
ASC,SOCIAL SERVICES,PRIVATE,Revenue,EXTERNAL DAYCARE,17.Jan.17,1057,ST DAVIDS CARE IN THE COMMUNITY,Invoice
ASC,SOCIAL SERVICES,PRIVATE,Revenue,EXTERNAL DAYCARE,17.Jan.17,1057,ST DAVIDS CARE IN THE COMMUNITY,Invoice
ASC,SOCIAL SERVICES,PRIVATE,Revenue,EXTERNAL DAYCARE,24.Jan.17,525.7,O A ROWE,Invoice
ASC,SOCIAL SERVICES,PRIVATE,Revenue,EXTERNAL DAYCARE,03.Jan.17,845.6,WANDSWORTH BENGALI WELFARE ASSOCIATION,Invoice
ASC,SOCIAL SERVICES,PRIVATE,Revenue,EXTERNAL DAYCARE,24.Jan.17,718.76,WANDSWORTH BENGALI WELFARE ASSOCIATION,Invoice
ASC,SOCIAL SERVICES,PRIVATE,Revenue,EXTERNAL DAYCARE,16.Jan.17,788.8,SURREY & BORDERS PARTNERSHIP NHS TRUST,Invoice
ASC,SOCIAL SERVICES,PRIVATE,Revenue,EXTERNAL DAYCARE,03.Jan.17,779.7,GENERATE OPPORTUNITIES LTD,Invoice
ASC,SOCIAL SERVICES,PRIVATE,Revenue,EXTERNAL DAYCARE,16.Jan.17,640,GENERATE OPPORTUNITIES LTD,Invoice
ASC,SOCIAL SERVICES,PRIVATE,Revenue,EXTERNAL DAYCARE,16.Jan.17,576,GENERATE OPPORTUNITIES LTD,Invoice
ASC,SOCIAL SERVICES,PRIVATE,Revenue,EXTERNAL DAYCARE,16.Jan.17,576,GENERATE OPPORTUNITIES LTD,Invoice
ASC,SOCIAL SERVICES,PRIVATE,Revenue,EXTERNAL DAYCARE,16.Jan.17,480,GENERATE OPPORTUNITIES LTD,Invoice
ASC,SOCIAL SERVICES,PRIVATE,Revenue,EXTERNAL DAYCARE,27.Jan.17,888,ASHFIELD CARE HOMES LTD,Invoice
ASC,SOCIAL SERVICES,PRIVATE,Revenue,EXTERNAL DAYCARE,31.Jan.17,888,ASHFIELD CARE HOMES LTD,Invoice
ASC,SOCIAL SERVICES,PRIVATE,Revenue,EXTERNAL DAYCARE,20.Jan.17,602.56,HIGH HURLANDS HOMES,Invoice
ASC,SOCIAL SERVICES,PRIVATE,Revenue,EXTERNAL DAYCARE,09.Jan.17,1153.04,CREST COOPERATIVE LTD,Invoice
ASC,SOCIAL SERVICES,PRIVATE,Revenue,EXTERNAL DAYCARE,27.Jan.17,1110.06,THE MANOR HOUSE,Invoice
ASC,SOCIAL SERVICES,PRIVATE,Revenue,EXTERNAL DAYCARE,17.Jan.17,531.04,UNITED RESPONSE,Invoice
ASC,SOCIAL SERVICES,PRIVATE,Revenue,EXTERNAL DAYCARE,09.Jan.17,819.52,WANDSWORTH MENCAP,Invoice
ASC,SOCIAL SERVICES,PRIVATE,Revenue,EXTERNAL DAYCARE,19.Jan.17,848,SCOPE,Invoice
ASC,SOCIAL SERVICES,PRIVATE,Revenue,EXTERNAL DAYCARE,19.Jan.17,848,SCOPE,Invoice
ASC,SOCIAL SERVICES,PRIVATE,Revenue,EXTERNAL DAYCARE,05.Jan.17,738.88,ACT TOO LTD,Invoice
ASC,SOCIAL SERVICES,PRIVATE,Revenue,EXTERNAL DAYCARE,05.Jan.17,923.6,ACT TOO LTD,Invoice
ASC,SOCIAL SERVICES,PRIVATE,Revenue,EXTERNAL DAYCARE,05.Jan.17,923.6,ACT TOO LTD,Invoice
ASC,SOCIAL SERVICES,PRIVATE,Revenue,EXTERNAL DAYCARE,05.Jan.17,738.88,ACT TOO LTD,Invoice
ASC,SOCIAL SERVICES,PRIVATE,Revenue,EXTERNAL DAYCARE,05.Jan.17,554.16,ACT TOO LTD,Invoice
ASC,SOCIAL SERVICES,PRIVATE,Revenue,EXTERNAL DAYCARE,05.Jan.17,738.88,ACT TOO LTD,Invoice
ASC,SOCIAL SERVICES,PRIVATE,Revenue,EXTERNAL DAYCARE,05.Jan.17,554.16,ACT TOO LTD,Invoice
ASC,SOCIAL SERVICES,PRIVATE,Revenue,EXTERNAL DAYCARE,05.Jan.17,554.16,ACT TOO LTD,Invoice
ASC,SOCIAL SERVICES,PRIVATE,Revenue,EXTERNAL DAYCARE,05.Jan.17,554.16,ACT TOO LTD,Invoice
ASC,SOCIAL SERVICES,PRIVATE,Revenue,EXTERNAL DAYCARE,05.Jan.17,738.88,ACT TOO LTD,Invoice
ASC,SOCIAL SERVICES,PRIVATE,Revenue,EXTERNAL DAYCARE,05.Jan.17,554.16,ACT TOO LTD,Invoice
ASC,SOCIAL SERVICES,PRIVATE,Revenue,EXTERNAL DAYCARE,05.Jan.17,554.16,ACT TOO LTD,Invoice
ASC,SOCIAL SERVICES,PRIVATE,Revenue,EXTERNAL DAYCARE,05.Jan.17,764.48,ACT TOO LTD,Invoice
ASC,SOCIAL SERVICES,PRIVATE,Revenue,EXTERNAL DAYCARE,05.Jan.17,764.48,ACT TOO LTD,Invoice
ASC,SOCIAL SERVICES,PRIVATE,Revenue,EXTERNAL DAYCARE,05.Jan.17,573.36,ACT TOO LTD,Invoice
ASC,SOCIAL SERVICES,PRIVATE,Revenue,EXTERNAL DAYCARE,05.Jan.17,955.6,ACT TOO LTD,Invoice
ASC,SOCIAL SERVICES,PRIVATE,Revenue,EXTERNAL DAYCARE,05.Jan.17,764.48,ACT TOO LTD,Invoice
ASC,SOCIAL SERVICES,PRIVATE,Revenue,EXTERNAL DAYCARE,05.Jan.17,955.6,ACT TOO LTD,Invoice
ASC,SOCIAL SERVICES,PRIVATE,Revenue,EXTERNAL DAYCARE,05.Jan.17,764.48,ACT TOO LTD,Invoice
ASC,SOCIAL SERVICES,PRIVATE,Revenue,EXTERNAL DAYCARE,12.Jan.17,554.16,ACT TOO LTD,Invoice
ASC,SOCIAL SERVICES,PRIVATE,Revenue,EXTERNAL DAYCARE,12.Jan.17,554.16,ACT TOO LTD,Invoice
ASC,SOCIAL SERVICES,PRIVATE,Revenue,EXTERNAL DAYCARE,12.Jan.17,554.16,ACT TOO LTD,Invoice
ASC,SOCIAL SERVICES,PRIVATE,Revenue,EXTERNAL DAYCARE,12.Jan.17,554.16,ACT TOO LTD,Invoice
ASC,SOCIAL SERVICES,PRIVATE,Revenue,EXTERNAL DAYCARE,12.Jan.17,738.88,ACT TOO LTD,Invoice
ASC,SOCIAL SERVICES,PRIVATE,Revenue,EXTERNAL DAYCARE,12.Jan.17,554.16,ACT TOO LTD,Invoice
ASC,SOCIAL SERVICES,PRIVATE,Revenue,EXTERNAL DAYCARE,12.Jan.17,923.6,ACT TOO LTD,Invoice
ASC,SOCIAL SERVICES,PRIVATE,Revenue,EXTERNAL DAYCARE,12.Jan.17,554.16,ACT TOO LTD,Invoice
ASC,SOCIAL SERVICES,PRIVATE,Revenue,EXTERNAL DAYCARE,12.Jan.17,554.16,ACT TOO LTD,Invoice
ASC,SOCIAL SERVICES,PRIVATE,Revenue,EXTERNAL DAYCARE,12.Jan.17,1416.24,WINSLOW COURT,Invoice
ASC,SOCIAL SERVICES,PRIVATE,Revenue,EXTERNAL DAYCARE,12.Jan.17,1416.24,WINSLOW COURT,Invoice
ASC,SOCIAL SERVICES,PRIVATE,Revenue,EXTERNAL DAYCARE,03.Jan.17,844.38,ORIONE CARE,Invoice
ASC,SOCIAL SERVICES,PRIVATE,Revenue,EXTERNAL DAYCARE,03.Jan.17,609.83,ORIONE CARE,Invoice
ASC,SOCIAL SERVICES,PRIVATE,Revenue,EXTERNAL DAYCARE,24.Jan.17,797.47,ORIONE CARE,Invoice
ASC,SOCIAL SERVICES,PRIVATE,Revenue,EXTERNAL DAYCARE,24.Jan.17,562.92,ORIONE CARE,Invoice
ASC,SOCIAL SERVICES,PRIVATE,Revenue,EXTERNAL DAYCARE,19.Jan.17,1200,RIDGEWOOD CARE SERVICES LTD,Invoice
ASC,SOCIAL SERVICES,PRIVATE,Revenue,EXTERNAL DAYCARE,27.Jan.17,969.8,SCOPE,Invoice
ASC,SOCIAL SERVICES,PRIVATE,Revenue,EXTERNAL DAYCARE,27.Jan.17,596.8,SCOPE,Invoice
ASC,SOCIAL SERVICES,PRIVATE,Revenue,EXTERNAL DAYCARE,03.Jan.17,935,THE HOME FARM TRUST LTD,Invoice
ASC,SOCIAL SERVICES,PRIVATE,Revenue,EXTERNAL DAYCARE,24.Jan.17,990,THE HOME FARM TRUST LTD,Invoice
ASC,SOCIAL SERVICES,PRIVATE,Revenue,EXTERNAL DAYCARE,04.Jan.17,1775.5,SUSSEX HEALTH CARE,Invoice
ASC,SOCIAL SERVICES,PRIVATE,Revenue,EXTERNAL DAYCARE,04.Jan.17,1474,SUSSEX HEALTH CARE,Invoice
ASC,SOCIAL SERVICES,PRIVATE,Revenue,EXTERNAL DAYCARE,12.Jan.17,425.34,LONDON CARE PARTNERSHIP LTD,Invoice
ASC,SOCIAL SERVICES,PRIVATE,Revenue,EXTERNAL DAYCARE,27.Jan.17,675.54,LONDON CARE PARTNERSHIP LTD,Invoice
ASC,SOCIAL SERVICES,PRIVATE,Revenue,EXTERNAL DAYCARE,26.Jan.17,630.4,HARROW MENCAP,Invoice
ASC,SOCIAL SERVICES,PRIVATE,Revenue,EXTERNAL DAYCARE,31.Jan.17,819.52,HARROW MENCAP,Invoice
ASC,SOCIAL SERVICES,PRIVATE,Revenue,EXTERNAL DAYCARE,03.Jan.17,727.2,WORKSHOP 305,Invoice
ASC,SOCIAL SERVICES,PRIVATE,Revenue,EXTERNAL DAYCARE,04.Jan.17,727.2,WORKSHOP 305,Invoice
ASC,SOCIAL SERVICES,PRIVATE,Revenue,EXTERNAL DAYCARE,12.Jan.17,1134.08,WORKSHOP 305,Invoice
ASC,SOCIAL SERVICES,PRIVATE,Revenue,EXTERNAL DAYCARE,12.Jan.17,969.6,WORKSHOP 305,Invoice
ASC,SOCIAL SERVICES,PRIVATE,Revenue,EXTERNAL DAYCARE,12.Jan.17,727.2,WORKSHOP 305,Invoice
ASC,SOCIAL SERVICES,PRIVATE,Revenue,EXTERNAL DAYCARE,12.Jan.17,850.56,WORKSHOP 305,Invoice
ASC,SOCIAL SERVICES,PRIVATE,Revenue,EXTERNAL DAYCARE,12.Jan.17,727.2,WORKSHOP 305,Invoice
ASC,SOCIAL SERVICES,PRIVATE,Revenue,EXTERNAL DAYCARE,12.Jan.17,727.2,WORKSHOP 305,Invoice
ASC,SOCIAL SERVICES,PRIVATE,Revenue,EXTERNAL DAYCARE,12.Jan.17,727.2,WORKSHOP 305,Invoice
ASC,SOCIAL SERVICES,PRIVATE,Revenue,EXTERNAL DAYCARE,12.Jan.17,727.2,WORKSHOP 305,Invoice
ASC,SOCIAL SERVICES,PRIVATE,Revenue,EXTERNAL DAYCARE,12.Jan.17,969.6,WORKSHOP 305,Invoice
ASC,SOCIAL SERVICES,PRIVATE,Revenue,EXTERNAL DAYCARE,16.Jan.17,727.2,WORKSHOP 305,Invoice
ASC,SOCIAL SERVICES,PRIVATE,Revenue,EXTERNAL DAYCARE,16.Jan.17,727.2,WORKSHOP 305,Invoice
ASC,SOCIAL SERVICES,PRIVATE,Revenue,EXTERNAL DAYCARE,16.Jan.17,520,THE CAMDEN SOCIETY,Invoice
ASC,SOCIAL SERVICES,PRIVATE,Revenue,EXTERNAL DAYCARE,16.Jan.17,520,THE CAMDEN SOCIETY,Invoice
ASC,SOCIAL SERVICES,PRIVATE,Revenue,EXTERNAL DAYCARE,16.Jan.17,520,THE CAMDEN SOCIETY,Invoice
ASC,SOCIAL SERVICES,PRIVATE,Revenue,EXTERNAL DAYCARE,16.Jan.17,520,THE CAMDEN SOCIETY,Invoice
ASC,SOCIAL SERVICES,PRIVATE,Revenue,EXTERNAL DAYCARE,16.Jan.17,520,THE CAMDEN SOCIETY,Invoice
ASC,SOCIAL SERVICES,PRIVATE,Revenue,EXTERNAL DAYCARE,16.Jan.17,520,THE CAMDEN SOCIETY,Invoice
ASC,SOCIAL SERVICES,PRIVATE,Revenue,EXTERNAL DAYCARE,16.Jan.17,520,THE CAMDEN SOCIETY,Invoice
ASC,SOCIAL SERVICES,PRIVATE,Revenue,EXTERNAL DAYCARE,16.Jan.17,520,THE CAMDEN SOCIETY,Invoice
ASC,SOCIAL SERVICES,PRIVATE,Revenue,EXTERNAL DAYCARE,11.Jan.17,504.3,LUCKETTS FARM LIMNITED T/A THE JOHN GRAH,Invoice
ASC,SOCIAL SERVICES,PRIVATE,Revenue,EXTERNAL DAYCARE,30.Jan.17,992,INSPIRE CARE OUTREACH LIMITED,Invoice
ASC,SOCIAL SERVICES,PRIVATE,Revenue,EXTERNAL DAYCARE,27.Jan.17,947.98,HEATHCOTES(SOUTHERN)LTD,Invoice
ASC,SOCIAL SERVICES,PRIVATE,Revenue,EXTERNAL HOMECARE,26.Jan.17,3073.65,RAINBOW MEDICAL SERVICES,Invoice
ASC,SOCIAL SERVICES,PRIVATE,Revenue,EXTERNAL HOMECARE,04.Jan.17,757.13,ASIAN ELDERS SUPPORT SCHEME,Invoice
ASC,SOCIAL SERVICES,PRIVATE,Revenue,EXTERNAL HOMECARE,09.Jan.17,644.4,MUSHKIL AASAAN LTD,Invoice
ASC,SOCIAL SERVICES,PRIVATE,Revenue,EXTERNAL HOMECARE,09.Jan.17,536.25,SOMA HEALTHCARE LTD,Invoice
ASC,SOCIAL SERVICES,PRIVATE,Revenue,EXTERNAL HOMECARE,16.Jan.17,1309.52,SUPREME CARE SERVICE LTD,Invoice
ASC,SOCIAL SERVICES,PRIVATE,Revenue,EXTERNAL HOMECARE,04.Jan.17,3232,CHRISTIES CARE LTD,Invoice
ASC,SOCIAL SERVICES,PRIVATE,Revenue,EXTERNAL HOMECARE,12.Jan.17,3232,CHRISTIES CARE LTD,Invoice
ASC,SOCIAL SERVICES,PRIVATE,Revenue,EXTERNAL HOMECARE,09.Jan.17,811.5,DAY AND NITE CARE,Invoice
ASC,SOCIAL SERVICES,PRIVATE,Revenue,EXTERNAL HOMECARE,25.Jan.17,869.2,DAY AND NITE CARE,Invoice
ASC,SOCIAL SERVICES,PRIVATE,Revenue,EXTERNAL HOMECARE,03.Jan.17,649.71,LONDON HOMECARE LTD,Invoice
ASC,SOCIAL SERVICES,PRIVATE,Revenue,EXTERNAL HOMECARE,03.Jan.17,579.6,LONDON HOMECARE LTD,Invoice
ASC,SOCIAL SERVICES,PRIVATE,Revenue,EXTERNAL HOMECARE,03.Jan.17,979.8,LONDON HOMECARE LTD,Invoice
ASC,SOCIAL SERVICES,PRIVATE,Revenue,EXTERNAL HOMECARE,03.Jan.17,906.83,LONDON HOMECARE LTD,Invoice
ASC,SOCIAL SERVICES,PRIVATE,Revenue,EXTERNAL HOMECARE,26.Jan.17,648.08,LONDON HOMECARE LTD,Invoice
ASC,SOCIAL SERVICES,PRIVATE,Revenue,EXTERNAL HOMECARE,26.Jan.17,887.2,LONDON HOMECARE LTD,Invoice
ASC,SOCIAL SERVICES,PRIVATE,Revenue,EXTERNAL HOMECARE,26.Jan.17,909.44,LONDON HOMECARE LTD,Invoice
ASC,SOCIAL SERVICES,PRIVATE,Revenue,EXTERNAL HOMECARE,26.Jan.17,552,LONDON HOMECARE LTD,Invoice
ASC,SOCIAL SERVICES,PRIVATE,Revenue,EXTERNAL HOMECARE,16.Jan.17,502.88,HEALTH CARE SOLUTIONS,Invoice
ASC,SOCIAL SERVICES,PRIVATE,Revenue,EXTERNAL HOMECARE,16.Jan.17,502.88,HEALTH CARE SOLUTIONS,Invoice
ASC,SOCIAL SERVICES,PRIVATE,Revenue,EXTERNAL HOMECARE,20.Jan.17,571.28,HEALTH CARE SOLUTIONS,Invoice
ASC,SOCIAL SERVICES,PRIVATE,Revenue,EXTERNAL HOMECARE,20.Jan.17,678.38,HEALTH CARE SOLUTIONS,Invoice
ASC,SOCIAL SERVICES,PRIVATE,Revenue,EXTERNAL HOMECARE,24.Jan.17,644.18,HEALTH CARE SOLUTIONS,Invoice
ASC,SOCIAL SERVICES,PRIVATE,Revenue,EXTERNAL HOMECARE,30.Jan.17,502.88,HEALTH CARE SOLUTIONS,Invoice
ASC,SOCIAL SERVICES,PRIVATE,Revenue,EXTERNAL NURSING CARE,12.Jan.17,6327.88,WINGHAM COURT,Invoice
ASC,SOCIAL SERVICES,PRIVATE,Revenue,EXTERNAL NURSING CARE,27.Jan.17,3546.8,ROSEDENE NURSING HOME,Invoice
ASC,SOCIAL SERVICES,PRIVATE,Revenue,EXTERNAL NURSING CARE,04.Jan.17,4767.19,VOYAGE CARE LTD,Invoice
ASC,SOCIAL SERVICES,PRIVATE,Revenue,EXTERNAL NURSING CARE,04.Jan.17,6091.58,VOYAGE CARE LTD,Invoice
ASC,SOCIAL SERVICES,PRIVATE,Revenue,EXTERNAL NURSING CARE,16.Jan.17,9108.12,CHOICE SUPPORT,Invoice
ASC,SOCIAL SERVICES,PRIVATE,Revenue,EXTERNAL NURSING CARE,27.Jan.17,9064.58,THE COMMUNITY CARE COMPANY UK LTD,Invoice
ASC,SOCIAL SERVICES,PRIVATE,Revenue,EXTERNAL NURSING CARE,27.Jan.17,3256.52,BUPA CARE SERVICES BACS RECEIPTS,Invoice
ASC,SOCIAL SERVICES,PRIVATE,Revenue,EXTERNAL NURSING CARE,27.Jan.17,3256.52,BUPA CARE SERVICES BACS RECEIPTS,Invoice
ASC,SOCIAL SERVICES,PRIVATE,Revenue,EXTERNAL NURSING CARE,27.Jan.17,8519.61,BUPA CARE SERVICES BACS RECEIPTS,Invoice
ASC,SOCIAL SERVICES,PRIVATE,Revenue,EXTERNAL NURSING CARE,20.Jan.17,5620.37,HIGH HURLANDS HOMES,Invoice
ASC,SOCIAL SERVICES,PRIVATE,Revenue,EXTERNAL NURSING CARE,04.Jan.17,7821.48,SUSSEX HEALTH CARE,Invoice
ASC,SOCIAL SERVICES,PRIVATE,Revenue,EXTERNAL NURSING CARE,04.Jan.17,9039.77,SUSSEX HEALTH CARE,Invoice
ASC,SOCIAL SERVICES,PRIVATE,Revenue,EXTERNAL NURSING CARE,04.Jan.17,9205.14,SUSSEX HEALTH CARE,Invoice
ASC,SOCIAL SERVICES,PRIVATE,Revenue,EXTERNAL RESIDENTIAL CARE,09.Jan.17,5844.6,CMG HOMES LTD,Invoice
ASC,SOCIAL SERVICES,PRIVATE,Revenue,EXTERNAL RESIDENTIAL CARE,09.Jan.17,4059.04,CMG HOMES LTD,Invoice
ASC,SOCIAL SERVICES,PRIVATE,Revenue,EXTERNAL RESIDENTIAL CARE,09.Jan.17,6233.72,CMG HOMES LTD,Invoice
ASC,SOCIAL SERVICES,PRIVATE,Revenue,EXTERNAL RESIDENTIAL CARE,09.Jan.17,5762.48,CMG HOMES LTD,Invoice
ASC,SOCIAL SERVICES,PRIVATE,Revenue,EXTERNAL RESIDENTIAL CARE,09.Jan.17,8365.08,CMG HOMES LTD,Invoice
ASC,SOCIAL SERVICES,PRIVATE,Revenue,EXTERNAL RESIDENTIAL CARE,09.Jan.17,5033.92,CMG HOMES LTD,Invoice
ASC,SOCIAL SERVICES,PRIVATE,Revenue,EXTERNAL RESIDENTIAL CARE,09.Jan.17,4821.28,CMG HOMES LTD,Invoice
ASC,SOCIAL SERVICES,PRIVATE,Revenue,EXTERNAL RESIDENTIAL CARE,09.Jan.17,7403.6,CMG HOMES LTD,Invoice
ASC,SOCIAL SERVICES,PRIVATE,Revenue,EXTERNAL RESIDENTIAL CARE,26.Jan.17,5844.6,CMG HOMES LTD,Invoice
ASC,SOCIAL SERVICES,PRIVATE,Revenue,EXTERNAL RESIDENTIAL CARE,26.Jan.17,4059.04,CMG HOMES LTD,Invoice
ASC,SOCIAL SERVICES,PRIVATE,Revenue,EXTERNAL RESIDENTIAL CARE,26.Jan.17,6233.72,CMG HOMES LTD,Invoice
ASC,SOCIAL SERVICES,PRIVATE,Revenue,EXTERNAL RESIDENTIAL CARE,26.Jan.17,5762.48,CMG HOMES LTD,Invoice
ASC,SOCIAL SERVICES,PRIVATE,Revenue,EXTERNAL RESIDENTIAL CARE,26.Jan.17,8365.08,CMG HOMES LTD,Invoice
ASC,SOCIAL SERVICES,PRIVATE,Revenue,EXTERNAL RESIDENTIAL CARE,26.Jan.17,5033.92,CMG HOMES LTD,Invoice
ASC,SOCIAL SERVICES,PRIVATE,Revenue,EXTERNAL RESIDENTIAL CARE,26.Jan.17,4821.28,CMG HOMES LTD,Invoice
ASC,SOCIAL SERVICES,PRIVATE,Revenue,EXTERNAL RESIDENTIAL CARE,26.Jan.17,7403.6,CMG HOMES LTD,Invoice
ASC,SOCIAL SERVICES,PRIVATE,Revenue,EXTERNAL RESIDENTIAL CARE,27.Jan.17,6669.65,NATIONAL SOCIETY FOR EPILEPSY,Invoice
ASC,SOCIAL SERVICES,PRIVATE,Revenue,EXTERNAL RESIDENTIAL CARE,27.Jan.17,2499.08,SANCTUARY HOME CARE LTD,Invoice
ASC,SOCIAL SERVICES,PRIVATE,Revenue,EXTERNAL RESIDENTIAL CARE,27.Jan.17,5034.49,IN CHORUS LTD,Invoice
ASC,SOCIAL SERVICES,PRIVATE,Revenue,EXTERNAL RESIDENTIAL CARE,31.Jan.17,3985.19,CENTRUST CARE HOMES LTD,Invoice
ASC,SOCIAL SERVICES,PRIVATE,Revenue,EXTERNAL RESIDENTIAL CARE,27.Jan.17,4869.74,FRANCES TAYLOR FOUNDATION,Invoice
ASC,SOCIAL SERVICES,PRIVATE,Revenue,EXTERNAL RESIDENTIAL CARE,27.Jan.17,4373.88,FRANCES TAYLOR FOUNDATION,Invoice
ASC,SOCIAL SERVICES,PRIVATE,Revenue,EXTERNAL RESIDENTIAL CARE,27.Jan.17,4220.47,FRANCES TAYLOR FOUNDATION,Invoice
ASC,SOCIAL SERVICES,PRIVATE,Revenue,EXTERNAL RESIDENTIAL CARE,20.Jan.17,4062.44,RESIDENTIAL CARE SERVICES T/A FRANKLYN L,Invoice
ASC,SOCIAL SERVICES,PRIVATE,Revenue,EXTERNAL RESIDENTIAL CARE,09.Jan.17,5594.12,THE CHESTNUTS,Invoice
ASC,SOCIAL SERVICES,PRIVATE,Revenue,EXTERNAL RESIDENTIAL CARE,16.Jan.17,1662.08,ORCHARD VALE TRUST,Invoice
ASC,SOCIAL SERVICES,PRIVATE,Revenue,EXTERNAL RESIDENTIAL CARE,31.Jan.17,1662.08,ORCHARD VALE TRUST,Invoice
ASC,SOCIAL SERVICES,PRIVATE,Revenue,EXTERNAL RESIDENTIAL CARE,09.Jan.17,3292.35,ST MARYS RESIDENTIAL HOME,Invoice
ASC,SOCIAL SERVICES,PRIVATE,Revenue,EXTERNAL RESIDENTIAL CARE,09.Jan.17,2781.63,ST MARYS RESIDENTIAL HOME,Invoice
ASC,SOCIAL SERVICES,PRIVATE,Revenue,EXTERNAL RESIDENTIAL CARE,09.Jan.17,3749.13,ST MARYS RESIDENTIAL HOME,Invoice
ASC,SOCIAL SERVICES,PRIVATE,Revenue,EXTERNAL RESIDENTIAL CARE,27.Jan.17,3989.52,ST MARYS RESIDENTIAL HOME,Invoice
ASC,SOCIAL SERVICES,PRIVATE,Revenue,EXTERNAL RESIDENTIAL CARE,27.Jan.17,3926.02,ST MARYS RESIDENTIAL HOME,Invoice
ASC,SOCIAL SERVICES,PRIVATE,Revenue,EXTERNAL RESIDENTIAL CARE,27.Jan.17,3594.8,ST MARYS RESIDENTIAL HOME,Invoice
ASC,SOCIAL SERVICES,PRIVATE,Revenue,EXTERNAL RESIDENTIAL CARE,27.Jan.17,3737.58,ST MARYS RESIDENTIAL HOME,Invoice
ASC,SOCIAL SERVICES,PRIVATE,Revenue,EXTERNAL RESIDENTIAL CARE,27.Jan.17,3068.87,ST MARYS RESIDENTIAL HOME,Invoice
ASC,SOCIAL SERVICES,PRIVATE,Revenue,EXTERNAL RESIDENTIAL CARE,27.Jan.17,5163.36,ST MARYS RESIDENTIAL HOME,Invoice
ASC,SOCIAL SERVICES,PRIVATE,Revenue,EXTERNAL RESIDENTIAL CARE,27.Jan.17,4029.8,ST MARYS RESIDENTIAL HOME,Invoice
ASC,SOCIAL SERVICES,PRIVATE,Revenue,EXTERNAL RESIDENTIAL CARE,27.Jan.17,3607.78,ST MARYS RESIDENTIAL HOME,Invoice
ASC,SOCIAL SERVICES,PRIVATE,Revenue,EXTERNAL RESIDENTIAL CARE,27.Jan.17,3828.05,ST MARYS RESIDENTIAL HOME,Invoice
ASC,SOCIAL SERVICES,PRIVATE,Revenue,EXTERNAL RESIDENTIAL CARE,27.Jan.17,3567.65,ST MARYS RESIDENTIAL HOME,Invoice
ASC,SOCIAL SERVICES,PRIVATE,Revenue,EXTERNAL RESIDENTIAL CARE,27.Jan.17,3828.05,ST MARYS RESIDENTIAL HOME,Invoice
ASC,SOCIAL SERVICES,PRIVATE,Revenue,EXTERNAL RESIDENTIAL CARE,27.Jan.17,2329.65,ST MARYS RESIDENTIAL HOME,Invoice
ASC,SOCIAL SERVICES,PRIVATE,Revenue,EXTERNAL RESIDENTIAL CARE,11.Jan.17,5474.96,NAS SERVICES LIMITED,Invoice
ASC,SOCIAL SERVICES,PRIVATE,Revenue,EXTERNAL RESIDENTIAL CARE,11.Jan.17,6485.84,NAS SERVICES LIMITED,Invoice
ASC,SOCIAL SERVICES,PRIVATE,Revenue,EXTERNAL RESIDENTIAL CARE,11.Jan.17,8868.84,SPRING LAKE,Invoice
ASC,SOCIAL SERVICES,PRIVATE,Revenue,EXTERNAL RESIDENTIAL CARE,11.Jan.17,7729.72,SPRING LAKE,Invoice
ASC,SOCIAL SERVICES,PRIVATE,Revenue,EXTERNAL RESIDENTIAL CARE,27.Jan.17,3720.42,HAYDON PARK LODGE LTD,Invoice
ASC,SOCIAL SERVICES,PRIVATE,Revenue,EXTERNAL RESIDENTIAL CARE,27.Jan.17,7762.93,THE DISABILITIES TRUST,Invoice
ASC,SOCIAL SERVICES,PRIVATE,Revenue,EXTERNAL RESIDENTIAL CARE,06.Jan.17,4783.16,CAMERON LODGE LIMITED,Invoice
ASC,SOCIAL SERVICES,PRIVATE,Revenue,EXTERNAL RESIDENTIAL CARE,19.Jan.17,7905.22,RESIDENTIAL COMMUNITY CARE,Invoice
ASC,SOCIAL SERVICES,PRIVATE,Revenue,EXTERNAL RESIDENTIAL CARE,19.Jan.17,7887.02,RESIDENTIAL COMMUNITY CARE,Invoice
ASC,SOCIAL SERVICES,PRIVATE,Revenue,EXTERNAL RESIDENTIAL CARE,12.Jan.17,4923.31,DOLPHIN HOMES LTD,Invoice
ASC,SOCIAL SERVICES,PRIVATE,Revenue,EXTERNAL RESIDENTIAL CARE,12.Jan.17,3870.97,DOLPHIN HOMES LTD,Invoice
ASC,SOCIAL SERVICES,PRIVATE,Revenue,EXTERNAL RESIDENTIAL CARE,27.Jan.17,4946.29,DOLPHIN HOMES LTD,Invoice
ASC,SOCIAL SERVICES,PRIVATE,Revenue,EXTERNAL RESIDENTIAL CARE,27.Jan.17,3893.95,DOLPHIN HOMES LTD,Invoice
ASC,SOCIAL SERVICES,PRIVATE,Revenue,EXTERNAL RESIDENTIAL CARE,16.Jan.17,6197.52,NORWOOD SCHOOLS LTD,Invoice
ASC,SOCIAL SERVICES,PRIVATE,Revenue,EXTERNAL RESIDENTIAL CARE,16.Jan.17,6454.68,NORWOOD SCHOOLS LTD,Invoice
ASC,SOCIAL SERVICES,PRIVATE,Revenue,EXTERNAL RESIDENTIAL CARE,27.Jan.17,2589.34,HEYWOODS GRANGE LTD,Invoice
ASC,SOCIAL SERVICES,PRIVATE,Revenue,EXTERNAL RESIDENTIAL CARE,27.Jan.17,3232.99,HEYWOODS GRANGE LTD,Invoice
ASC,SOCIAL SERVICES,PRIVATE,Revenue,EXTERNAL RESIDENTIAL CARE,04.Jan.17,6257.08,VOYAGE CARE LTD,Invoice
ASC,SOCIAL SERVICES,PRIVATE,Revenue,EXTERNAL RESIDENTIAL CARE,04.Jan.17,6392.02,VOYAGE CARE LTD,Invoice
ASC,SOCIAL SERVICES,PRIVATE,Revenue,EXTERNAL RESIDENTIAL CARE,04.Jan.17,8770.83,VOYAGE CARE LTD,Invoice
ASC,SOCIAL SERVICES,PRIVATE,Revenue,EXTERNAL RESIDENTIAL CARE,27.Jan.17,2106.63,ST DAVIDS CARE IN THE COMMUNITY,Invoice
ASC,SOCIAL SERVICES,PRIVATE,Revenue,EXTERNAL RESIDENTIAL CARE,27.Jan.17,2643.34,ST DAVIDS CARE IN THE COMMUNITY,Invoice
ASC,SOCIAL SERVICES,PRIVATE,Revenue,EXTERNAL RESIDENTIAL CARE,27.Jan.17,2123.1,ST DAVIDS CARE IN THE COMMUNITY,Invoice
ASC,SOCIAL SERVICES,PRIVATE,Revenue,EXTERNAL RESIDENTIAL CARE,24.Jan.17,5668.26,ESSEX CARE CONSORTIUM,Invoice
ASC,SOCIAL SERVICES,PRIVATE,Revenue,EXTERNAL RESIDENTIAL CARE,24.Jan.17,3135.6,POTENSIAL LTD,Invoice
ASC,SOCIAL SERVICES,PRIVATE,Revenue,EXTERNAL RESIDENTIAL CARE,20.Jan.17,4056,KENILWORTH RESIDENTIAL HOME,Invoice
ASC,SOCIAL SERVICES,PRIVATE,Revenue,EXTERNAL RESIDENTIAL CARE,20.Jan.17,4233.04,KENILWORTH RESIDENTIAL HOME,Invoice
ASC,SOCIAL SERVICES,PRIVATE,Revenue,EXTERNAL RESIDENTIAL CARE,27.Jan.17,4415.13,THE WELL HOUSE,Invoice
ASC,SOCIAL SERVICES,PRIVATE,Revenue,EXTERNAL RESIDENTIAL CARE,27.Jan.17,4699.89,THE WELL HOUSE,Invoice
ASC,SOCIAL SERVICES,PRIVATE,Revenue,EXTERNAL RESIDENTIAL CARE,26.Jan.17,5262.6,MACINTYRE CARE,Invoice
ASC,SOCIAL SERVICES,PRIVATE,Revenue,EXTERNAL RESIDENTIAL CARE,26.Jan.17,5483.96,MACINTYRE CARE,Invoice
ASC,SOCIAL SERVICES,PRIVATE,Revenue,EXTERNAL RESIDENTIAL CARE,26.Jan.17,5244.4,MACINTYRE CARE,Invoice
ASC,SOCIAL SERVICES,PRIVATE,Revenue,EXTERNAL RESIDENTIAL CARE,26.Jan.17,3788.24,MACINTYRE CARE,Invoice
ASC,SOCIAL SERVICES,PRIVATE,Revenue,EXTERNAL RESIDENTIAL CARE,26.Jan.17,3851.96,MACINTYRE CARE,Invoice
ASC,SOCIAL SERVICES,PRIVATE,Revenue,EXTERNAL RESIDENTIAL CARE,26.Jan.17,5048.84,MACINTYRE CARE,Invoice
ASC,SOCIAL SERVICES,PRIVATE,Revenue,EXTERNAL RESIDENTIAL CARE,26.Jan.17,5148.16,MACINTYRE CARE,Invoice
ASC,SOCIAL SERVICES,PRIVATE,Revenue,EXTERNAL RESIDENTIAL CARE,26.Jan.17,2321.88,MACINTYRE CARE,Invoice
ASC,SOCIAL SERVICES,PRIVATE,Revenue,EXTERNAL RESIDENTIAL CARE,26.Jan.17,8135,MACINTYRE CARE,Invoice
ASC,SOCIAL SERVICES,PRIVATE,Revenue,EXTERNAL RESIDENTIAL CARE,26.Jan.17,5080.88,MACINTYRE CARE,Invoice
ASC,SOCIAL SERVICES,PRIVATE,Revenue,EXTERNAL RESIDENTIAL CARE,26.Jan.17,5484.04,MACINTYRE CARE,Invoice
ASC,SOCIAL SERVICES,PRIVATE,Revenue,EXTERNAL RESIDENTIAL CARE,26.Jan.17,4956.84,MACINTYRE CARE,Invoice
ASC,SOCIAL SERVICES,PRIVATE,Revenue,EXTERNAL RESIDENTIAL CARE,26.Jan.17,4338.96,MACINTYRE CARE,Invoice
ASC,SOCIAL SERVICES,PRIVATE,Revenue,EXTERNAL RESIDENTIAL CARE,26.Jan.17,4958.24,MACINTYRE CARE,Invoice
ASC,SOCIAL SERVICES,PRIVATE,Revenue,EXTERNAL RESIDENTIAL CARE,26.Jan.17,4958.24,MACINTYRE CARE,Invoice
ASC,SOCIAL SERVICES,PRIVATE,Revenue,EXTERNAL RESIDENTIAL CARE,26.Jan.17,4956.84,MACINTYRE CARE,Invoice
ASC,SOCIAL SERVICES,PRIVATE,Revenue,EXTERNAL RESIDENTIAL CARE,26.Jan.17,4956.84,MACINTYRE CARE,Invoice
ASC,SOCIAL SERVICES,PRIVATE,Revenue,EXTERNAL RESIDENTIAL CARE,26.Jan.17,5080.88,MACINTYRE CARE,Invoice
ASC,SOCIAL SERVICES,PRIVATE,Revenue,EXTERNAL RESIDENTIAL CARE,26.Jan.17,4956.84,MACINTYRE CARE,Invoice
ASC,SOCIAL SERVICES,PRIVATE,Revenue,EXTERNAL RESIDENTIAL CARE,17.Jan.17,8982.39,SURREY & BORDERS PARTNERSHIP NHS TRUST,Invoice
ASC,SOCIAL SERVICES,PRIVATE,Revenue,EXTERNAL RESIDENTIAL CARE,17.Jan.17,5605.2,SURREY & BORDERS PARTNERSHIP NHS TRUST,Invoice
ASC,SOCIAL SERVICES,PRIVATE,Revenue,EXTERNAL RESIDENTIAL CARE,20.Jan.17,13801,SURREY & BORDERS PARTNERSHIP NHS TRUST,Invoice
ASC,SOCIAL SERVICES,PRIVATE,Revenue,EXTERNAL RESIDENTIAL CARE,12.Jan.17,8081.92,AIMS CARE PARTNERSHIP,Invoice
ASC,SOCIAL SERVICES,PRIVATE,Revenue,EXTERNAL RESIDENTIAL CARE,12.Jan.17,8351.32,AIMS CARE PARTNERSHIP,Invoice
ASC,SOCIAL SERVICES,PRIVATE,Revenue,EXTERNAL RESIDENTIAL CARE,27.Jan.17,8351.31,AIMS CARE PARTNERSHIP,Invoice
ASC,SOCIAL SERVICES,PRIVATE,Revenue,EXTERNAL RESIDENTIAL CARE,27.Jan.17,7650.23,SEEABILITY,Invoice
ASC,SOCIAL SERVICES,PRIVATE,Revenue,EXTERNAL RESIDENTIAL CARE,27.Jan.17,8629.29,SEEABILITY,Invoice
ASC,SOCIAL SERVICES,PRIVATE,Revenue,EXTERNAL RESIDENTIAL CARE,27.Jan.17,16081.69,SEEABILITY,Invoice
ASC,SOCIAL SERVICES,PRIVATE,Revenue,EXTERNAL RESIDENTIAL CARE,27.Jan.17,5700.77,THE COMMUNITY CARE COMPANY UK LTD,Invoice
ASC,SOCIAL SERVICES,PRIVATE,Revenue,EXTERNAL RESIDENTIAL CARE,27.Jan.17,7193.24,THE COMMUNITY CARE COMPANY UK LTD,Invoice
ASC,SOCIAL SERVICES,PRIVATE,Revenue,EXTERNAL RESIDENTIAL CARE,27.Jan.17,6062.71,THE COMMUNITY CARE COMPANY UK LTD,Invoice
ASC,SOCIAL SERVICES,PRIVATE,Revenue,EXTERNAL RESIDENTIAL CARE,27.Jan.17,7275.21,THE COMMUNITY CARE COMPANY UK LTD,Invoice
ASC,SOCIAL SERVICES,PRIVATE,Revenue,EXTERNAL RESIDENTIAL CARE,27.Jan.17,6238.19,THE COMMUNITY CARE COMPANY UK LTD,Invoice
ASC,SOCIAL SERVICES,PRIVATE,Revenue,EXTERNAL RESIDENTIAL CARE,27.Jan.17,6687.94,BIRCC,Invoice
ASC,SOCIAL SERVICES,PRIVATE,Revenue,EXTERNAL RESIDENTIAL CARE,19.Jan.17,7633.22,THE REGARD PARTNERSHIP,Invoice
ASC,SOCIAL SERVICES,PRIVATE,Revenue,EXTERNAL RESIDENTIAL CARE,19.Jan.17,7386.99,THE REGARD PARTNERSHIP,Invoice
ASC,SOCIAL SERVICES,PRIVATE,Revenue,EXTERNAL RESIDENTIAL CARE,19.Jan.17,7633.22,THE REGARD PARTNERSHIP,Invoice
ASC,SOCIAL SERVICES,PRIVATE,Revenue,EXTERNAL RESIDENTIAL CARE,20.Jan.17,8029.66,THE REGARD PARTNERSHIP,Invoice
ASC,SOCIAL SERVICES,PRIVATE,Revenue,EXTERNAL RESIDENTIAL CARE,20.Jan.17,7203.91,THE REGARD PARTNERSHIP,Invoice
ASC,SOCIAL SERVICES,PRIVATE,Revenue,EXTERNAL RESIDENTIAL CARE,20.Jan.17,7203.91,THE REGARD PARTNERSHIP,Invoice
ASC,SOCIAL SERVICES,PRIVATE,Revenue,EXTERNAL RESIDENTIAL CARE,20.Jan.17,7287.04,THE REGARD PARTNERSHIP,Invoice
ASC,SOCIAL SERVICES,PRIVATE,Revenue,EXTERNAL RESIDENTIAL CARE,20.Jan.17,7051.97,THE REGARD PARTNERSHIP,Invoice
ASC,SOCIAL SERVICES,PRIVATE,Revenue,EXTERNAL RESIDENTIAL CARE,20.Jan.17,7287.05,THE REGARD PARTNERSHIP,Invoice
ASC,SOCIAL SERVICES,PRIVATE,Revenue,EXTERNAL RESIDENTIAL CARE,20.Jan.17,7185.09,THE REGARD PARTNERSHIP,Invoice
ASC,SOCIAL SERVICES,PRIVATE,Revenue,EXTERNAL RESIDENTIAL CARE,20.Jan.17,6953.31,THE REGARD PARTNERSHIP,Invoice
ASC,SOCIAL SERVICES,PRIVATE,Revenue,EXTERNAL RESIDENTIAL CARE,20.Jan.17,7185.09,THE REGARD PARTNERSHIP,Invoice
ASC,SOCIAL SERVICES,PRIVATE,Revenue,EXTERNAL RESIDENTIAL CARE,18.Jan.17,9068.67,EVERGREEN PARTNERSHIP,Invoice
ASC,SOCIAL SERVICES,PRIVATE,Revenue,EXTERNAL RESIDENTIAL CARE,18.Jan.17,10173,EVERGREEN PARTNERSHIP,Invoice
ASC,SOCIAL SERVICES,PRIVATE,Revenue,EXTERNAL RESIDENTIAL CARE,25.Jan.17,3604.2,EVERGREEN PARTNERSHIP,Invoice
ASC,SOCIAL SERVICES,PRIVATE,Revenue,EXTERNAL RESIDENTIAL CARE,27.Jan.17,3786.08,LAETUS LODGE,Invoice
ASC,SOCIAL SERVICES,PRIVATE,Revenue,EXTERNAL RESIDENTIAL CARE,27.Jan.17,6139.12,LAETUS LODGE,Invoice
ASC,SOCIAL SERVICES,PRIVATE,Revenue,EXTERNAL RESIDENTIAL CARE,27.Jan.17,3694.8,LAETUS LODGE,Invoice
ASC,SOCIAL SERVICES,PRIVATE,Revenue,EXTERNAL RESIDENTIAL CARE,27.Jan.17,4825.76,LAETUS LODGE,Invoice
ASC,SOCIAL SERVICES,PRIVATE,Revenue,EXTERNAL RESIDENTIAL CARE,27.Jan.17,5277.24,LAETUS LODGE,Invoice
ASC,SOCIAL SERVICES,PRIVATE,Revenue,EXTERNAL RESIDENTIAL CARE,27.Jan.17,7502.16,LAETUS LODGE,Invoice
ASC,SOCIAL SERVICES,PRIVATE,Revenue,EXTERNAL RESIDENTIAL CARE,27.Jan.17,6236.68,LAETUS LODGE,Invoice
ASC,SOCIAL SERVICES,PRIVATE,Revenue,EXTERNAL RESIDENTIAL CARE,27.Jan.17,8454.94,HEALTHLINC INDIVIDUAL CARE,Invoice
ASC,SOCIAL SERVICES,PRIVATE,Revenue,EXTERNAL RESIDENTIAL CARE,12.Jan.17,3685.12,METROPOLITAN HOUSING TRUST,Invoice
ASC,SOCIAL SERVICES,PRIVATE,Revenue,EXTERNAL RESIDENTIAL CARE,12.Jan.17,3687.52,METROPOLITAN HOUSING TRUST,Invoice
ASC,SOCIAL SERVICES,PRIVATE,Revenue,EXTERNAL RESIDENTIAL CARE,12.Jan.17,3812.04,METROPOLITAN HOUSING TRUST,Invoice
ASC,SOCIAL SERVICES,PRIVATE,Revenue,EXTERNAL RESIDENTIAL CARE,12.Jan.17,3685.12,METROPOLITAN HOUSING TRUST,Invoice
ASC,SOCIAL SERVICES,PRIVATE,Revenue,EXTERNAL RESIDENTIAL CARE,12.Jan.17,3685.28,METROPOLITAN HOUSING TRUST,Invoice
ASC,SOCIAL SERVICES,PRIVATE,Revenue,EXTERNAL RESIDENTIAL CARE,12.Jan.17,3667.56,METROPOLITAN HOUSING TRUST,Invoice
ASC,SOCIAL SERVICES,PRIVATE,Revenue,EXTERNAL RESIDENTIAL CARE,12.Jan.17,3687.52,METROPOLITAN HOUSING TRUST,Invoice
ASC,SOCIAL SERVICES,PRIVATE,Revenue,EXTERNAL RESIDENTIAL CARE,12.Jan.17,4790.16,METROPOLITAN HOUSING TRUST,Invoice
ASC,SOCIAL SERVICES,PRIVATE,Revenue,EXTERNAL RESIDENTIAL CARE,12.Jan.17,4756.88,METROPOLITAN HOUSING TRUST,Invoice
ASC,SOCIAL SERVICES,PRIVATE,Revenue,EXTERNAL RESIDENTIAL CARE,12.Jan.17,3838.72,METROPOLITAN HOUSING TRUST,Invoice
ASC,SOCIAL SERVICES,PRIVATE,Revenue,EXTERNAL RESIDENTIAL CARE,12.Jan.17,3685.12,METROPOLITAN HOUSING TRUST,Invoice
ASC,SOCIAL SERVICES,PRIVATE,Revenue,EXTERNAL RESIDENTIAL CARE,12.Jan.17,4502.6,METROPOLITAN HOUSING TRUST,Invoice
ASC,SOCIAL SERVICES,PRIVATE,Revenue,EXTERNAL RESIDENTIAL CARE,12.Jan.17,4790.16,METROPOLITAN HOUSING TRUST,Invoice
ASC,SOCIAL SERVICES,PRIVATE,Revenue,EXTERNAL RESIDENTIAL CARE,12.Jan.17,4790.16,METROPOLITAN HOUSING TRUST,Invoice
ASC,SOCIAL SERVICES,PRIVATE,Revenue,EXTERNAL RESIDENTIAL CARE,12.Jan.17,4790.16,METROPOLITAN HOUSING TRUST,Invoice
ASC,SOCIAL SERVICES,PRIVATE,Revenue,EXTERNAL RESIDENTIAL CARE,03.Jan.17,2395.6,LIVABILITY,Invoice
ASC,SOCIAL SERVICES,PRIVATE,Revenue,EXTERNAL RESIDENTIAL CARE,27.Jan.17,11556.16,LOVING CARE LTD,Invoice
ASC,SOCIAL SERVICES,PRIVATE,Revenue,EXTERNAL RESIDENTIAL CARE,27.Jan.17,11549.4,LOVING CARE LTD,Invoice
ASC,SOCIAL SERVICES,PRIVATE,Revenue,EXTERNAL RESIDENTIAL CARE,27.Jan.17,11237.6,LOVING CARE LTD,Invoice
ASC,SOCIAL SERVICES,PRIVATE,Revenue,EXTERNAL RESIDENTIAL CARE,27.Jan.17,11507.76,LOVING CARE LTD,Invoice
ASC,SOCIAL SERVICES,PRIVATE,Revenue,EXTERNAL RESIDENTIAL CARE,27.Jan.17,11705.4,LOVING CARE LTD,Invoice
ASC,SOCIAL SERVICES,PRIVATE,Revenue,EXTERNAL RESIDENTIAL CARE,27.Jan.17,11705.4,LOVING CARE LTD,Invoice
ASC,SOCIAL SERVICES,PRIVATE,Revenue,EXTERNAL RESIDENTIAL CARE,27.Jan.17,11248.32,LOVING CARE LTD,Invoice
ASC,SOCIAL SERVICES,PRIVATE,Revenue,EXTERNAL RESIDENTIAL CARE,30.Jan.17,5133.28,WHITMORE VALE HOUSING ASSOCIATION LTD,Invoice
ASC,SOCIAL SERVICES,PRIVATE,Revenue,EXTERNAL RESIDENTIAL CARE,27.Jan.17,3067.97,THE MANOR HOUSE,Invoice
ASC,SOCIAL SERVICES,PRIVATE,Revenue,EXTERNAL RESIDENTIAL CARE,27.Jan.17,8596.21,RALEIGH HOUSE LTD,Invoice
ASC,SOCIAL SERVICES,PRIVATE,Revenue,EXTERNAL RESIDENTIAL CARE,18.Jan.17,3822.64,GLENCARE GROUP,Invoice
ASC,SOCIAL SERVICES,PRIVATE,Revenue,EXTERNAL RESIDENTIAL CARE,18.Jan.17,5596.56,GLENCARE GROUP,Invoice
ASC,SOCIAL SERVICES,PRIVATE,Revenue,EXTERNAL RESIDENTIAL CARE,18.Jan.17,3806.64,GLENCARE GROUP,Invoice
ASC,SOCIAL SERVICES,PRIVATE,Revenue,EXTERNAL RESIDENTIAL CARE,18.Jan.17,3844.79,GLENCARE GROUP,Invoice
ASC,SOCIAL SERVICES,PRIVATE,Revenue,EXTERNAL RESIDENTIAL CARE,18.Jan.17,5596.56,GLENCARE GROUP,Invoice
ASC,SOCIAL SERVICES,PRIVATE,Revenue,EXTERNAL RESIDENTIAL CARE,27.Jan.17,3822.64,GLENCARE GROUP,Invoice
ASC,SOCIAL SERVICES,PRIVATE,Revenue,EXTERNAL RESIDENTIAL CARE,27.Jan.17,6753.66,GLENCARE GROUP,Invoice
ASC,SOCIAL SERVICES,PRIVATE,Revenue,EXTERNAL RESIDENTIAL CARE,27.Jan.17,5596.56,GLENCARE GROUP,Invoice
ASC,SOCIAL SERVICES,PRIVATE,Revenue,EXTERNAL RESIDENTIAL CARE,27.Jan.17,3806.64,GLENCARE GROUP,Invoice
ASC,SOCIAL SERVICES,PRIVATE,Revenue,EXTERNAL RESIDENTIAL CARE,17.Jan.17,3162.56,UNITED RESPONSE,Invoice
ASC,SOCIAL SERVICES,PRIVATE,Revenue,EXTERNAL RESIDENTIAL CARE,27.Jan.17,3970.57,BEECH LODGE,Invoice
ASC,SOCIAL SERVICES,PRIVATE,Revenue,EXTERNAL RESIDENTIAL CARE,27.Jan.17,3970.57,BEECH LODGE,Invoice
ASC,SOCIAL SERVICES,PRIVATE,Revenue,EXTERNAL RESIDENTIAL CARE,27.Jan.17,3970.57,BEECH LODGE,Invoice
ASC,SOCIAL SERVICES,PRIVATE,Revenue,EXTERNAL RESIDENTIAL CARE,09.Jan.17,4181.68,ROYAL MENCAP SOCIETY,Invoice
ASC,SOCIAL SERVICES,PRIVATE,Revenue,EXTERNAL RESIDENTIAL CARE,10.Jan.17,6162.48,ROYAL MENCAP SOCIETY,Invoice
ASC,SOCIAL SERVICES,PRIVATE,Revenue,EXTERNAL RESIDENTIAL CARE,16.Jan.17,6162.48,ROYAL MENCAP SOCIETY,Invoice
ASC,SOCIAL SERVICES,PRIVATE,Revenue,EXTERNAL RESIDENTIAL CARE,16.Jan.17,4181.68,ROYAL MENCAP SOCIETY,Invoice
ASC,SOCIAL SERVICES,PRIVATE,Revenue,EXTERNAL RESIDENTIAL CARE,27.Jan.17,3498.7,EAST VIEW HOUSING MANAGEMENT LTD,Invoice
ASC,SOCIAL SERVICES,PRIVATE,Revenue,EXTERNAL RESIDENTIAL CARE,27.Jan.17,2636.68,SCOPE,Invoice
ASC,SOCIAL SERVICES,PRIVATE,Revenue,EXTERNAL RESIDENTIAL CARE,27.Jan.17,2810.68,SCOPE,Invoice
ASC,SOCIAL SERVICES,PRIVATE,Revenue,EXTERNAL RESIDENTIAL CARE,27.Jan.17,11390.42,ASHCROFT CARE SERVICES,Invoice
ASC,SOCIAL SERVICES,PRIVATE,Revenue,EXTERNAL RESIDENTIAL CARE,24.Jan.17,5273.19,229 MITCHAM LANE LTD,Invoice
ASC,SOCIAL SERVICES,PRIVATE,Revenue,EXTERNAL RESIDENTIAL CARE,24.Jan.17,5273.19,229 MITCHAM LANE LTD,Invoice
ASC,SOCIAL SERVICES,PRIVATE,Revenue,EXTERNAL RESIDENTIAL CARE,27.Jan.17,5597.76,229 MITCHAM LANE LTD,Invoice
ASC,SOCIAL SERVICES,PRIVATE,Revenue,EXTERNAL RESIDENTIAL CARE,12.Jan.17,5599.36,WINSLOW COURT,Invoice
ASC,SOCIAL SERVICES,PRIVATE,Revenue,EXTERNAL RESIDENTIAL CARE,12.Jan.17,5819.32,WINSLOW COURT,Invoice
ASC,SOCIAL SERVICES,PRIVATE,Revenue,EXTERNAL RESIDENTIAL CARE,27.Jan.17,3985.04,THE LEO TRUST,Invoice
ASC,SOCIAL SERVICES,PRIVATE,Revenue,EXTERNAL RESIDENTIAL CARE,19.Jan.17,5389.62,TRACS,Invoice
ASC,SOCIAL SERVICES,PRIVATE,Revenue,EXTERNAL RESIDENTIAL CARE,27.Jan.17,8515.42,PROGRESS HOUSING MARLOW,Invoice
ASC,SOCIAL SERVICES,PRIVATE,Revenue,EXTERNAL RESIDENTIAL CARE,27.Jan.17,3990.72,CHERRY LODGE,Invoice
ASC,SOCIAL SERVICES,PRIVATE,Revenue,EXTERNAL RESIDENTIAL CARE,19.Jan.17,3557.6,RIDGEWOOD CARE SERVICES LTD,Invoice
ASC,SOCIAL SERVICES,PRIVATE,Revenue,EXTERNAL RESIDENTIAL CARE,19.Jan.17,3766.44,RIDGEWOOD CARE SERVICES LTD,Invoice
ASC,SOCIAL SERVICES,PRIVATE,Revenue,EXTERNAL RESIDENTIAL CARE,16.Jan.17,4219.2,LEONARD CHESHIRE,Invoice
ASC,SOCIAL SERVICES,PRIVATE,Revenue,EXTERNAL RESIDENTIAL CARE,09.Jan.17,4645.88,LOTUS CARE HOME LTD,Invoice
ASC,SOCIAL SERVICES,PRIVATE,Revenue,EXTERNAL RESIDENTIAL CARE,24.Jan.17,4645.88,LOTUS CARE HOME LTD,Invoice
ASC,SOCIAL SERVICES,PRIVATE,Revenue,EXTERNAL RESIDENTIAL CARE,09.Jan.17,5582.92,M JINGREE T/A SUNLIGHT HOUSE,Invoice
ASC,SOCIAL SERVICES,PRIVATE,Revenue,EXTERNAL RESIDENTIAL CARE,12.Jan.17,2763.08,THE HOME FARM TRUST LTD,Invoice
ASC,SOCIAL SERVICES,PRIVATE,Revenue,EXTERNAL RESIDENTIAL CARE,12.Jan.17,2491.76,THE HOME FARM TRUST LTD,Invoice
ASC,SOCIAL SERVICES,PRIVATE,Revenue,EXTERNAL RESIDENTIAL CARE,12.Jan.17,3734.16,THE HOME FARM TRUST LTD,Invoice
ASC,SOCIAL SERVICES,PRIVATE,Revenue,EXTERNAL RESIDENTIAL CARE,27.Jan.17,4419.27,ALLIED CARE (MHS) LTD,Invoice
ASC,SOCIAL SERVICES,PRIVATE,Revenue,EXTERNAL RESIDENTIAL CARE,27.Jan.17,7104.27,ALLIED CARE (MHS) LTD,Invoice
ASC,SOCIAL SERVICES,PRIVATE,Revenue,EXTERNAL RESIDENTIAL CARE,27.Jan.17,4723.08,ALLIED CARE (MHS) LTD,Invoice
ASC,SOCIAL SERVICES,PRIVATE,Revenue,EXTERNAL RESIDENTIAL CARE,27.Jan.17,5100.43,ALLIED CARE (MHS) LTD,Invoice
ASC,SOCIAL SERVICES,PRIVATE,Revenue,EXTERNAL RESIDENTIAL CARE,31.Jan.17,3991.6,ALLIED CARE (MHS) LTD,Invoice
ASC,SOCIAL SERVICES,PRIVATE,Revenue,EXTERNAL RESIDENTIAL CARE,31.Jan.17,6416.76,ALLIED CARE (MHS) LTD,Invoice
ASC,SOCIAL SERVICES,PRIVATE,Revenue,EXTERNAL RESIDENTIAL CARE,31.Jan.17,4723.08,ALLIED CARE (MHS) LTD,Invoice
ASC,SOCIAL SERVICES,PRIVATE,Revenue,EXTERNAL RESIDENTIAL CARE,31.Jan.17,4606.84,ALLIED CARE (MHS) LTD,Invoice
ASC,SOCIAL SERVICES,PRIVATE,Revenue,EXTERNAL RESIDENTIAL CARE,04.Jan.17,12738.34,ILG LTD,Invoice
ASC,SOCIAL SERVICES,PRIVATE,Revenue,EXTERNAL RESIDENTIAL CARE,27.Jan.17,7447.56,TOTTERDOWN,Invoice
ASC,SOCIAL SERVICES,PRIVATE,Revenue,EXTERNAL RESIDENTIAL CARE,27.Jan.17,3696.92,TOTTERDOWN,Invoice
ASC,SOCIAL SERVICES,PRIVATE,Revenue,EXTERNAL RESIDENTIAL CARE,04.Jan.17,178.8,SUSSEX HEALTH CARE,Invoice
ASC,SOCIAL SERVICES,PRIVATE,Revenue,EXTERNAL RESIDENTIAL CARE,12.Jan.17,8312.22,LONDON CARE PARTNERSHIP LTD,Invoice
ASC,SOCIAL SERVICES,PRIVATE,Revenue,EXTERNAL RESIDENTIAL CARE,27.Jan.17,8048.94,LONDON CARE PARTNERSHIP LTD,Invoice
ASC,SOCIAL SERVICES,PRIVATE,Revenue,EXTERNAL RESIDENTIAL CARE,27.Jan.17,9251.28,LONDON CARE PARTNERSHIP LTD,Invoice
ASC,SOCIAL SERVICES,PRIVATE,Revenue,EXTERNAL RESIDENTIAL CARE,27.Jan.17,8463,LONDON CARE PARTNERSHIP LTD,Invoice
ASC,SOCIAL SERVICES,PRIVATE,Revenue,EXTERNAL RESIDENTIAL CARE,27.Jan.17,8573.71,LONDON CARE PARTNERSHIP LTD,Invoice
ASC,SOCIAL SERVICES,PRIVATE,Revenue,EXTERNAL RESIDENTIAL CARE,27.Jan.17,8573.72,LONDON CARE PARTNERSHIP LTD,Invoice
ASC,SOCIAL SERVICES,PRIVATE,Revenue,EXTERNAL RESIDENTIAL CARE,27.Jan.17,8795.15,LONDON CARE PARTNERSHIP LTD,Invoice
ASC,SOCIAL SERVICES,PRIVATE,Revenue,EXTERNAL RESIDENTIAL CARE,27.Jan.17,9481.57,LONDON CARE PARTNERSHIP LTD,Invoice
ASC,SOCIAL SERVICES,PRIVATE,Revenue,EXTERNAL RESIDENTIAL CARE,05.Jan.17,5002.24,LARKFIELD HALL LTD T/A PEPENBURY,Invoice
ASC,SOCIAL SERVICES,PRIVATE,Revenue,EXTERNAL RESIDENTIAL CARE,03.Jan.17,4242,NUTLEY HALL LTD,Invoice
ASC,SOCIAL SERVICES,PRIVATE,Revenue,EXTERNAL RESIDENTIAL CARE,03.Jan.17,4383.31,NUTLEY HALL LTD,Invoice
ASC,SOCIAL SERVICES,PRIVATE,Revenue,EXTERNAL RESIDENTIAL CARE,27.Jan.17,4383.32,NUTLEY HALL LTD,Invoice
ASC,SOCIAL SERVICES,PRIVATE,Revenue,EXTERNAL RESIDENTIAL CARE,27.Jan.17,3523.28,CRAEGMOOR OLD RECTORY BREDE PRIORY,Invoice
ASC,SOCIAL SERVICES,PRIVATE,Revenue,EXTERNAL RESIDENTIAL CARE,16.Jan.17,8192.86,CONDOVER COLLEGE LTD,Invoice
ASC,SOCIAL SERVICES,PRIVATE,Revenue,EXTERNAL RESIDENTIAL CARE,27.Jan.17,7634.55,PATHWAY HEALTHCARE,Invoice
ASC,SOCIAL SERVICES,PRIVATE,Revenue,EXTERNAL RESIDENTIAL CARE,27.Jan.17,7184.16,PATHWAY HEALTHCARE,Invoice
ASC,SOCIAL SERVICES,PRIVATE,Revenue,EXTERNAL RESIDENTIAL CARE,12.Jan.17,11134.88,KISIMUL GROUP LTD,Invoice
ASC,SOCIAL SERVICES,PRIVATE,Revenue,EXTERNAL RESIDENTIAL CARE,31.Jan.17,11134.88,KISIMUL GROUP LTD,Invoice
ASC,SOCIAL SERVICES,PRIVATE,Revenue,EXTERNAL RESIDENTIAL CARE,20.Jan.17,2774.84,HASTINGS & BEXHILL MENCAP SOCIETY,Invoice
ASC,SOCIAL SERVICES,PRIVATE,Revenue,EXTERNAL RESIDENTIAL CARE,19.Jan.17,3538.4,CSS LTD T/A  THF CARE ESTATES LTD,Invoice
ASC,SOCIAL SERVICES,PRIVATE,Revenue,EXTERNAL RESIDENTIAL CARE,11.Jan.17,7554.24,NORCREST (2000) HOME LTD,Invoice
ASC,SOCIAL SERVICES,PRIVATE,Revenue,EXTERNAL RESIDENTIAL CARE,11.Jan.17,7554.24,NORCREST (2000) HOME LTD,Invoice
ASC,SOCIAL SERVICES,PRIVATE,Revenue,EXTERNAL RESIDENTIAL CARE,25.Jan.17,10566.57,SEQUENCE CARE GROUP,Invoice
ASC,SOCIAL SERVICES,PRIVATE,Revenue,EXTERNAL RESIDENTIAL CARE,13.Jan.17,4598.8,ALLIED CARE LTD T/A ASHSTEAD HOUSE LTD,Invoice
ASC,SOCIAL SERVICES,PRIVATE,Revenue,EXTERNAL RESIDENTIAL CARE,16.Jan.17,2792.08,ALLIED CARE LTD T/A ASHSTEAD HOUSE LTD,Invoice
ASC,SOCIAL SERVICES,PRIVATE,Revenue,EXTERNAL RESIDENTIAL CARE,24.Jan.17,1806.86,ALLIED CARE LTD T/A ASHSTEAD HOUSE LTD,Invoice
ASC,SOCIAL SERVICES,PRIVATE,Revenue,EXTERNAL RESIDENTIAL CARE,30.Jan.17,3121.36,INSPIRE CARE OUTREACH LIMITED,Invoice
ASC,SOCIAL SERVICES,PRIVATE,Revenue,EXTERNAL RESIDENTIAL CARE,19.Jan.17,7800,C.H.O.I.C.E LIMITED,Invoice
ASC,SOCIAL SERVICES,PRIVATE,Revenue,EXTERNAL RESIDENTIAL CARE,19.Jan.17,7471.92,C.H.O.I.C.E LIMITED,Invoice
ASC,SOCIAL SERVICES,PRIVATE,Revenue,EXTERNAL RESIDENTIAL CARE,19.Jan.17,12947.16,C.H.O.I.C.E LIMITED,Invoice
ASC,SOCIAL SERVICES,PRIVATE,Revenue,EXTERNAL RESIDENTIAL CARE,20.Jan.17,7800,C.H.O.I.C.E LIMITED,Invoice
ASC,SOCIAL SERVICES,PRIVATE,Revenue,EXTERNAL RESIDENTIAL CARE,20.Jan.17,7471.92,C.H.O.I.C.E LIMITED,Invoice
ASC,SOCIAL SERVICES,PRIVATE,Revenue,EXTERNAL RESIDENTIAL CARE,27.Jan.17,9861,"CRAEGMOOR, PARKCARE HOMES (NO2) LTD TA W",Invoice
ASC,SOCIAL SERVICES,PRIVATE,Revenue,EXTERNAL RESIDENTIAL CARE,26.Jan.17,6315.12,KEYS HILL PARK LIMITED,Invoice
ASC,SOCIAL SERVICES,PRIVATE,Revenue,EXTERNAL RESIDENTIAL CARE,26.Jan.17,6315.12,KEYS HILL PARK LIMITED,Invoice
ASC,SOCIAL SERVICES,PRIVATE,Revenue,EXTERNAL RESIDENTIAL CARE,26.Jan.17,6315.12,KEYS HILL PARK LIMITED,Invoice
ASC,SOCIAL SERVICES,PRIVATE,Revenue,EXTERNAL RESIDENTIAL CARE,26.Jan.17,6315.12,KEYS HILL PARK LIMITED,Invoice
ASC,SOCIAL SERVICES,PRIVATE,Revenue,EXTERNAL RESIDENTIAL CARE,26.Jan.17,6315.12,KEYS HILL PARK LIMITED,Invoice
ASC,SOCIAL SERVICES,PRIVATE,Revenue,EXTERNAL RESIDENTIAL CARE,26.Jan.17,6315.12,KEYS HILL PARK LIMITED,Invoice
ASC,SOCIAL SERVICES,PRIVATE,Revenue,EXTERNAL RESIDENTIAL CARE,12.Jan.17,9264.4,HEATHCOTES(SOUTHERN)LTD,Invoice
ASC,SOCIAL SERVICES,PRIVATE,Revenue,EXTERNAL RESIDENTIAL CARE,16.Jan.17,32924.57,NASH CARE HOMES LIMITED,Invoice
ASC,SOCIAL SERVICES,PRIVATE,Revenue,EXTERNAL RESIDENTIAL CARE,09.Jan.17,12361.17,ACORN VILLAGE LIMITED,Invoice
ASC,SOCIAL SERVICES,PRIVATE,Revenue,EXTERNAL RESIDENTIAL CARE,27.Jan.17,5178.32,ACORN VILLAGE LIMITED,Invoice
ASC,SOCIAL SERVICES,PRIVATE,Revenue,EXTERNAL RESIDENTIAL CARE,27.Jan.17,18885.27,ZERO THREE CARE HOMES LLP,Invoice
ASC,SOCIAL SERVICES,PRIVATE,Revenue,EXTERNAL RESI RESPITE CARE,30.Jan.17,1036.08,SEASHELL TRUST,Invoice
ASC,SOCIAL SERVICES,PRIVATE,Revenue,ONE TO ONE CARE,09.Jan.17,2813.3,RAINBOW MEDICAL SERVICES,Invoice
ASC,SOCIAL SERVICES,PRIVATE,Revenue,ONE TO ONE CARE,04.Jan.17,1617.5,ASIAN ELDERS SUPPORT SCHEME,Invoice
ASC,SOCIAL SERVICES,PRIVATE,Revenue,ONE TO ONE CARE,27.Jan.17,698.12,ST MARYS RESIDENTIAL HOME,Invoice
ASC,SOCIAL SERVICES,PRIVATE,Revenue,ONE TO ONE CARE,27.Jan.17,653.39,ST MARYS RESIDENTIAL HOME,Invoice
ASC,SOCIAL SERVICES,PRIVATE,Revenue,ONE TO ONE CARE,06.Jan.17,3131.52,CAMERON LODGE LIMITED,Invoice
ASC,SOCIAL SERVICES,PRIVATE,Revenue,ONE TO ONE CARE,20.Jan.17,547.6,LIFEWAYS COMMUNITY CARE LTD,Invoice
ASC,SOCIAL SERVICES,PRIVATE,Revenue,ONE TO ONE CARE,04.Jan.17,1062.86,VOYAGE CARE LTD,Invoice
ASC,SOCIAL SERVICES,PRIVATE,Revenue,ONE TO ONE CARE,26.Jan.17,1364.04,MACINTYRE CARE,Invoice
ASC,SOCIAL SERVICES,PRIVATE,Revenue,ONE TO ONE CARE,26.Jan.17,1364.04,MACINTYRE CARE,Invoice
ASC,SOCIAL SERVICES,PRIVATE,Revenue,ONE TO ONE CARE,26.Jan.17,1928.52,MACINTYRE CARE,Invoice
ASC,SOCIAL SERVICES,PRIVATE,Revenue,ONE TO ONE CARE,26.Jan.17,1364.04,MACINTYRE CARE,Invoice
ASC,SOCIAL SERVICES,PRIVATE,Revenue,ONE TO ONE CARE,26.Jan.17,701.52,MACINTYRE CARE,Invoice
ASC,SOCIAL SERVICES,PRIVATE,Revenue,ONE TO ONE CARE,27.Jan.17,1337.25,THE COMMUNITY CARE COMPANY UK LTD,Invoice
ASC,SOCIAL SERVICES,PRIVATE,Revenue,ONE TO ONE CARE,27.Jan.17,1172.55,THE COMMUNITY CARE COMPANY UK LTD,Invoice
ASC,SOCIAL SERVICES,PRIVATE,Revenue,ONE TO ONE CARE,12.Jan.17,1844.64,METROPOLITAN HOUSING TRUST,Invoice
ASC,SOCIAL SERVICES,PRIVATE,Revenue,ONE TO ONE CARE,12.Jan.17,2049.6,METROPOLITAN HOUSING TRUST,Invoice
ASC,SOCIAL SERVICES,PRIVATE,Revenue,ONE TO ONE CARE,12.Jan.17,2265.6,METROPOLITAN HOUSING TRUST,Invoice
ASC,SOCIAL SERVICES,PRIVATE,Revenue,ONE TO ONE CARE,12.Jan.17,1642.56,METROPOLITAN HOUSING TRUST,Invoice
ASC,SOCIAL SERVICES,PRIVATE,Revenue,ONE TO ONE CARE,26.Jan.17,2095.68,METROPOLITAN HOUSING TRUST,Invoice
ASC,SOCIAL SERVICES,PRIVATE,Revenue,ONE TO ONE CARE,26.Jan.17,1359.36,METROPOLITAN HOUSING TRUST,Invoice
ASC,SOCIAL SERVICES,PRIVATE,Revenue,ONE TO ONE CARE,26.Jan.17,2049.6,METROPOLITAN HOUSING TRUST,Invoice
ASC,SOCIAL SERVICES,PRIVATE,Revenue,ONE TO ONE CARE,12.Jan.17,500.14,FRONTIER SUPPORT SERVICES LTD,Invoice
ASC,SOCIAL SERVICES,PRIVATE,Revenue,ONE TO ONE CARE,12.Jan.17,716.24,FRONTIER SUPPORT SERVICES LTD,Invoice
ASC,SOCIAL SERVICES,PRIVATE,Revenue,ONE TO ONE CARE,18.Jan.17,716.24,FRONTIER SUPPORT SERVICES LTD,Invoice
ASC,SOCIAL SERVICES,PRIVATE,Revenue,ONE TO ONE CARE,18.Jan.17,500.14,FRONTIER SUPPORT SERVICES LTD,Invoice
ASC,SOCIAL SERVICES,PRIVATE,Revenue,ONE TO ONE CARE,30.Jan.17,751.2,HARROW MENCAP,Invoice
ASC,SOCIAL SERVICES,PRIVATE,Revenue,ONE TO ONE CARE,05.Jan.17,807.68,LARKFIELD HALL LTD T/A PEPENBURY,Invoice
ASC,SOCIAL SERVICES,PRIVATE,Revenue,ONE TO ONE CARE,25.Jan.17,3000,CRAEGMOOR OLD RECTORY BREDE PRIORY,Invoice
ASC,SOCIAL SERVICES,PRIVATE,Revenue,ONE TO ONE CARE,19.Jan.17,835.84,CSS LTD T/A  THF CARE ESTATES LTD,Invoice
ASC,SOCIAL SERVICES,PRIVATE,Revenue,ONE TO ONE CARE,27.Jan.17,3490.3,ZERO THREE CARE HOMES LLP,Invoice
ASC,SOCIAL SERVICES,VOL ASS,Revenue,SUPPORTED HOUSING PROGRAMME,09.Jan.17,13777.9,RAINBOW MEDICAL SERVICES,Invoice
ASC,SOCIAL SERVICES,VOL ASS,Revenue,SUPPORTED HOUSING PROGRAMME,09.Jan.17,5246.36,THE CHESTNUTS,Invoice
ASC,SOCIAL SERVICES,VOL ASS,Revenue,SUPPORTED HOUSING PROGRAMME,26.Jan.17,5246.36,THE CHESTNUTS,Invoice
ASC,SOCIAL SERVICES,VOL ASS,Revenue,SUPPORTED HOUSING PROGRAMME,16.Jan.17,5543.72,NORWOOD SCHOOLS LTD,Invoice
ASC,SOCIAL SERVICES,VOL ASS,Revenue,SUPPORTED HOUSING PROGRAMME,03.Jan.17,7336,LIFEWAYS COMMUNITY CARE LTD,Invoice
ASC,SOCIAL SERVICES,VOL ASS,Revenue,SUPPORTED HOUSING PROGRAMME,20.Jan.17,2596.04,LIFEWAYS COMMUNITY CARE LTD,Invoice
ASC,SOCIAL SERVICES,VOL ASS,Revenue,SUPPORTED HOUSING PROGRAMME,20.Jan.17,2166.24,LIFEWAYS COMMUNITY CARE LTD,Invoice
ASC,SOCIAL SERVICES,VOL ASS,Revenue,SUPPORTED HOUSING PROGRAMME,20.Jan.17,2227.64,LIFEWAYS COMMUNITY CARE LTD,Invoice
ASC,SOCIAL SERVICES,VOL ASS,Revenue,SUPPORTED HOUSING PROGRAMME,20.Jan.17,1982.04,LIFEWAYS COMMUNITY CARE LTD,Invoice
ASC,SOCIAL SERVICES,VOL ASS,Revenue,SUPPORTED HOUSING PROGRAMME,20.Jan.17,2289.04,LIFEWAYS COMMUNITY CARE LTD,Invoice
ASC,SOCIAL SERVICES,VOL ASS,Revenue,SUPPORTED HOUSING PROGRAMME,20.Jan.17,1982.04,LIFEWAYS COMMUNITY CARE LTD,Invoice
ASC,SOCIAL SERVICES,VOL ASS,Revenue,SUPPORTED HOUSING PROGRAMME,20.Jan.17,3885.44,LIFEWAYS COMMUNITY CARE LTD,Invoice
ASC,SOCIAL SERVICES,VOL ASS,Revenue,SUPPORTED HOUSING PROGRAMME,20.Jan.17,2411.84,LIFEWAYS COMMUNITY CARE LTD,Invoice
ASC,SOCIAL SERVICES,VOL ASS,Revenue,SUPPORTED HOUSING PROGRAMME,20.Jan.17,1736.44,LIFEWAYS COMMUNITY CARE LTD,Invoice
ASC,SOCIAL SERVICES,VOL ASS,Revenue,SUPPORTED HOUSING PROGRAMME,20.Jan.17,1920.64,LIFEWAYS COMMUNITY CARE LTD,Invoice
ASC,SOCIAL SERVICES,VOL ASS,Revenue,SUPPORTED HOUSING PROGRAMME,20.Jan.17,3210.04,LIFEWAYS COMMUNITY CARE LTD,Invoice
ASC,SOCIAL SERVICES,VOL ASS,Revenue,SUPPORTED HOUSING PROGRAMME,20.Jan.17,2394.2,LIFEWAYS COMMUNITY CARE LTD,Invoice
ASC,SOCIAL SERVICES,VOL ASS,Revenue,SUPPORTED HOUSING PROGRAMME,20.Jan.17,2551.16,LIFEWAYS COMMUNITY CARE LTD,Invoice
ASC,SOCIAL SERVICES,VOL ASS,Revenue,SUPPORTED HOUSING PROGRAMME,20.Jan.17,3335.96,LIFEWAYS COMMUNITY CARE LTD,Invoice
ASC,SOCIAL SERVICES,VOL ASS,Revenue,SUPPORTED HOUSING PROGRAMME,20.Jan.17,2603.48,LIFEWAYS COMMUNITY CARE LTD,Invoice
ASC,SOCIAL SERVICES,VOL ASS,Revenue,SUPPORTED HOUSING PROGRAMME,20.Jan.17,2969.72,LIFEWAYS COMMUNITY CARE LTD,Invoice
ASC,SOCIAL SERVICES,VOL ASS,Revenue,SUPPORTED HOUSING PROGRAMME,20.Jan.17,2341.88,LIFEWAYS COMMUNITY CARE LTD,Invoice
ASC,SOCIAL SERVICES,VOL ASS,Revenue,SUPPORTED HOUSING PROGRAMME,20.Jan.17,2551.16,LIFEWAYS COMMUNITY CARE LTD,Invoice
ASC,SOCIAL SERVICES,VOL ASS,Revenue,SUPPORTED HOUSING PROGRAMME,20.Jan.17,1444.56,LIFEWAYS COMMUNITY CARE LTD,Invoice
ASC,SOCIAL SERVICES,VOL ASS,Revenue,SUPPORTED HOUSING PROGRAMME,20.Jan.17,2025.24,LIFEWAYS COMMUNITY CARE LTD,Invoice
ASC,SOCIAL SERVICES,VOL ASS,Revenue,SUPPORTED HOUSING PROGRAMME,20.Jan.17,2025.24,LIFEWAYS COMMUNITY CARE LTD,Invoice
ASC,SOCIAL SERVICES,VOL ASS,Revenue,SUPPORTED HOUSING PROGRAMME,20.Jan.17,2025.24,LIFEWAYS COMMUNITY CARE LTD,Invoice
ASC,SOCIAL SERVICES,VOL ASS,Revenue,SUPPORTED HOUSING PROGRAMME,20.Jan.17,2244.28,LIFEWAYS COMMUNITY CARE LTD,Invoice
ASC,SOCIAL SERVICES,VOL ASS,Revenue,SUPPORTED HOUSING PROGRAMME,20.Jan.17,2518.08,LIFEWAYS COMMUNITY CARE LTD,Invoice
ASC,SOCIAL SERVICES,VOL ASS,Revenue,SUPPORTED HOUSING PROGRAMME,20.Jan.17,2025.24,LIFEWAYS COMMUNITY CARE LTD,Invoice
ASC,SOCIAL SERVICES,VOL ASS,Revenue,SUPPORTED HOUSING PROGRAMME,20.Jan.17,2244.28,LIFEWAYS COMMUNITY CARE LTD,Invoice
ASC,SOCIAL SERVICES,VOL ASS,Revenue,SUPPORTED HOUSING PROGRAMME,20.Jan.17,1860.96,LIFEWAYS COMMUNITY CARE LTD,Invoice
ASC,SOCIAL SERVICES,VOL ASS,Revenue,SUPPORTED HOUSING PROGRAMME,20.Jan.17,2341.88,LIFEWAYS COMMUNITY CARE LTD,Invoice
ASC,SOCIAL SERVICES,VOL ASS,Revenue,SUPPORTED HOUSING PROGRAMME,20.Jan.17,3100.52,LIFEWAYS COMMUNITY CARE LTD,Invoice
ASC,SOCIAL SERVICES,VOL ASS,Revenue,SUPPORTED HOUSING PROGRAMME,26.Jan.17,7336,LIFEWAYS COMMUNITY CARE LTD,Invoice
ASC,SOCIAL SERVICES,VOL ASS,Revenue,SUPPORTED HOUSING PROGRAMME,12.Jan.17,7972.24,CHOICE SUPPORT,Invoice
ASC,SOCIAL SERVICES,VOL ASS,Revenue,SUPPORTED HOUSING PROGRAMME,19.Jan.17,1687.76,C M CARE LTD,Invoice
ASC,SOCIAL SERVICES,VOL ASS,Revenue,SUPPORTED HOUSING PROGRAMME,24.Jan.17,2817.48,CAREOLINE,Invoice
ASC,SOCIAL SERVICES,VOL ASS,Revenue,SUPPORTED HOUSING PROGRAMME,24.Jan.17,2817.48,CAREOLINE,Invoice
ASC,SOCIAL SERVICES,VOL ASS,Revenue,SUPPORTED HOUSING PROGRAMME,24.Jan.17,2817.48,CAREOLINE,Invoice
ASC,SOCIAL SERVICES,VOL ASS,Revenue,SUPPORTED HOUSING PROGRAMME,27.Jan.17,1700,LAETUS LODGE,Invoice
ASC,SOCIAL SERVICES,VOL ASS,Revenue,SUPPORTED HOUSING PROGRAMME,27.Jan.17,5645.88,LAETUS LODGE,Invoice
ASC,SOCIAL SERVICES,VOL ASS,Revenue,SUPPORTED HOUSING PROGRAMME,27.Jan.17,21730.12,LAETUS LODGE,Invoice
ASC,SOCIAL SERVICES,VOL ASS,Revenue,SUPPORTED HOUSING PROGRAMME,11.Jan.17,1512,METROPOLITAN HOUSING TRUST,Invoice
ASC,SOCIAL SERVICES,VOL ASS,Revenue,SUPPORTED HOUSING PROGRAMME,26.Jan.17,1458,METROPOLITAN HOUSING TRUST,Invoice
ASC,SOCIAL SERVICES,VOL ASS,Revenue,SUPPORTED HOUSING PROGRAMME,09.Jan.17,2541.12,ROYAL MENCAP SOCIETY,Invoice
ASC,SOCIAL SERVICES,VOL ASS,Revenue,SUPPORTED HOUSING PROGRAMME,09.Jan.17,7211.2,ROYAL MENCAP SOCIETY,Invoice
ASC,SOCIAL SERVICES,VOL ASS,Revenue,SUPPORTED HOUSING PROGRAMME,09.Jan.17,1783,ROYAL MENCAP SOCIETY,Invoice
ASC,SOCIAL SERVICES,VOL ASS,Revenue,SUPPORTED HOUSING PROGRAMME,10.Jan.17,3338.8,ROYAL MENCAP SOCIETY,Invoice
ASC,SOCIAL SERVICES,VOL ASS,Revenue,SUPPORTED HOUSING PROGRAMME,10.Jan.17,5308.36,ROYAL MENCAP SOCIETY,Invoice
ASC,SOCIAL SERVICES,VOL ASS,Revenue,SUPPORTED HOUSING PROGRAMME,10.Jan.17,2296.56,ROYAL MENCAP SOCIETY,Invoice
ASC,SOCIAL SERVICES,VOL ASS,Revenue,SUPPORTED HOUSING PROGRAMME,16.Jan.17,3338.8,ROYAL MENCAP SOCIETY,Invoice
ASC,SOCIAL SERVICES,VOL ASS,Revenue,SUPPORTED HOUSING PROGRAMME,16.Jan.17,5308.36,ROYAL MENCAP SOCIETY,Invoice
ASC,SOCIAL SERVICES,VOL ASS,Revenue,SUPPORTED HOUSING PROGRAMME,16.Jan.17,2296.56,ROYAL MENCAP SOCIETY,Invoice
ASC,SOCIAL SERVICES,VOL ASS,Revenue,SUPPORTED HOUSING PROGRAMME,16.Jan.17,2541.12,ROYAL MENCAP SOCIETY,Invoice
ASC,SOCIAL SERVICES,VOL ASS,Revenue,SUPPORTED HOUSING PROGRAMME,16.Jan.17,7211.2,ROYAL MENCAP SOCIETY,Invoice
ASC,SOCIAL SERVICES,VOL ASS,Revenue,SUPPORTED HOUSING PROGRAMME,16.Jan.17,1783,ROYAL MENCAP SOCIETY,Invoice
ASC,SOCIAL SERVICES,VOL ASS,Revenue,SUPPORTED HOUSING PROGRAMME,23.Jan.17,5310.92,ST ELIZABETHS CENTRE,Invoice
ASC,SOCIAL SERVICES,VOL ASS,Revenue,SUPPORTED HOUSING PROGRAMME,12.Jan.17,1877.92,FRONTIER SUPPORT SERVICES LTD,Invoice
ASC,SOCIAL SERVICES,VOL ASS,Revenue,SUPPORTED HOUSING PROGRAMME,12.Jan.17,3447.88,FRONTIER SUPPORT SERVICES LTD,Invoice
ASC,SOCIAL SERVICES,VOL ASS,Revenue,SUPPORTED HOUSING PROGRAMME,12.Jan.17,15981.92,FRONTIER SUPPORT SERVICES LTD,Invoice
ASC,SOCIAL SERVICES,VOL ASS,Revenue,SUPPORTED HOUSING PROGRAMME,12.Jan.17,1251.12,FRONTIER SUPPORT SERVICES LTD,Invoice
ASC,SOCIAL SERVICES,VOL ASS,Revenue,SUPPORTED HOUSING PROGRAMME,12.Jan.17,1697.72,FRONTIER SUPPORT SERVICES LTD,Invoice
ASC,SOCIAL SERVICES,VOL ASS,Revenue,SUPPORTED HOUSING PROGRAMME,12.Jan.17,1019.2,FRONTIER SUPPORT SERVICES LTD,Invoice
ASC,SOCIAL SERVICES,VOL ASS,Revenue,SUPPORTED HOUSING PROGRAMME,12.Jan.17,1543.72,FRONTIER SUPPORT SERVICES LTD,Invoice
ASC,SOCIAL SERVICES,VOL ASS,Revenue,SUPPORTED HOUSING PROGRAMME,12.Jan.17,1361.2,FRONTIER SUPPORT SERVICES LTD,Invoice
ASC,SOCIAL SERVICES,VOL ASS,Revenue,SUPPORTED HOUSING PROGRAMME,12.Jan.17,1363.36,FRONTIER SUPPORT SERVICES LTD,Invoice
ASC,SOCIAL SERVICES,VOL ASS,Revenue,SUPPORTED HOUSING PROGRAMME,12.Jan.17,1105.2,FRONTIER SUPPORT SERVICES LTD,Invoice
ASC,SOCIAL SERVICES,VOL ASS,Revenue,SUPPORTED HOUSING PROGRAMME,18.Jan.17,1697.72,FRONTIER SUPPORT SERVICES LTD,Invoice
ASC,SOCIAL SERVICES,VOL ASS,Revenue,SUPPORTED HOUSING PROGRAMME,18.Jan.17,1363.36,FRONTIER SUPPORT SERVICES LTD,Invoice
ASC,SOCIAL SERVICES,VOL ASS,Revenue,SUPPORTED HOUSING PROGRAMME,18.Jan.17,1105.2,FRONTIER SUPPORT SERVICES LTD,Invoice
ASC,SOCIAL SERVICES,VOL ASS,Revenue,SUPPORTED HOUSING PROGRAMME,18.Jan.17,1877.92,FRONTIER SUPPORT SERVICES LTD,Invoice
ASC,SOCIAL SERVICES,VOL ASS,Revenue,SUPPORTED HOUSING PROGRAMME,18.Jan.17,1543.72,FRONTIER SUPPORT SERVICES LTD,Invoice
ASC,SOCIAL SERVICES,VOL ASS,Revenue,SUPPORTED HOUSING PROGRAMME,18.Jan.17,3447.88,FRONTIER SUPPORT SERVICES LTD,Invoice
ASC,SOCIAL SERVICES,VOL ASS,Revenue,SUPPORTED HOUSING PROGRAMME,18.Jan.17,1019.2,FRONTIER SUPPORT SERVICES LTD,Invoice
ASC,SOCIAL SERVICES,VOL ASS,Revenue,SUPPORTED HOUSING PROGRAMME,18.Jan.17,15981.92,FRONTIER SUPPORT SERVICES LTD,Invoice
ASC,SOCIAL SERVICES,VOL ASS,Revenue,SUPPORTED HOUSING PROGRAMME,18.Jan.17,1361.2,FRONTIER SUPPORT SERVICES LTD,Invoice
ASC,SOCIAL SERVICES,VOL ASS,Revenue,SUPPORTED HOUSING PROGRAMME,03.Jan.17,8744.83,PRECIOUS HOMES LTD,Invoice
ASC,SOCIAL SERVICES,VOL ASS,Revenue,SUPPORTED HOUSING PROGRAMME,27.Jan.17,2889.82,PRECIOUS HOMES LTD,Invoice
ASC,SOCIAL SERVICES,VOL ASS,Revenue,SUPPORTED HOUSING PROGRAMME,12.Jan.17,5454.68,INDEPENDENCE HOMES LTD,Invoice
ASC,SOCIAL SERVICES,VOL ASS,Revenue,SUPPORTED HOUSING PROGRAMME,12.Jan.17,5710.84,INDEPENDENCE HOMES LTD,Invoice
ASC,SOCIAL SERVICES,VOL ASS,Revenue,SUPPORTED HOUSING PROGRAMME,05.Jan.17,1626.12,THE BRANDON TRUST,Invoice
ASC,SOCIAL SERVICES,VOL ASS,Revenue,SUPPORTED HOUSING PROGRAMME,20.Jan.17,6120,RELIABLE PERSONNEL LTD,Invoice
ASC,SOCIAL SERVICES,VOL ASS,Revenue,SUPPORTED HOUSING PROGRAMME,20.Jan.17,4400,MORTON GARDENS,Invoice
ASC,SOCIAL SERVICES,VOL ASS,Revenue,SUPPORTED HOUSING PROGRAMME,27.Jan.17,7876.84,CURANS CARE LTD,Invoice
ASC,SOCIAL SERVICES,VOL ASS,Revenue,SUPPORTED HOUSING PROGRAMME,27.Jan.17,3740.12,CURANS CARE LTD,Invoice
ASC,SOCIAL SERVICES,VOL ASS,Revenue,SUPPORTED HOUSING PROGRAMME,27.Jan.17,7882.08,CURANS CARE LTD,Invoice
ASC,SOCIAL SERVICES,VOL ASS,Revenue,SUPPORTED HOUSING PROGRAMME,27.Jan.17,6793.36,CURANS CARE LTD,Invoice
ASC,SOCIAL SERVICES,VOL ASS,Revenue,SUPPORTED HOUSING PROGRAMME,03.Jan.17,4400,STEP 4 YOU,Invoice
ASC,SOCIAL SERVICES,VOL ASS,Revenue,SUPPORTED HOUSING PROGRAMME,12.Jan.17,4740,STEP 4 YOU,Invoice
ASC,SOCIAL SERVICES,VOL ASS,Revenue,SUPPORTED HOUSING PROGRAMME,12.Jan.17,5368.57,STEP 4 YOU,Invoice
ASC,SOCIAL SERVICES,VOL ASS,Revenue,SUPPORTED HOUSING PROGRAMME,31.Jan.17,10190,A NEW LEAF,Invoice
ASC,SOCIAL SERVICES,VOL ASS,Revenue,SUPPORTED HOUSING PROGRAMME,20.Jan.17,1169.41,MS J DAVIES-BENNETTS T/A HANDSON HORSES,Invoice
ASC,SOCIAL SERVICES,DIRECT,Revenue,DIRECT PAYMENTS,23.Jan.17,804.05,REDACTED PERSONAL DATA,Invoice
ASC,SOCIAL SERVICES,DIRECT,Revenue,DIRECT PAYMENTS,24.Jan.17,741.96,HESTIA HOUSING & SUPPORT,Invoice
ASC,SOCIAL SERVICES,DIRECT,Revenue,DIRECT PAYMENTS,24.Jan.17,2257.48,HESTIA HOUSING & SUPPORT,Invoice
ASC,SOCIAL SERVICES,DIRECT,Revenue,DIRECT PAYMENTS,24.Jan.17,1027.48,HESTIA HOUSING & SUPPORT,Invoice
ASC,SOCIAL SERVICES,DIRECT,Revenue,DIRECT PAYMENTS,24.Jan.17,829.12,VIBRANCE,Invoice
ASC,SOCIAL SERVICES,DIRECT,Revenue,DIRECT PAYMENTS,24.Jan.17,751.24,VIBRANCE,Invoice
ASC,SOCIAL SERVICES,DIRECT,Revenue,DIRECT PAYMENTS,24.Jan.17,2703.44,VIBRANCE,Invoice
ASC,SOCIAL SERVICES,DIRECT,Revenue,DIRECT PAYMENTS,24.Jan.17,769.76,VIBRANCE,Invoice
ASC,SOCIAL SERVICES,DIRECT,Revenue,DIRECT PAYMENTS,24.Jan.17,783.68,VIBRANCE,Invoice
ASC,SOCIAL SERVICES,DIRECT,Revenue,DIRECT PAYMENTS,24.Jan.17,606.56,VIBRANCE,Invoice
ASC,SOCIAL SERVICES,DIRECT,Revenue,DIRECT PAYMENTS,24.Jan.17,608.72,VIBRANCE,Invoice
ASC,SOCIAL SERVICES,DIRECT,Revenue,DIRECT PAYMENTS,24.Jan.17,3695.84,VIBRANCE,Invoice
ASC,SOCIAL SERVICES,DIRECT,Revenue,DIRECT PAYMENTS,24.Jan.17,714,VIBRANCE,Invoice
ASC,SOCIAL SERVICES,DIRECT,Revenue,DIRECT PAYMENTS,24.Jan.17,710.16,VIBRANCE,Invoice
ASC,SOCIAL SERVICES,DIRECT,Revenue,DIRECT PAYMENTS,24.Jan.17,1856.16,VIBRANCE,Invoice
ASC,SOCIAL SERVICES,DIRECT,Revenue,DIRECT PAYMENTS,24.Jan.17,930.56,VIBRANCE,Invoice
ASC,SOCIAL SERVICES,DIRECT,Revenue,DIRECT PAYMENTS,24.Jan.17,722.52,VIBRANCE,Invoice
ASC,SOCIAL SERVICES,DIRECT,Revenue,DIRECT PAYMENTS,24.Jan.17,895.36,VIBRANCE,Invoice
ASC,SOCIAL SERVICES,DIRECT,Revenue,DIRECT PAYMENTS,24.Jan.17,722.52,VIBRANCE,Invoice
ASC,SOCIAL SERVICES,DIRECT,Revenue,DIRECT PAYMENTS,24.Jan.17,626.88,VIBRANCE,Invoice
ASC,SOCIAL SERVICES,DIRECT,Revenue,DIRECT PAYMENTS,24.Jan.17,595.52,VIBRANCE,Invoice
ASC,SOCIAL SERVICES,DIRECT,Revenue,DIRECT PAYMENTS,24.Jan.17,1858.04,VIBRANCE,Invoice
ASC,SOCIAL SERVICES,DIRECT,Revenue,DIRECT PAYMENTS,24.Jan.17,1232.44,VIBRANCE,Invoice
ASC,SOCIAL SERVICES,DIRECT,Revenue,DIRECT PAYMENTS,24.Jan.17,2218.2,EPAYROLLUK LTD,Invoice
ASC,SOCIAL SERVICES,CUSTOMER & CLIENT RECPTS - EXT,Revenue,CL CONT EXT RESIDEN S28A 100%,04.Jan.17,-546.05,VOYAGE CARE LTD,Invoice
ASC,SOCIAL SERVICES,CUSTOMER & CLIENT RECPTS - EXT,Revenue,CL CONT EXT RESIDEN S28A 100%,04.Jan.17,-443.52,VOYAGE CARE LTD,Invoice
ASC,SOCIAL SERVICES,CUSTOMER & CLIENT RECPTS - EXT,Revenue,CL CONT EXTERNAL RESIDENT S28A,27.Jan.17,-578.81,ST MARYS RESIDENTIAL HOME,Invoice
ASC,SOCIAL SERVICES,CUSTOMER & CLIENT RECPTS - EXT,Revenue,CL CONT EXTERNAL RESIDENT S28A,12.Jan.17,-510.64,METROPOLITAN HOUSING TRUST,Invoice
ASC,SOCIAL SERVICES,CUSTOMER & CLIENT RECPTS - EXT,Revenue,CL CONT EXTERNAL RESIDENT S28A,12.Jan.17,-321.8,METROPOLITAN HOUSING TRUST,Invoice
ASC,SOCIAL SERVICES,CUSTOMER & CLIENT RECPTS - EXT,Revenue,CL CONT EXTERNAL RESIDENT S28A,05.Jan.17,-522.8,ASHTON CARE,Invoice
ASC,SOCIAL SERVICES,CUSTOMER & CLIENT RECPTS - EXT,Revenue,CL CONT EXTERNAL RESIDENTIAL,09.Jan.17,-400.6,CMG HOMES LTD,Invoice
ASC,SOCIAL SERVICES,CUSTOMER & CLIENT RECPTS - EXT,Revenue,CL CONT EXTERNAL RESIDENTIAL,09.Jan.17,-523,CMG HOMES LTD,Invoice
ASC,SOCIAL SERVICES,CUSTOMER & CLIENT RECPTS - EXT,Revenue,CL CONT EXTERNAL RESIDENTIAL,09.Jan.17,-400.6,CMG HOMES LTD,Invoice
ASC,SOCIAL SERVICES,CUSTOMER & CLIENT RECPTS - EXT,Revenue,CL CONT EXTERNAL RESIDENTIAL,09.Jan.17,-400.6,CMG HOMES LTD,Invoice
ASC,SOCIAL SERVICES,CUSTOMER & CLIENT RECPTS - EXT,Revenue,CL CONT EXTERNAL RESIDENTIAL,09.Jan.17,-400.6,CMG HOMES LTD,Invoice
ASC,SOCIAL SERVICES,CUSTOMER & CLIENT RECPTS - EXT,Revenue,CL CONT EXTERNAL RESIDENTIAL,09.Jan.17,-321.8,CMG HOMES LTD,Invoice
ASC,SOCIAL SERVICES,CUSTOMER & CLIENT RECPTS - EXT,Revenue,CL CONT EXTERNAL RESIDENTIAL,09.Jan.17,-522.8,CMG HOMES LTD,Invoice
ASC,SOCIAL SERVICES,CUSTOMER & CLIENT RECPTS - EXT,Revenue,CL CONT EXTERNAL RESIDENTIAL,09.Jan.17,-359.8,CMG HOMES LTD,Invoice
ASC,SOCIAL SERVICES,CUSTOMER & CLIENT RECPTS - EXT,Revenue,CL CONT EXTERNAL RESIDENTIAL,26.Jan.17,-400.6,CMG HOMES LTD,Invoice
ASC,SOCIAL SERVICES,CUSTOMER & CLIENT RECPTS - EXT,Revenue,CL CONT EXTERNAL RESIDENTIAL,26.Jan.17,-523,CMG HOMES LTD,Invoice
ASC,SOCIAL SERVICES,CUSTOMER & CLIENT RECPTS - EXT,Revenue,CL CONT EXTERNAL RESIDENTIAL,26.Jan.17,-400.6,CMG HOMES LTD,Invoice
ASC,SOCIAL SERVICES,CUSTOMER & CLIENT RECPTS - EXT,Revenue,CL CONT EXTERNAL RESIDENTIAL,26.Jan.17,-400.6,CMG HOMES LTD,Invoice
ASC,SOCIAL SERVICES,CUSTOMER & CLIENT RECPTS - EXT,Revenue,CL CONT EXTERNAL RESIDENTIAL,26.Jan.17,-400.6,CMG HOMES LTD,Invoice
ASC,SOCIAL SERVICES,CUSTOMER & CLIENT RECPTS - EXT,Revenue,CL CONT EXTERNAL RESIDENTIAL,26.Jan.17,-321.8,CMG HOMES LTD,Invoice
ASC,SOCIAL SERVICES,CUSTOMER & CLIENT RECPTS - EXT,Revenue,CL CONT EXTERNAL RESIDENTIAL,26.Jan.17,-522.8,CMG HOMES LTD,Invoice
ASC,SOCIAL SERVICES,CUSTOMER & CLIENT RECPTS - EXT,Revenue,CL CONT EXTERNAL RESIDENTIAL,26.Jan.17,-359.8,CMG HOMES LTD,Invoice
ASC,SOCIAL SERVICES,CUSTOMER & CLIENT RECPTS - EXT,Revenue,CL CONT EXTERNAL RESIDENTIAL,27.Jan.17,-385.95,NATIONAL SOCIETY FOR EPILEPSY,Invoice
ASC,SOCIAL SERVICES,CUSTOMER & CLIENT RECPTS - EXT,Revenue,CL CONT EXTERNAL RESIDENTIAL,27.Jan.17,-321.8,SANCTUARY HOME CARE LTD,Invoice
ASC,SOCIAL SERVICES,CUSTOMER & CLIENT RECPTS - EXT,Revenue,CL CONT EXTERNAL RESIDENTIAL,27.Jan.17,-356.28,IN CHORUS LTD,Invoice
ASC,SOCIAL SERVICES,CUSTOMER & CLIENT RECPTS - EXT,Revenue,CL CONT EXTERNAL RESIDENTIAL,31.Jan.17,-356.28,CENTRUST CARE HOMES LTD,Invoice
ASC,SOCIAL SERVICES,CUSTOMER & CLIENT RECPTS - EXT,Revenue,CL CONT EXTERNAL RESIDENTIAL,27.Jan.17,-373.77,FRANCES TAYLOR FOUNDATION,Invoice
ASC,SOCIAL SERVICES,CUSTOMER & CLIENT RECPTS - EXT,Revenue,CL CONT EXTERNAL RESIDENTIAL,27.Jan.17,-356.28,FRANCES TAYLOR FOUNDATION,Invoice
ASC,SOCIAL SERVICES,CUSTOMER & CLIENT RECPTS - EXT,Revenue,CL CONT EXTERNAL RESIDENTIAL,27.Jan.17,-443.52,FRANCES TAYLOR FOUNDATION,Invoice
ASC,SOCIAL SERVICES,CUSTOMER & CLIENT RECPTS - EXT,Revenue,CL CONT EXTERNAL RESIDENTIAL,20.Jan.17,-321.8,RESIDENTIAL CARE SERVICES T/A FRANKLYN L,Invoice
ASC,SOCIAL SERVICES,CUSTOMER & CLIENT RECPTS - EXT,Revenue,CL CONT EXTERNAL RESIDENTIAL,16.Jan.17,-321.8,ORCHARD VALE TRUST,Invoice
ASC,SOCIAL SERVICES,CUSTOMER & CLIENT RECPTS - EXT,Revenue,CL CONT EXTERNAL RESIDENTIAL,31.Jan.17,-321.8,ORCHARD VALE TRUST,Invoice
ASC,SOCIAL SERVICES,CUSTOMER & CLIENT RECPTS - EXT,Revenue,CL CONT EXTERNAL RESIDENTIAL,09.Jan.17,-713.72,ST MARYS RESIDENTIAL HOME,Invoice
ASC,SOCIAL SERVICES,CUSTOMER & CLIENT RECPTS - EXT,Revenue,CL CONT EXTERNAL RESIDENTIAL,09.Jan.17,-1011.51,ST MARYS RESIDENTIAL HOME,Invoice
ASC,SOCIAL SERVICES,CUSTOMER & CLIENT RECPTS - EXT,Revenue,CL CONT EXTERNAL RESIDENTIAL,09.Jan.17,-522.8,ST MARYS RESIDENTIAL HOME,Invoice
ASC,SOCIAL SERVICES,CUSTOMER & CLIENT RECPTS - EXT,Revenue,CL CONT EXTERNAL RESIDENTIAL,27.Jan.17,-275.32,ST MARYS RESIDENTIAL HOME,Invoice
ASC,SOCIAL SERVICES,CUSTOMER & CLIENT RECPTS - EXT,Revenue,CL CONT EXTERNAL RESIDENTIAL,27.Jan.17,-356.28,ST MARYS RESIDENTIAL HOME,Invoice
ASC,SOCIAL SERVICES,CUSTOMER & CLIENT RECPTS - EXT,Revenue,CL CONT EXTERNAL RESIDENTIAL,27.Jan.17,-578.81,ST MARYS RESIDENTIAL HOME,Invoice
ASC,SOCIAL SERVICES,CUSTOMER & CLIENT RECPTS - EXT,Revenue,CL CONT EXTERNAL RESIDENTIAL,27.Jan.17,-373.77,ST MARYS RESIDENTIAL HOME,Invoice
ASC,SOCIAL SERVICES,CUSTOMER & CLIENT RECPTS - EXT,Revenue,CL CONT EXTERNAL RESIDENTIAL,27.Jan.17,-356.28,ST MARYS RESIDENTIAL HOME,Invoice
ASC,SOCIAL SERVICES,CUSTOMER & CLIENT RECPTS - EXT,Revenue,CL CONT EXTERNAL RESIDENTIAL,27.Jan.17,-443.52,ST MARYS RESIDENTIAL HOME,Invoice
ASC,SOCIAL SERVICES,CUSTOMER & CLIENT RECPTS - EXT,Revenue,CL CONT EXTERNAL RESIDENTIAL,27.Jan.17,-6.89,ST MARYS RESIDENTIAL HOME,Invoice
ASC,SOCIAL SERVICES,CUSTOMER & CLIENT RECPTS - EXT,Revenue,CL CONT EXTERNAL RESIDENTIAL,27.Jan.17,-578.81,ST MARYS RESIDENTIAL HOME,Invoice
ASC,SOCIAL SERVICES,CUSTOMER & CLIENT RECPTS - EXT,Revenue,CL CONT EXTERNAL RESIDENTIAL,11.Jan.17,-321.8,NAS SERVICES LIMITED,Invoice
ASC,SOCIAL SERVICES,CUSTOMER & CLIENT RECPTS - EXT,Revenue,CL CONT EXTERNAL RESIDENTIAL,11.Jan.17,-321.8,SPRING LAKE,Invoice
ASC,SOCIAL SERVICES,CUSTOMER & CLIENT RECPTS - EXT,Revenue,CL CONT EXTERNAL RESIDENTIAL,11.Jan.17,-366.4,SPRING LAKE,Invoice
ASC,SOCIAL SERVICES,CUSTOMER & CLIENT RECPTS - EXT,Revenue,CL CONT EXTERNAL RESIDENTIAL,27.Jan.17,-333.3,HAYDON PARK LODGE LTD,Invoice
ASC,SOCIAL SERVICES,CUSTOMER & CLIENT RECPTS - EXT,Revenue,CL CONT EXTERNAL RESIDENTIAL,06.Jan.17,-620.8,CAMERON LODGE LIMITED,Invoice
ASC,SOCIAL SERVICES,CUSTOMER & CLIENT RECPTS - EXT,Revenue,CL CONT EXTERNAL RESIDENTIAL,19.Jan.17,-443.52,RESIDENTIAL COMMUNITY CARE,Invoice
ASC,SOCIAL SERVICES,CUSTOMER & CLIENT RECPTS - EXT,Revenue,CL CONT EXTERNAL RESIDENTIAL,12.Jan.17,-298.82,DOLPHIN HOMES LTD,Invoice
ASC,SOCIAL SERVICES,CUSTOMER & CLIENT RECPTS - EXT,Revenue,CL CONT EXTERNAL RESIDENTIAL,12.Jan.17,-298.82,DOLPHIN HOMES LTD,Invoice
ASC,SOCIAL SERVICES,CUSTOMER & CLIENT RECPTS - EXT,Revenue,CL CONT EXTERNAL RESIDENTIAL,27.Jan.17,-321.8,DOLPHIN HOMES LTD,Invoice
ASC,SOCIAL SERVICES,CUSTOMER & CLIENT RECPTS - EXT,Revenue,CL CONT EXTERNAL RESIDENTIAL,27.Jan.17,-321.8,DOLPHIN HOMES LTD,Invoice
ASC,SOCIAL SERVICES,CUSTOMER & CLIENT RECPTS - EXT,Revenue,CL CONT EXTERNAL RESIDENTIAL,16.Jan.17,-321.8,NORWOOD SCHOOLS LTD,Invoice
ASC,SOCIAL SERVICES,CUSTOMER & CLIENT RECPTS - EXT,Revenue,CL CONT EXTERNAL RESIDENTIAL,16.Jan.17,-400.6,NORWOOD SCHOOLS LTD,Invoice
ASC,SOCIAL SERVICES,CUSTOMER & CLIENT RECPTS - EXT,Revenue,CL CONT EXTERNAL RESIDENTIAL,27.Jan.17,-578.81,HEYWOODS GRANGE LTD,Invoice
ASC,SOCIAL SERVICES,CUSTOMER & CLIENT RECPTS - EXT,Revenue,CL CONT EXTERNAL RESIDENTIAL,04.Jan.17,-356.28,VOYAGE CARE LTD,Invoice
ASC,SOCIAL SERVICES,CUSTOMER & CLIENT RECPTS - EXT,Revenue,CL CONT EXTERNAL RESIDENTIAL,04.Jan.17,-579.65,VOYAGE CARE LTD,Invoice
ASC,SOCIAL SERVICES,CUSTOMER & CLIENT RECPTS - EXT,Revenue,CL CONT EXTERNAL RESIDENTIAL,04.Jan.17,-385.95,VOYAGE CARE LTD,Invoice
ASC,SOCIAL SERVICES,CUSTOMER & CLIENT RECPTS - EXT,Revenue,CL CONT EXTERNAL RESIDENTIAL,27.Jan.17,-356.28,ST DAVIDS CARE IN THE COMMUNITY,Invoice
ASC,SOCIAL SERVICES,CUSTOMER & CLIENT RECPTS - EXT,Revenue,CL CONT EXTERNAL RESIDENTIAL,27.Jan.17,-356.28,ST DAVIDS CARE IN THE COMMUNITY,Invoice
ASC,SOCIAL SERVICES,CUSTOMER & CLIENT RECPTS - EXT,Revenue,CL CONT EXTERNAL RESIDENTIAL,27.Jan.17,-443.52,ST DAVIDS CARE IN THE COMMUNITY,Invoice
ASC,SOCIAL SERVICES,CUSTOMER & CLIENT RECPTS - EXT,Revenue,CL CONT EXTERNAL RESIDENTIAL,24.Jan.17,-549.06,ESSEX CARE CONSORTIUM,Invoice
ASC,SOCIAL SERVICES,CUSTOMER & CLIENT RECPTS - EXT,Revenue,CL CONT EXTERNAL RESIDENTIAL,24.Jan.17,-321.8,POTENSIAL LTD,Invoice
ASC,SOCIAL SERVICES,CUSTOMER & CLIENT RECPTS - EXT,Revenue,CL CONT EXTERNAL RESIDENTIAL,20.Jan.17,-321.8,KENILWORTH RESIDENTIAL HOME,Invoice
ASC,SOCIAL SERVICES,CUSTOMER & CLIENT RECPTS - EXT,Revenue,CL CONT EXTERNAL RESIDENTIAL,20.Jan.17,-505.2,KENILWORTH RESIDENTIAL HOME,Invoice
ASC,SOCIAL SERVICES,CUSTOMER & CLIENT RECPTS - EXT,Revenue,CL CONT EXTERNAL RESIDENTIAL,27.Jan.17,-333.29,THE WELL HOUSE,Invoice
ASC,SOCIAL SERVICES,CUSTOMER & CLIENT RECPTS - EXT,Revenue,CL CONT EXTERNAL RESIDENTIAL,27.Jan.17,-379.49,THE WELL HOUSE,Invoice
ASC,SOCIAL SERVICES,CUSTOMER & CLIENT RECPTS - EXT,Revenue,CL CONT EXTERNAL RESIDENTIAL,26.Jan.17,-321.8,MACINTYRE CARE,Invoice
ASC,SOCIAL SERVICES,CUSTOMER & CLIENT RECPTS - EXT,Revenue,CL CONT EXTERNAL RESIDENTIAL,26.Jan.17,-505.2,MACINTYRE CARE,Invoice
ASC,SOCIAL SERVICES,CUSTOMER & CLIENT RECPTS - EXT,Revenue,CL CONT EXTERNAL RESIDENTIAL,26.Jan.17,-321.8,MACINTYRE CARE,Invoice
ASC,SOCIAL SERVICES,CUSTOMER & CLIENT RECPTS - EXT,Revenue,CL CONT EXTERNAL RESIDENTIAL,26.Jan.17,-366.4,MACINTYRE CARE,Invoice
ASC,SOCIAL SERVICES,CUSTOMER & CLIENT RECPTS - EXT,Revenue,CL CONT EXTERNAL RESIDENTIAL,26.Jan.17,-400.6,MACINTYRE CARE,Invoice
ASC,SOCIAL SERVICES,CUSTOMER & CLIENT RECPTS - EXT,Revenue,CL CONT EXTERNAL RESIDENTIAL,26.Jan.17,-400.6,MACINTYRE CARE,Invoice
ASC,SOCIAL SERVICES,CUSTOMER & CLIENT RECPTS - EXT,Revenue,CL CONT EXTERNAL RESIDENTIAL,26.Jan.17,-319.2,MACINTYRE CARE,Invoice
ASC,SOCIAL SERVICES,CUSTOMER & CLIENT RECPTS - EXT,Revenue,CL CONT EXTERNAL RESIDENTIAL,26.Jan.17,-400.6,MACINTYRE CARE,Invoice
ASC,SOCIAL SERVICES,CUSTOMER & CLIENT RECPTS - EXT,Revenue,CL CONT EXTERNAL RESIDENTIAL,26.Jan.17,-321.8,MACINTYRE CARE,Invoice
ASC,SOCIAL SERVICES,CUSTOMER & CLIENT RECPTS - EXT,Revenue,CL CONT EXTERNAL RESIDENTIAL,26.Jan.17,-522.8,MACINTYRE CARE,Invoice
ASC,SOCIAL SERVICES,CUSTOMER & CLIENT RECPTS - EXT,Revenue,CL CONT EXTERNAL RESIDENTIAL,26.Jan.17,-321.8,MACINTYRE CARE,Invoice
ASC,SOCIAL SERVICES,CUSTOMER & CLIENT RECPTS - EXT,Revenue,CL CONT EXTERNAL RESIDENTIAL,26.Jan.17,-522.8,MACINTYRE CARE,Invoice
ASC,SOCIAL SERVICES,CUSTOMER & CLIENT RECPTS - EXT,Revenue,CL CONT EXTERNAL RESIDENTIAL,26.Jan.17,-522.8,MACINTYRE CARE,Invoice
ASC,SOCIAL SERVICES,CUSTOMER & CLIENT RECPTS - EXT,Revenue,CL CONT EXTERNAL RESIDENTIAL,26.Jan.17,-522.8,MACINTYRE CARE,Invoice
ASC,SOCIAL SERVICES,CUSTOMER & CLIENT RECPTS - EXT,Revenue,CL CONT EXTERNAL RESIDENTIAL,26.Jan.17,-522.8,MACINTYRE CARE,Invoice
ASC,SOCIAL SERVICES,CUSTOMER & CLIENT RECPTS - EXT,Revenue,CL CONT EXTERNAL RESIDENTIAL,26.Jan.17,-321.8,MACINTYRE CARE,Invoice
ASC,SOCIAL SERVICES,CUSTOMER & CLIENT RECPTS - EXT,Revenue,CL CONT EXTERNAL RESIDENTIAL,26.Jan.17,-508.92,MACINTYRE CARE,Invoice
ASC,SOCIAL SERVICES,CUSTOMER & CLIENT RECPTS - EXT,Revenue,CL CONT EXTERNAL RESIDENTIAL,26.Jan.17,-321.8,MACINTYRE CARE,Invoice
ASC,SOCIAL SERVICES,CUSTOMER & CLIENT RECPTS - EXT,Revenue,CL CONT EXTERNAL RESIDENTIAL,17.Jan.17,-321.8,SURREY & BORDERS PARTNERSHIP NHS TRUST,Invoice
ASC,SOCIAL SERVICES,CUSTOMER & CLIENT RECPTS - EXT,Revenue,CL CONT EXTERNAL RESIDENTIAL,17.Jan.17,-505.2,SURREY & BORDERS PARTNERSHIP NHS TRUST,Invoice
ASC,SOCIAL SERVICES,CUSTOMER & CLIENT RECPTS - EXT,Revenue,CL CONT EXTERNAL RESIDENTIAL,12.Jan.17,-343.03,AIMS CARE PARTNERSHIP,Invoice
ASC,SOCIAL SERVICES,CUSTOMER & CLIENT RECPTS - EXT,Revenue,CL CONT EXTERNAL RESIDENTIAL,12.Jan.17,-354.47,AIMS CARE PARTNERSHIP,Invoice
ASC,SOCIAL SERVICES,CUSTOMER & CLIENT RECPTS - EXT,Revenue,CL CONT EXTERNAL RESIDENTIAL,27.Jan.17,-354.46,AIMS CARE PARTNERSHIP,Invoice
ASC,SOCIAL SERVICES,CUSTOMER & CLIENT RECPTS - EXT,Revenue,CL CONT EXTERNAL RESIDENTIAL,27.Jan.17,-433.56,SEEABILITY,Invoice
ASC,SOCIAL SERVICES,CUSTOMER & CLIENT RECPTS - EXT,Revenue,CL CONT EXTERNAL RESIDENTIAL,27.Jan.17,-443.52,SEEABILITY,Invoice
ASC,SOCIAL SERVICES,CUSTOMER & CLIENT RECPTS - EXT,Revenue,CL CONT EXTERNAL RESIDENTIAL,27.Jan.17,-578.81,THE COMMUNITY CARE COMPANY UK LTD,Invoice
ASC,SOCIAL SERVICES,CUSTOMER & CLIENT RECPTS - EXT,Revenue,CL CONT EXTERNAL RESIDENTIAL,27.Jan.17,-443.52,THE COMMUNITY CARE COMPANY UK LTD,Invoice
ASC,SOCIAL SERVICES,CUSTOMER & CLIENT RECPTS - EXT,Revenue,CL CONT EXTERNAL RESIDENTIAL,27.Jan.17,-443.52,THE COMMUNITY CARE COMPANY UK LTD,Invoice
ASC,SOCIAL SERVICES,CUSTOMER & CLIENT RECPTS - EXT,Revenue,CL CONT EXTERNAL RESIDENTIAL,27.Jan.17,-373.77,THE COMMUNITY CARE COMPANY UK LTD,Invoice
ASC,SOCIAL SERVICES,CUSTOMER & CLIENT RECPTS - EXT,Revenue,CL CONT EXTERNAL RESIDENTIAL,27.Jan.17,207.83,THE COMMUNITY CARE COMPANY UK LTD,Invoice
ASC,SOCIAL SERVICES,CUSTOMER & CLIENT RECPTS - EXT,Revenue,CL CONT EXTERNAL RESIDENTIAL,19.Jan.17,-443.52,THE REGARD PARTNERSHIP,Invoice
ASC,SOCIAL SERVICES,CUSTOMER & CLIENT RECPTS - EXT,Revenue,CL CONT EXTERNAL RESIDENTIAL,19.Jan.17,-429.21,THE REGARD PARTNERSHIP,Invoice
ASC,SOCIAL SERVICES,CUSTOMER & CLIENT RECPTS - EXT,Revenue,CL CONT EXTERNAL RESIDENTIAL,19.Jan.17,-443.52,THE REGARD PARTNERSHIP,Invoice
ASC,SOCIAL SERVICES,CUSTOMER & CLIENT RECPTS - EXT,Revenue,CL CONT EXTERNAL RESIDENTIAL,20.Jan.17,-443.52,THE REGARD PARTNERSHIP,Invoice
ASC,SOCIAL SERVICES,CUSTOMER & CLIENT RECPTS - EXT,Revenue,CL CONT EXTERNAL RESIDENTIAL,20.Jan.17,-443.52,THE REGARD PARTNERSHIP,Invoice
ASC,SOCIAL SERVICES,CUSTOMER & CLIENT RECPTS - EXT,Revenue,CL CONT EXTERNAL RESIDENTIAL,20.Jan.17,-443.52,THE REGARD PARTNERSHIP,Invoice
ASC,SOCIAL SERVICES,CUSTOMER & CLIENT RECPTS - EXT,Revenue,CL CONT EXTERNAL RESIDENTIAL,20.Jan.17,-578.81,THE REGARD PARTNERSHIP,Invoice
ASC,SOCIAL SERVICES,CUSTOMER & CLIENT RECPTS - EXT,Revenue,CL CONT EXTERNAL RESIDENTIAL,20.Jan.17,-560.14,THE REGARD PARTNERSHIP,Invoice
ASC,SOCIAL SERVICES,CUSTOMER & CLIENT RECPTS - EXT,Revenue,CL CONT EXTERNAL RESIDENTIAL,20.Jan.17,-578.82,THE REGARD PARTNERSHIP,Invoice
ASC,SOCIAL SERVICES,CUSTOMER & CLIENT RECPTS - EXT,Revenue,CL CONT EXTERNAL RESIDENTIAL,20.Jan.17,-356.28,THE REGARD PARTNERSHIP,Invoice
ASC,SOCIAL SERVICES,CUSTOMER & CLIENT RECPTS - EXT,Revenue,CL CONT EXTERNAL RESIDENTIAL,20.Jan.17,-344.79,THE REGARD PARTNERSHIP,Invoice
ASC,SOCIAL SERVICES,CUSTOMER & CLIENT RECPTS - EXT,Revenue,CL CONT EXTERNAL RESIDENTIAL,20.Jan.17,-356.28,THE REGARD PARTNERSHIP,Invoice
ASC,SOCIAL SERVICES,CUSTOMER & CLIENT RECPTS - EXT,Revenue,CL CONT EXTERNAL RESIDENTIAL,18.Jan.17,460.73,EVERGREEN PARTNERSHIP,Invoice
ASC,SOCIAL SERVICES,CUSTOMER & CLIENT RECPTS - EXT,Revenue,CL CONT EXTERNAL RESIDENTIAL,18.Jan.17,-643.6,EVERGREEN PARTNERSHIP,Invoice
ASC,SOCIAL SERVICES,CUSTOMER & CLIENT RECPTS - EXT,Revenue,CL CONT EXTERNAL RESIDENTIAL,25.Jan.17,-577.12,EVERGREEN PARTNERSHIP,Invoice
ASC,SOCIAL SERVICES,CUSTOMER & CLIENT RECPTS - EXT,Revenue,CL CONT EXTERNAL RESIDENTIAL,27.Jan.17,-321.8,LAETUS LODGE,Invoice
ASC,SOCIAL SERVICES,CUSTOMER & CLIENT RECPTS - EXT,Revenue,CL CONT EXTERNAL RESIDENTIAL,27.Jan.17,-192.8,LAETUS LODGE,Invoice
ASC,SOCIAL SERVICES,CUSTOMER & CLIENT RECPTS - EXT,Revenue,CL CONT EXTERNAL RESIDENTIAL,27.Jan.17,-366.4,LAETUS LODGE,Invoice
ASC,SOCIAL SERVICES,CUSTOMER & CLIENT RECPTS - EXT,Revenue,CL CONT EXTERNAL RESIDENTIAL,27.Jan.17,-321.8,LAETUS LODGE,Invoice
ASC,SOCIAL SERVICES,CUSTOMER & CLIENT RECPTS - EXT,Revenue,CL CONT EXTERNAL RESIDENTIAL,27.Jan.17,-321.8,LAETUS LODGE,Invoice
ASC,SOCIAL SERVICES,CUSTOMER & CLIENT RECPTS - EXT,Revenue,CL CONT EXTERNAL RESIDENTIAL,12.Jan.17,-522.8,METROPOLITAN HOUSING TRUST,Invoice
ASC,SOCIAL SERVICES,CUSTOMER & CLIENT RECPTS - EXT,Revenue,CL CONT EXTERNAL RESIDENTIAL,12.Jan.17,-321.8,METROPOLITAN HOUSING TRUST,Invoice
ASC,SOCIAL SERVICES,CUSTOMER & CLIENT RECPTS - EXT,Revenue,CL CONT EXTERNAL RESIDENTIAL,12.Jan.17,-400.6,METROPOLITAN HOUSING TRUST,Invoice
ASC,SOCIAL SERVICES,CUSTOMER & CLIENT RECPTS - EXT,Revenue,CL CONT EXTERNAL RESIDENTIAL,12.Jan.17,-321.8,METROPOLITAN HOUSING TRUST,Invoice
ASC,SOCIAL SERVICES,CUSTOMER & CLIENT RECPTS - EXT,Revenue,CL CONT EXTERNAL RESIDENTIAL,12.Jan.17,-400.6,METROPOLITAN HOUSING TRUST,Invoice
ASC,SOCIAL SERVICES,CUSTOMER & CLIENT RECPTS - EXT,Revenue,CL CONT EXTERNAL RESIDENTIAL,12.Jan.17,-400.6,METROPOLITAN HOUSING TRUST,Invoice
ASC,SOCIAL SERVICES,CUSTOMER & CLIENT RECPTS - EXT,Revenue,CL CONT EXTERNAL RESIDENTIAL,12.Jan.17,-321.8,METROPOLITAN HOUSING TRUST,Invoice
ASC,SOCIAL SERVICES,CUSTOMER & CLIENT RECPTS - EXT,Revenue,CL CONT EXTERNAL RESIDENTIAL,12.Jan.17,-321.8,METROPOLITAN HOUSING TRUST,Invoice
ASC,SOCIAL SERVICES,CUSTOMER & CLIENT RECPTS - EXT,Revenue,CL CONT EXTERNAL RESIDENTIAL,12.Jan.17,-522.8,METROPOLITAN HOUSING TRUST,Invoice
ASC,SOCIAL SERVICES,CUSTOMER & CLIENT RECPTS - EXT,Revenue,CL CONT EXTERNAL RESIDENTIAL,12.Jan.17,-321.8,METROPOLITAN HOUSING TRUST,Invoice
ASC,SOCIAL SERVICES,CUSTOMER & CLIENT RECPTS - EXT,Revenue,CL CONT EXTERNAL RESIDENTIAL,12.Jan.17,-321.8,METROPOLITAN HOUSING TRUST,Invoice
ASC,SOCIAL SERVICES,CUSTOMER & CLIENT RECPTS - EXT,Revenue,CL CONT EXTERNAL RESIDENTIAL,03.Jan.17,-321.8,LIVABILITY,Invoice
ASC,SOCIAL SERVICES,CUSTOMER & CLIENT RECPTS - EXT,Revenue,CL CONT EXTERNAL RESIDENTIAL,27.Jan.17,-577.48,LOVING CARE LTD,Invoice
ASC,SOCIAL SERVICES,CUSTOMER & CLIENT RECPTS - EXT,Revenue,CL CONT EXTERNAL RESIDENTIAL,27.Jan.17,-321.8,LOVING CARE LTD,Invoice
ASC,SOCIAL SERVICES,CUSTOMER & CLIENT RECPTS - EXT,Revenue,CL CONT EXTERNAL RESIDENTIAL,27.Jan.17,-400.6,LOVING CARE LTD,Invoice
ASC,SOCIAL SERVICES,CUSTOMER & CLIENT RECPTS - EXT,Revenue,CL CONT EXTERNAL RESIDENTIAL,27.Jan.17,-400.6,LOVING CARE LTD,Invoice
ASC,SOCIAL SERVICES,CUSTOMER & CLIENT RECPTS - EXT,Revenue,CL CONT EXTERNAL RESIDENTIAL,27.Jan.17,-321.8,LOVING CARE LTD,Invoice
ASC,SOCIAL SERVICES,CUSTOMER & CLIENT RECPTS - EXT,Revenue,CL CONT EXTERNAL RESIDENTIAL,27.Jan.17,-321.8,LOVING CARE LTD,Invoice
ASC,SOCIAL SERVICES,CUSTOMER & CLIENT RECPTS - EXT,Revenue,CL CONT EXTERNAL RESIDENTIAL,27.Jan.17,-321.8,LOVING CARE LTD,Invoice
ASC,SOCIAL SERVICES,CUSTOMER & CLIENT RECPTS - EXT,Revenue,CL CONT EXTERNAL RESIDENTIAL,30.Jan.17,-522.8,WHITMORE VALE HOUSING ASSOCIATION LTD,Invoice
ASC,SOCIAL SERVICES,CUSTOMER & CLIENT RECPTS - EXT,Revenue,CL CONT EXTERNAL RESIDENTIAL,27.Jan.17,-390.76,THE MANOR HOUSE,Invoice
ASC,SOCIAL SERVICES,CUSTOMER & CLIENT RECPTS - EXT,Revenue,CL CONT EXTERNAL RESIDENTIAL,27.Jan.17,-578.81,RALEIGH HOUSE LTD,Invoice
ASC,SOCIAL SERVICES,CUSTOMER & CLIENT RECPTS - EXT,Revenue,CL CONT EXTERNAL RESIDENTIAL,18.Jan.17,-337.8,GLENCARE GROUP,Invoice
ASC,SOCIAL SERVICES,CUSTOMER & CLIENT RECPTS - EXT,Revenue,CL CONT EXTERNAL RESIDENTIAL,18.Jan.17,-321.8,GLENCARE GROUP,Invoice
ASC,SOCIAL SERVICES,CUSTOMER & CLIENT RECPTS - EXT,Revenue,CL CONT EXTERNAL RESIDENTIAL,18.Jan.17,-359.95,GLENCARE GROUP,Invoice
ASC,SOCIAL SERVICES,CUSTOMER & CLIENT RECPTS - EXT,Revenue,CL CONT EXTERNAL RESIDENTIAL,27.Jan.17,-337.8,GLENCARE GROUP,Invoice
ASC,SOCIAL SERVICES,CUSTOMER & CLIENT RECPTS - EXT,Revenue,CL CONT EXTERNAL RESIDENTIAL,27.Jan.17,-321.8,GLENCARE GROUP,Invoice
ASC,SOCIAL SERVICES,CUSTOMER & CLIENT RECPTS - EXT,Revenue,CL CONT EXTERNAL RESIDENTIAL,17.Jan.17,-400.6,UNITED RESPONSE,Invoice
ASC,SOCIAL SERVICES,CUSTOMER & CLIENT RECPTS - EXT,Revenue,CL CONT EXTERNAL RESIDENTIAL,27.Jan.17,-356.28,BEECH LODGE,Invoice
ASC,SOCIAL SERVICES,CUSTOMER & CLIENT RECPTS - EXT,Revenue,CL CONT EXTERNAL RESIDENTIAL,27.Jan.17,-356.28,BEECH LODGE,Invoice
ASC,SOCIAL SERVICES,CUSTOMER & CLIENT RECPTS - EXT,Revenue,CL CONT EXTERNAL RESIDENTIAL,27.Jan.17,-356.28,BEECH LODGE,Invoice
ASC,SOCIAL SERVICES,CUSTOMER & CLIENT RECPTS - EXT,Revenue,CL CONT EXTERNAL RESIDENTIAL,09.Jan.17,-321.8,ROYAL MENCAP SOCIETY,Invoice
ASC,SOCIAL SERVICES,CUSTOMER & CLIENT RECPTS - EXT,Revenue,CL CONT EXTERNAL RESIDENTIAL,10.Jan.17,-321.8,ROYAL MENCAP SOCIETY,Invoice
ASC,SOCIAL SERVICES,CUSTOMER & CLIENT RECPTS - EXT,Revenue,CL CONT EXTERNAL RESIDENTIAL,16.Jan.17,-321.8,ROYAL MENCAP SOCIETY,Invoice
ASC,SOCIAL SERVICES,CUSTOMER & CLIENT RECPTS - EXT,Revenue,CL CONT EXTERNAL RESIDENTIAL,16.Jan.17,-321.8,ROYAL MENCAP SOCIETY,Invoice
ASC,SOCIAL SERVICES,CUSTOMER & CLIENT RECPTS - EXT,Revenue,CL CONT EXTERNAL RESIDENTIAL,27.Jan.17,-578.81,EAST VIEW HOUSING MANAGEMENT LTD,Invoice
ASC,SOCIAL SERVICES,CUSTOMER & CLIENT RECPTS - EXT,Revenue,CL CONT EXTERNAL RESIDENTIAL,27.Jan.17,-443.52,SCOPE,Invoice
ASC,SOCIAL SERVICES,CUSTOMER & CLIENT RECPTS - EXT,Revenue,CL CONT EXTERNAL RESIDENTIAL,27.Jan.17,-380.64,SCOPE,Invoice
ASC,SOCIAL SERVICES,CUSTOMER & CLIENT RECPTS - EXT,Revenue,CL CONT EXTERNAL RESIDENTIAL,27.Jan.17,-356.28,ASHCROFT CARE SERVICES,Invoice
ASC,SOCIAL SERVICES,CUSTOMER & CLIENT RECPTS - EXT,Revenue,CL CONT EXTERNAL RESIDENTIAL,24.Jan.17,-356.28,229 MITCHAM LANE LTD,Invoice
ASC,SOCIAL SERVICES,CUSTOMER & CLIENT RECPTS - EXT,Revenue,CL CONT EXTERNAL RESIDENTIAL,24.Jan.17,-356.28,229 MITCHAM LANE LTD,Invoice
ASC,SOCIAL SERVICES,CUSTOMER & CLIENT RECPTS - EXT,Revenue,CL CONT EXTERNAL RESIDENTIAL,27.Jan.17,-356.28,229 MITCHAM LANE LTD,Invoice
ASC,SOCIAL SERVICES,CUSTOMER & CLIENT RECPTS - EXT,Revenue,CL CONT EXTERNAL RESIDENTIAL,12.Jan.17,-321.8,WINSLOW COURT,Invoice
ASC,SOCIAL SERVICES,CUSTOMER & CLIENT RECPTS - EXT,Revenue,CL CONT EXTERNAL RESIDENTIAL,27.Jan.17,-321.8,THE LEO TRUST,Invoice
ASC,SOCIAL SERVICES,CUSTOMER & CLIENT RECPTS - EXT,Revenue,CL CONT EXTERNAL RESIDENTIAL,19.Jan.17,-380.64,TRACS,Invoice
ASC,SOCIAL SERVICES,CUSTOMER & CLIENT RECPTS - EXT,Revenue,CL CONT EXTERNAL RESIDENTIAL,27.Jan.17,-443.52,PROGRESS HOUSING MARLOW,Invoice
ASC,SOCIAL SERVICES,CUSTOMER & CLIENT RECPTS - EXT,Revenue,CL CONT EXTERNAL RESIDENTIAL,27.Jan.17,-356.28,CHERRY LODGE,Invoice
ASC,SOCIAL SERVICES,CUSTOMER & CLIENT RECPTS - EXT,Revenue,CL CONT EXTERNAL RESIDENTIAL,19.Jan.17,-321.8,RIDGEWOOD CARE SERVICES LTD,Invoice
ASC,SOCIAL SERVICES,CUSTOMER & CLIENT RECPTS - EXT,Revenue,CL CONT EXTERNAL RESIDENTIAL,19.Jan.17,-400.6,RIDGEWOOD CARE SERVICES LTD,Invoice
ASC,SOCIAL SERVICES,CUSTOMER & CLIENT RECPTS - EXT,Revenue,CL CONT EXTERNAL RESIDENTIAL,16.Jan.17,-344.79,LEONARD CHESHIRE,Invoice
ASC,SOCIAL SERVICES,CUSTOMER & CLIENT RECPTS - EXT,Revenue,CL CONT EXTERNAL RESIDENTIAL,09.Jan.17,-321.8,LOTUS CARE HOME LTD,Invoice
ASC,SOCIAL SERVICES,CUSTOMER & CLIENT RECPTS - EXT,Revenue,CL CONT EXTERNAL RESIDENTIAL,24.Jan.17,-321.8,LOTUS CARE HOME LTD,Invoice
ASC,SOCIAL SERVICES,CUSTOMER & CLIENT RECPTS - EXT,Revenue,CL CONT EXTERNAL RESIDENTIAL,12.Jan.17,-321.8,THE HOME FARM TRUST LTD,Invoice
ASC,SOCIAL SERVICES,CUSTOMER & CLIENT RECPTS - EXT,Revenue,CL CONT EXTERNAL RESIDENTIAL,12.Jan.17,-522.8,THE HOME FARM TRUST LTD,Invoice
ASC,SOCIAL SERVICES,CUSTOMER & CLIENT RECPTS - EXT,Revenue,CL CONT EXTERNAL RESIDENTIAL,12.Jan.17,-522.8,THE HOME FARM TRUST LTD,Invoice
ASC,SOCIAL SERVICES,CUSTOMER & CLIENT RECPTS - EXT,Revenue,CL CONT EXTERNAL RESIDENTIAL,27.Jan.17,-275.5,ALLIED CARE (MHS) LTD,Invoice
ASC,SOCIAL SERVICES,CUSTOMER & CLIENT RECPTS - EXT,Revenue,CL CONT EXTERNAL RESIDENTIAL,27.Jan.17,-321.8,ALLIED CARE (MHS) LTD,Invoice
ASC,SOCIAL SERVICES,CUSTOMER & CLIENT RECPTS - EXT,Revenue,CL CONT EXTERNAL RESIDENTIAL,31.Jan.17,-248.84,ALLIED CARE (MHS) LTD,Invoice
ASC,SOCIAL SERVICES,CUSTOMER & CLIENT RECPTS - EXT,Revenue,CL CONT EXTERNAL RESIDENTIAL,31.Jan.17,-321.8,ALLIED CARE (MHS) LTD,Invoice
ASC,SOCIAL SERVICES,CUSTOMER & CLIENT RECPTS - EXT,Revenue,CL CONT EXTERNAL RESIDENTIAL,04.Jan.17,-356.28,ILG LTD,Invoice
ASC,SOCIAL SERVICES,CUSTOMER & CLIENT RECPTS - EXT,Revenue,CL CONT EXTERNAL RESIDENTIAL,27.Jan.17,-348.6,TOTTERDOWN,Invoice
ASC,SOCIAL SERVICES,CUSTOMER & CLIENT RECPTS - EXT,Revenue,CL CONT EXTERNAL RESIDENTIAL,04.Jan.17,-1095.6,SUSSEX HEALTH CARE,Invoice
ASC,SOCIAL SERVICES,CUSTOMER & CLIENT RECPTS - EXT,Revenue,CL CONT EXTERNAL RESIDENTIAL,12.Jan.17,-405.65,LONDON CARE PARTNERSHIP LTD,Invoice
ASC,SOCIAL SERVICES,CUSTOMER & CLIENT RECPTS - EXT,Revenue,CL CONT EXTERNAL RESIDENTIAL,27.Jan.17,-392.57,LONDON CARE PARTNERSHIP LTD,Invoice
ASC,SOCIAL SERVICES,CUSTOMER & CLIENT RECPTS - EXT,Revenue,CL CONT EXTERNAL RESIDENTIAL,27.Jan.17,-443.52,LONDON CARE PARTNERSHIP LTD,Invoice
ASC,SOCIAL SERVICES,CUSTOMER & CLIENT RECPTS - EXT,Revenue,CL CONT EXTERNAL RESIDENTIAL,27.Jan.17,-356.28,LONDON CARE PARTNERSHIP LTD,Invoice
ASC,SOCIAL SERVICES,CUSTOMER & CLIENT RECPTS - EXT,Revenue,CL CONT EXTERNAL RESIDENTIAL,27.Jan.17,-443.52,LONDON CARE PARTNERSHIP LTD,Invoice
ASC,SOCIAL SERVICES,CUSTOMER & CLIENT RECPTS - EXT,Revenue,CL CONT EXTERNAL RESIDENTIAL,27.Jan.17,-213.46,LONDON CARE PARTNERSHIP LTD,Invoice
ASC,SOCIAL SERVICES,CUSTOMER & CLIENT RECPTS - EXT,Revenue,CL CONT EXTERNAL RESIDENTIAL,27.Jan.17,-405.66,LONDON CARE PARTNERSHIP LTD,Invoice
ASC,SOCIAL SERVICES,CUSTOMER & CLIENT RECPTS - EXT,Revenue,CL CONT EXTERNAL RESIDENTIAL,27.Jan.17,-356.28,HOME FROM HOME CARE LIMITED,Invoice
ASC,SOCIAL SERVICES,CUSTOMER & CLIENT RECPTS - EXT,Revenue,CL CONT EXTERNAL RESIDENTIAL,05.Jan.17,-366.4,LARKFIELD HALL LTD T/A PEPENBURY,Invoice
ASC,SOCIAL SERVICES,CUSTOMER & CLIENT RECPTS - EXT,Revenue,CL CONT EXTERNAL RESIDENTIAL,03.Jan.17,-379.07,NUTLEY HALL LTD,Invoice
ASC,SOCIAL SERVICES,CUSTOMER & CLIENT RECPTS - EXT,Revenue,CL CONT EXTERNAL RESIDENTIAL,03.Jan.17,-391.7,NUTLEY HALL LTD,Invoice
ASC,SOCIAL SERVICES,CUSTOMER & CLIENT RECPTS - EXT,Revenue,CL CONT EXTERNAL RESIDENTIAL,27.Jan.17,-391.71,NUTLEY HALL LTD,Invoice
ASC,SOCIAL SERVICES,CUSTOMER & CLIENT RECPTS - EXT,Revenue,CL CONT EXTERNAL RESIDENTIAL,27.Jan.17,-393.6,CRAEGMOOR OLD RECTORY BREDE PRIORY,Invoice
ASC,SOCIAL SERVICES,CUSTOMER & CLIENT RECPTS - EXT,Revenue,CL CONT EXTERNAL RESIDENTIAL,27.Jan.17,-356.28,PATHWAY HEALTHCARE,Invoice
ASC,SOCIAL SERVICES,CUSTOMER & CLIENT RECPTS - EXT,Revenue,CL CONT EXTERNAL RESIDENTIAL,11.Jan.17,-321.8,NORCREST (2000) HOME LTD,Invoice
ASC,SOCIAL SERVICES,CUSTOMER & CLIENT RECPTS - EXT,Revenue,CL CONT EXTERNAL RESIDENTIAL,11.Jan.17,-321.8,NORCREST (2000) HOME LTD,Invoice
ASC,SOCIAL SERVICES,CUSTOMER & CLIENT RECPTS - EXT,Revenue,CL CONT EXTERNAL RESIDENTIAL,30.Jan.17,-321.8,INSPIRE CARE OUTREACH LIMITED,Invoice
ASC,SOCIAL SERVICES,CUSTOMER & CLIENT RECPTS - EXT,Revenue,CL CONT EXTERNAL RESIDENTIAL,19.Jan.17,-321.8,C.H.O.I.C.E LIMITED,Invoice
ASC,SOCIAL SERVICES,CUSTOMER & CLIENT RECPTS - EXT,Revenue,CL CONT EXTERNAL RESIDENTIAL,20.Jan.17,-321.8,C.H.O.I.C.E LIMITED,Invoice
ASC,SOCIAL SERVICES,CUSTOMER & CLIENT RECPTS - EXT,Revenue,CL CONT EXTERNAL RESIDENTIAL,27.Jan.17,-132,"CRAEGMOOR, PARKCARE HOMES (NO2) LTD TA W",Invoice
ASC,SOCIAL SERVICES,CUSTOMER & CLIENT RECPTS - EXT,Revenue,CL CONT EXTERNAL RESIDENTIAL,12.Jan.17,-400.6,HEATHCOTES(SOUTHERN)LTD,Invoice
ASC,SOCIAL SERVICES,CUSTOMER & CLIENT RECPTS - EXT,Revenue,CL CONT EXTERNAL RESIDENTIAL,27.Jan.17,-786.89,ZERO THREE CARE HOMES LLP,Invoice
ASC,SOCIAL SERVICES,CUSTOMER & CLIENT RECPTS - EXT,Revenue,CL CONTS INTERNAL RESIDENTIAL,26.Jan.17,-321.8,MACINTYRE CARE,Invoice
ASC,SOCIAL SERVICES,CUSTOMER & CLIENT RECPTS - EXT,Revenue,CL CONTS INTERNAL RESIDENTIAL,12.Jan.17,-321.8,METROPOLITAN HOUSING TRUST,Invoice
ASC,SOCIAL SERVICES,CUSTOMER & CLIENT RECPTS - EXT,Revenue,CLIENT CONTS - DIRECT PAYMENTS,24.Jan.17,-38.8,HESTIA HOUSING & SUPPORT,Invoice
ASC,SOCIAL SERVICES,CUSTOMER & CLIENT RECPTS - EXT,Revenue,CLIENT CONTS - DIRECT PAYMENTS,24.Jan.17,-209.6,HESTIA HOUSING & SUPPORT,Invoice
ASC,SOCIAL SERVICES,CUSTOMER & CLIENT RECPTS - EXT,Revenue,CLIENT CONTS - DIRECT PAYMENTS,24.Jan.17,-235.4,VIBRANCE,Invoice
ASC,SOCIAL SERVICES,CUSTOMER & CLIENT RECPTS - EXT,Revenue,CLIENT CONTS - DIRECT PAYMENTS,24.Jan.17,-114.52,VIBRANCE,Invoice
ASC,SOCIAL SERVICES,CUSTOMER & CLIENT RECPTS - EXT,Revenue,CLIENT CONTS - DIRECT PAYMENTS,24.Jan.17,-57.6,VIBRANCE,Invoice
ASC,SOCIAL SERVICES,CUSTOMER & CLIENT RECPTS - EXT,Revenue,CLIENT CONTS - DIRECT PAYMENTS,24.Jan.17,-74.8,EPAYROLLUK LTD,Invoice
ASC,SOCIAL SERVICES,CUSTOMER & CLIENT RECPTS - EXT,Revenue,CLIENT CONTS EXTERNAL NURSING,12.Jan.17,-321.8,WINGHAM COURT,Invoice
ASC,SOCIAL SERVICES,CUSTOMER & CLIENT RECPTS - EXT,Revenue,CLIENT CONTS EXTERNAL NURSING,27.Jan.17,-564.88,ROSEDENE NURSING HOME,Invoice
ASC,SOCIAL SERVICES,CUSTOMER & CLIENT RECPTS - EXT,Revenue,CLIENT CONTS EXTERNAL NURSING,04.Jan.17,-315.1,VOYAGE CARE LTD,Invoice
ASC,SOCIAL SERVICES,CUSTOMER & CLIENT RECPTS - EXT,Revenue,CLIENT CONTS EXTERNAL NURSING,04.Jan.17,-443.52,VOYAGE CARE LTD,Invoice
ASC,SOCIAL SERVICES,CUSTOMER & CLIENT RECPTS - EXT,Revenue,CLIENT CONTS EXTERNAL NURSING,27.Jan.17,-889.84,BUPA CARE SERVICES BACS RECEIPTS,Invoice
ASC,SOCIAL SERVICES,CUSTOMER & CLIENT RECPTS - EXT,Revenue,CLIENT CONTS EXTERNAL NURSING,27.Jan.17,-522.8,BUPA CARE SERVICES BACS RECEIPTS,Invoice
ASC,SOCIAL SERVICES,CUSTOMER & CLIENT RECPTS - EXT,Revenue,CLIENT CONTS EXTERNAL NURSING,27.Jan.17,-804.5,BUPA CARE SERVICES BACS RECEIPTS,Invoice
ASC,SOCIAL SERVICES,CUSTOMER & CLIENT RECPTS - EXT,Revenue,CLIENT CONTS EXTERNAL NURSING,20.Jan.17,-331.53,HIGH HURLANDS HOMES,Invoice
ASC,SOCIAL SERVICES,CUSTOMER & CLIENT RECPTS - EXT,Revenue,CLIENT CONTS EXTERNAL NURSING,04.Jan.17,-443.52,SUSSEX HEALTH CARE,Invoice
ASC,SOCIAL SERVICES,CUSTOMER & CLIENT RECPTS - EXT,Revenue,CLIENT CONTS EXTERNAL NURSING,04.Jan.17,-443.52,SUSSEX HEALTH CARE,Invoice
ASC,SOCIAL SERVICES,CUSTOMER & CLIENT RECPTS - EXT,Revenue,CLIENT CONTS EXTERNAL NURSING,04.Jan.17,-405.66,SUSSEX HEALTH CARE,Invoice
ASC,SOCIAL SERVICES,CUSTOMER & CLIENT RECPTS - EXT,Revenue,RNCC,12.Jan.17,-625,WINGHAM COURT,Invoice
ASC,SOCIAL SERVICES,CUSTOMER & CLIENT RECPTS - EXT,Revenue,RNCC,27.Jan.17,-625,ROSEDENE NURSING HOME,Invoice
ASC,SOCIAL SERVICES,CUSTOMER & CLIENT RECPTS - EXT,Revenue,RNCC,04.Jan.17,-691.97,VOYAGE CARE LTD,Invoice
ASC,SOCIAL SERVICES,CUSTOMER & CLIENT RECPTS - EXT,Revenue,RNCC,04.Jan.17,-691.97,VOYAGE CARE LTD,Invoice
ASC,SOCIAL SERVICES,CUSTOMER & CLIENT RECPTS - EXT,Revenue,RNCC,27.Jan.17,-625,BUPA CARE SERVICES BACS RECEIPTS,Invoice
ASC,SOCIAL SERVICES,CUSTOMER & CLIENT RECPTS - EXT,Revenue,RNCC,27.Jan.17,-625,BUPA CARE SERVICES BACS RECEIPTS,Invoice
ASC,SOCIAL SERVICES,CUSTOMER & CLIENT RECPTS - EXT,Revenue,RNCC,27.Jan.17,-1562.5,BUPA CARE SERVICES BACS RECEIPTS,Invoice
ASC,SOCIAL SERVICES,CUSTOMER & CLIENT RECPTS - EXT,Revenue,RNCC,20.Jan.17,-829.44,HIGH HURLANDS HOMES,Invoice
ASC,SOCIAL SERVICES,CUSTOMER & CLIENT RECPTS - EXT,Revenue,RNCC,04.Jan.17,-691.97,SUSSEX HEALTH CARE,Invoice
ASC,SOCIAL SERVICES,CUSTOMER & CLIENT RECPTS - EXT,Revenue,RNCC,04.Jan.17,-691.96,SUSSEX HEALTH CARE,Invoice
ASC,SOCIAL SERVICES,CUSTOMER & CLIENT RECPTS - EXT,Revenue,RNCC,04.Jan.17,-691.96,SUSSEX HEALTH CARE,Invoice
ASC,,SERVICES,Revenue,PROJECT WORK,03.Jan.17,7500,WANDSWORTH CARE ALLIANCE,Invoice
ASC,,"REPAIRS, ALTERATIONS & MTCE",Revenue,"REPS, ALTS & MTCE-BUILDINGS",16.Jan.17,7500,VIRIDIAN HOUSING,Invoice
PH,SOCIAL SERVICES,PRIVATE,Revenue,EXTERNAL RESIDENTIAL CARE,27.Jan.17,4074.29,TREVI HOUSE LTD,Invoice
PH,SOCIAL SERVICES,PRIVATE,Revenue,EXTERNAL RESIDENTIAL CARE,12.Jan.17,2693.69,MOUNT CARMEL,Invoice
PH,SOCIAL SERVICES,PRIVATE,Revenue,EXTERNAL RESIDENTIAL CARE,17.Jan.17,2700,MOUNT CARMEL,Invoice
PH,SOCIAL SERVICES,PRIVATE,Revenue,EXTERNAL RESIDENTIAL CARE,17.Jan.17,3000,MOUNT CARMEL,Invoice
PH,SOCIAL SERVICES,PRIVATE,Revenue,EXTERNAL RESIDENTIAL CARE,17.Jan.17,3100.01,MOUNT CARMEL,Invoice
PH,SOCIAL SERVICES,CUSTOMER & CLIENT RECPTS - EXT,Revenue,CL CONT EXTERNAL RESIDENTIAL,27.Jan.17,-213.46,TREVI HOUSE LTD,Invoice
PH,SOCIAL SERVICES,CUSTOMER & CLIENT RECPTS - EXT,Revenue,CL CONT EXTERNAL RESIDENTIAL,12.Jan.17,-199.69,MOUNT CARMEL,Invoice
PH,SOCIAL SERVICES,CUSTOMER & CLIENT RECPTS - EXT,Revenue,CL CONT EXTERNAL RESIDENTIAL,17.Jan.17,-27.85,MOUNT CARMEL,Invoice
PH,SOCIAL SERVICES,CUSTOMER & CLIENT RECPTS - EXT,Revenue,CL CONT EXTERNAL RESIDENTIAL,17.Jan.17,-30.94,MOUNT CARMEL,Invoice
PH,SOCIAL SERVICES,CUSTOMER & CLIENT RECPTS - EXT,Revenue,CL CONT EXTERNAL RESIDENTIAL,17.Jan.17,-31.98,MOUNT CARMEL,Invoice
ASC,SOCIAL SERVICES,OTHER AGENCIES,Revenue,EXTERNAL OUTREACH,16.Jan.17,608.4,ACTION ON HEARING LOSS,Invoice
ASC,SOCIAL SERVICES,OTHER AGENCIES,Revenue,EXTERNAL OUTREACH,18.Jan.17,919.44,ACTION ON HEARING LOSS,Invoice
ASC,,"EQUIPMENT, FURNITURE & MATS",Revenue,DOGS EQUIPMENT & FOOD,17.Jan.17,760,PAULWAY KENNELS & CATTERIES,Invoice
ASC,SOCIAL SERVICES,SERVICES,Revenue,TRAVEL BUDDY SCHEME,24.Jan.17,2691.1,HARINGEY ASSOCIATION FOR INDEPENDENT LIV,Invoice
ASC,SOCIAL SERVICES,OTHER AGENCIES,Revenue,EXTERNAL LODGINGS,26.Jan.17,1350,EURO HOTELS (GILROY COURT) LTD,Invoice
ASC,SOCIAL SERVICES,OTHER AGENCIES,Revenue,EXTERNAL LODGINGS,26.Jan.17,1395,EURO HOTELS (GILROY COURT) LTD,Invoice
ASC,SOCIAL SERVICES,OTHER AGENCIES,Revenue,EXTERNAL LODGINGS,26.Jan.17,2700,EURO HOTELS (HOUNSLOW) LTD,Invoice
ASC,SOCIAL SERVICES,OTHER AGENCIES,Revenue,EXTERNAL LODGINGS,26.Jan.17,1710,EURO HOTELS (HOUNSLOW) LTD,Invoice
ASC,SOCIAL SERVICES,OTHER AGENCIES,Revenue,EXTERNAL OUTREACH,03.Jan.17,480.47,NAS SERVICES LIMITED,Invoice
ASC,SOCIAL SERVICES,OTHER AGENCIES,Revenue,EXTERNAL OUTREACH,20.Jan.17,536.22,NAS SERVICES LIMITED,Invoice
ASC,SOCIAL SERVICES,OTHER AGENCIES,Revenue,EXTERNAL OUTREACH,11.Jan.17,560,SIGNHEALTH,Invoice
ASC,SOCIAL SERVICES,OTHER AGENCIES,Revenue,EXTERNAL OUTREACH,16.Jan.17,628.14,ROYAL ASSOCIATION FOR DEAF PEOPLE,Invoice
ASC,SOCIAL SERVICES,OTHER AGENCIES,Revenue,EXTERNAL OUTREACH,16.Jan.17,1240,ACTION ON HEARING LOSS,Invoice
ASC,SOCIAL SERVICES,OTHER AGENCIES,Revenue,EXTERNAL OUTREACH,18.Jan.17,940.56,ACTION ON HEARING LOSS,Invoice
ASC,SOCIAL SERVICES,OTHER AGENCIES,Revenue,EXTERNAL OUTREACH,18.Jan.17,0.16,ACTION ON HEARING LOSS,Invoice
ASC,SOCIAL SERVICES,OTHER AGENCIES,Revenue,EXTERNAL OUTREACH,20.Jan.17,1116,ACTION ON HEARING LOSS,Invoice
ASC,SOCIAL SERVICES,OTHER AGENCIES,Revenue,EXTERNAL OUTREACH,20.Jan.17,1410.5,ACTION ON HEARING LOSS,Invoice
ASC,SOCIAL SERVICES,PRIVATE,Revenue,EXTERNAL- MISC (CLEAN-UPS ETC),16.Jan.17,420,CLEARUP SOLUTIONS,Invoice
ASC,SOCIAL SERVICES,PRIVATE,Revenue,EXTERNAL DAYCARE,06.Jan.17,515.88,NAS SERVICES LIMITED,Invoice
ASC,SOCIAL SERVICES,PRIVATE,Revenue,EXTERNAL DAYCARE,17.Jan.17,515.88,NAS SERVICES LIMITED,Invoice
ASC,SOCIAL SERVICES,PRIVATE,Revenue,EXTERNAL DAYCARE,06.Jan.17,897.65,SHARE COMMUNITY,Invoice
ASC,SOCIAL SERVICES,PRIVATE,Revenue,EXTERNAL DAYCARE,06.Jan.17,1196.9,SHARE COMMUNITY,Invoice
ASC,SOCIAL SERVICES,PRIVATE,Revenue,EXTERNAL DAYCARE,03.Jan.17,845.6,WANDSWORTH BENGALI WELFARE ASSOCIATION,Invoice
ASC,SOCIAL SERVICES,PRIVATE,Revenue,EXTERNAL DAYCARE,24.Jan.17,718.76,WANDSWORTH BENGALI WELFARE ASSOCIATION,Invoice
ASC,SOCIAL SERVICES,PRIVATE,Revenue,EXTERNAL DAYCARE,25.Jan.17,4774,THE LANE COMMUNITY,Invoice
ASC,SOCIAL SERVICES,PRIVATE,Revenue,EXTERNAL DAYCARE,05.Jan.17,945,FAMILY ACTION,Invoice
ASC,SOCIAL SERVICES,PRIVATE,Revenue,EXTERNAL DAYCARE,05.Jan.17,720,FAMILY ACTION,Invoice
ASC,SOCIAL SERVICES,PRIVATE,Revenue,EXTERNAL DAYCARE,05.Jan.17,1260,FAMILY ACTION,Invoice
ASC,SOCIAL SERVICES,PRIVATE,Revenue,EXTERNAL HOMECARE,25.Jan.17,602.15,HOLISTIC COMMUNITY CARE LTD,Invoice
ASC,SOCIAL SERVICES,PRIVATE,Revenue,EXTERNAL HOMECARE,03.Jan.17,1411.96,ASIAN ELDERS SUPPORT SCHEME,Invoice
ASC,SOCIAL SERVICES,PRIVATE,Revenue,EXTERNAL HOMECARE,04.Jan.17,520.5,ASIAN ELDERS SUPPORT SCHEME,Invoice
ASC,SOCIAL SERVICES,PRIVATE,Revenue,EXTERNAL HOMECARE,30.Jan.17,1083.36,PARKGATE NURSING AGENCY,Invoice
ASC,SOCIAL SERVICES,PRIVATE,Revenue,EXTERNAL HOMECARE,09.Jan.17,1692.01,MUSHKIL AASAAN LTD,Invoice
ASC,SOCIAL SERVICES,PRIVATE,Revenue,EXTERNAL HOMECARE,09.Jan.17,1170,SOMA HEALTHCARE LTD,Invoice
ASC,SOCIAL SERVICES,PRIVATE,Revenue,EXTERNAL HOMECARE,09.Jan.17,1031.5,SOMA HEALTHCARE LTD,Invoice
ASC,SOCIAL SERVICES,PRIVATE,Revenue,EXTERNAL HOMECARE,09.Jan.17,866.25,SOMA HEALTHCARE LTD,Invoice
ASC,SOCIAL SERVICES,PRIVATE,Revenue,EXTERNAL HOMECARE,16.Jan.17,863.78,SUPREME CARE SERVICE LTD,Invoice
ASC,SOCIAL SERVICES,PRIVATE,Revenue,EXTERNAL HOMECARE,16.Jan.17,314.36,SUPREME CARE SERVICE LTD,Invoice
ASC,SOCIAL SERVICES,PRIVATE,Revenue,EXTERNAL HOMECARE,16.Jan.17,627.04,SUPREME CARE SERVICE LTD,Invoice
ASC,SOCIAL SERVICES,PRIVATE,Revenue,EXTERNAL HOMECARE,06.Jan.17,756.2,HOME INSTEAD SENIOR CARE LTD,Invoice
ASC,SOCIAL SERVICES,PRIVATE,Revenue,EXTERNAL HOMECARE,20.Jan.17,676.6,HOME INSTEAD SENIOR CARE LTD,Invoice
ASC,SOCIAL SERVICES,PRIVATE,Revenue,EXTERNAL HOMECARE,26.Jan.17,1419.54,STOCKWELLCARE SUPPORT SERVICES,Invoice
ASC,SOCIAL SERVICES,PRIVATE,Revenue,EXTERNAL HOMECARE,26.Jan.17,1357.83,STOCKWELLCARE SUPPORT SERVICES,Invoice
ASC,SOCIAL SERVICES,PRIVATE,Revenue,EXTERNAL HOMECARE,26.Jan.17,1049.26,STOCKWELLCARE SUPPORT SERVICES,Invoice
ASC,SOCIAL SERVICES,PRIVATE,Revenue,EXTERNAL HOMECARE,09.Jan.17,1917.12,MCCALLUM CARE LTD CAREMARK (WANDSWORTH),Invoice
ASC,SOCIAL SERVICES,PRIVATE,Revenue,EXTERNAL HOMECARE,16.Jan.17,1978.94,MCCALLUM CARE LTD CAREMARK (WANDSWORTH),Invoice
ASC,SOCIAL SERVICES,PRIVATE,Revenue,EXTERNAL HOMECARE,25.Jan.17,560.8,DAY AND NITE CARE,Invoice
ASC,SOCIAL SERVICES,PRIVATE,Revenue,EXTERNAL HOMECARE,03.Jan.17,1107.22,LONDON HOMECARE LTD,Invoice
ASC,SOCIAL SERVICES,PRIVATE,Revenue,EXTERNAL HOMECARE,26.Jan.17,1112.85,LONDON HOMECARE LTD,Invoice
ASC,SOCIAL SERVICES,PRIVATE,Revenue,EXTERNAL HOMECARE,06.Jan.17,731.88,PROFESSIONAL CARE SUPPORT SERVICES LTD,Invoice
ASC,SOCIAL SERVICES,PRIVATE,Revenue,EXTERNAL HOMECARE,06.Jan.17,731.88,PROFESSIONAL CARE SUPPORT SERVICES LTD,Invoice
ASC,SOCIAL SERVICES,PRIVATE,Revenue,EXTERNAL HOMECARE,06.Jan.17,731.88,PROFESSIONAL CARE SUPPORT SERVICES LTD,Invoice
ASC,SOCIAL SERVICES,PRIVATE,Revenue,EXTERNAL HOMECARE,09.Jan.17,731.88,PROFESSIONAL CARE SUPPORT SERVICES LTD,Invoice
ASC,SOCIAL SERVICES,PRIVATE,Revenue,EXTERNAL HOMECARE,18.Jan.17,1379.96,PROFESSIONAL CARE SUPPORT SERVICES LTD,Invoice
ASC,SOCIAL SERVICES,PRIVATE,Revenue,EXTERNAL HOMECARE,18.Jan.17,796.88,PROFESSIONAL CARE SUPPORT SERVICES LTD,Invoice
ASC,SOCIAL SERVICES,PRIVATE,Revenue,EXTERNAL HOMECARE,18.Jan.17,897.58,PROFESSIONAL CARE SUPPORT SERVICES LTD,Invoice
ASC,SOCIAL SERVICES,PRIVATE,Revenue,EXTERNAL NURSING CARE,27.Jan.17,2893.6,GEORGE POTTER CARE HOME LTD,Invoice
ASC,SOCIAL SERVICES,PRIVATE,Revenue,EXTERNAL NURSING CARE,27.Jan.17,3546.8,ROSEDENE NURSING HOME,Invoice
ASC,SOCIAL SERVICES,PRIVATE,Revenue,EXTERNAL NURSING CARE,27.Jan.17,3723.8,ROSEDENE NURSING HOME,Invoice
ASC,SOCIAL SERVICES,PRIVATE,Revenue,EXTERNAL NURSING CARE,27.Jan.17,3546.8,ROSEDENE NURSING HOME,Invoice
ASC,SOCIAL SERVICES,PRIVATE,Revenue,EXTERNAL NURSING CARE,27.Jan.17,5965.96,ROSEDENE NURSING HOME,Invoice
ASC,SOCIAL SERVICES,PRIVATE,Revenue,EXTERNAL NURSING CARE,27.Jan.17,3577,ROSEDENE NURSING HOME,Invoice
ASC,SOCIAL SERVICES,PRIVATE,Revenue,EXTERNAL NURSING CARE,27.Jan.17,3643.6,ROSEDENE NURSING HOME,Invoice
ASC,SOCIAL SERVICES,PRIVATE,Revenue,EXTERNAL NURSING CARE,27.Jan.17,3957,ROSEDENE NURSING HOME,Invoice
ASC,SOCIAL SERVICES,PRIVATE,Revenue,EXTERNAL NURSING CARE,27.Jan.17,3434,ROSEDENE NURSING HOME,Invoice
ASC,SOCIAL SERVICES,PRIVATE,Revenue,EXTERNAL NURSING CARE,27.Jan.17,3560,ROSEDENE NURSING HOME,Invoice
ASC,SOCIAL SERVICES,PRIVATE,Revenue,EXTERNAL NURSING CARE,27.Jan.17,3369.8,ROSEDENE NURSING HOME,Invoice
ASC,SOCIAL SERVICES,PRIVATE,Revenue,EXTERNAL NURSING CARE,27.Jan.17,3406.68,TRINITY COURT NURSING HOME,Invoice
ASC,SOCIAL SERVICES,PRIVATE,Revenue,EXTERNAL NURSING CARE,27.Jan.17,3096.44,TRINITY COURT NURSING HOME,Invoice
ASC,SOCIAL SERVICES,PRIVATE,Revenue,EXTERNAL NURSING CARE,27.Jan.17,3416.52,TRINITY COURT NURSING HOME,Invoice
ASC,SOCIAL SERVICES,PRIVATE,Revenue,EXTERNAL NURSING CARE,27.Jan.17,3146.44,TRINITY COURT NURSING HOME,Invoice
ASC,SOCIAL SERVICES,PRIVATE,Revenue,EXTERNAL NURSING CARE,27.Jan.17,2969.44,TRINITY COURT NURSING HOME,Invoice
ASC,SOCIAL SERVICES,PRIVATE,Revenue,EXTERNAL NURSING CARE,27.Jan.17,2948.8,TRINITY COURT NURSING HOME,Invoice
ASC,SOCIAL SERVICES,PRIVATE,Revenue,EXTERNAL NURSING CARE,27.Jan.17,3054.72,TRINITY COURT NURSING HOME,Invoice
ASC,SOCIAL SERVICES,PRIVATE,Revenue,EXTERNAL NURSING CARE,27.Jan.17,3150.12,TRINITY COURT NURSING HOME,Invoice
ASC,SOCIAL SERVICES,PRIVATE,Revenue,EXTERNAL NURSING CARE,27.Jan.17,5281.52,TRINITY COURT NURSING HOME,Invoice
ASC,SOCIAL SERVICES,PRIVATE,Revenue,EXTERNAL NURSING CARE,23.Jan.17,3774.02,TRILODGE LTD,Invoice
ASC,SOCIAL SERVICES,PRIVATE,Revenue,EXTERNAL NURSING CARE,23.Jan.17,3774.25,TRILODGE LTD,Invoice
ASC,SOCIAL SERVICES,PRIVATE,Revenue,EXTERNAL NURSING CARE,27.Jan.17,6748.11,LIFE STYLE CARE (2011) PLC,Invoice
ASC,SOCIAL SERVICES,PRIVATE,Revenue,EXTERNAL NURSING CARE,27.Jan.17,2792.52,LIFESTYLE CARE MANAGEMENT LTD,Invoice
ASC,SOCIAL SERVICES,PRIVATE,Revenue,EXTERNAL NURSING CARE,27.Jan.17,2880.84,LIFESTYLE CARE MANAGEMENT LTD,Invoice
ASC,SOCIAL SERVICES,PRIVATE,Revenue,EXTERNAL NURSING CARE,16.Jan.17,3344.96,HEALTH CARE HOMES - SOVEREIGN LODGE,Invoice
ASC,SOCIAL SERVICES,PRIVATE,Revenue,EXTERNAL NURSING CARE,16.Jan.17,3344.96,HEALTH CARE HOMES - SOVEREIGN LODGE,Invoice
ASC,SOCIAL SERVICES,PRIVATE,Revenue,EXTERNAL NURSING CARE,17.Jan.17,3792.96,HEALTH CARE HOMES - SOVEREIGN LODGE,Invoice
ASC,SOCIAL SERVICES,PRIVATE,Revenue,EXTERNAL NURSING CARE,17.Jan.17,3792.96,HEALTH CARE HOMES - SOVEREIGN LODGE,Invoice
ASC,SOCIAL SERVICES,PRIVATE,Revenue,EXTERNAL NURSING CARE,17.Jan.17,3792.96,HEALTH CARE HOMES - SOVEREIGN LODGE,Invoice
ASC,SOCIAL SERVICES,PRIVATE,Revenue,EXTERNAL NURSING CARE,17.Jan.17,3792.96,HEALTH CARE HOMES - SOVEREIGN LODGE,Invoice
ASC,SOCIAL SERVICES,PRIVATE,Revenue,EXTERNAL RESIDENTIAL CARE,09.Jan.17,8075.64,CMG HOMES LTD,Invoice
ASC,SOCIAL SERVICES,PRIVATE,Revenue,EXTERNAL RESIDENTIAL CARE,26.Jan.17,8075.64,CMG HOMES LTD,Invoice
ASC,SOCIAL SERVICES,PRIVATE,Revenue,EXTERNAL RESIDENTIAL CARE,09.Jan.17,2421,SANCTUARY HOME CARE LTD,Invoice
ASC,SOCIAL SERVICES,PRIVATE,Revenue,EXTERNAL RESIDENTIAL CARE,27.Jan.17,2545.2,JOYCARE HOME SERVICES LTD,Invoice
ASC,SOCIAL SERVICES,PRIVATE,Revenue,EXTERNAL RESIDENTIAL CARE,27.Jan.17,3131,REDACTED PERSONAL DATA,Invoice
ASC,SOCIAL SERVICES,PRIVATE,Revenue,EXTERNAL RESIDENTIAL CARE,27.Jan.17,6038.36,SIGNHEALTH,Invoice
ASC,SOCIAL SERVICES,PRIVATE,Revenue,EXTERNAL RESIDENTIAL CARE,27.Jan.17,7041.92,SIGNHEALTH,Invoice
ASC,SOCIAL SERVICES,PRIVATE,Revenue,EXTERNAL RESIDENTIAL CARE,27.Jan.17,5950.76,SIGNHEALTH,Invoice
ASC,SOCIAL SERVICES,PRIVATE,Revenue,EXTERNAL RESIDENTIAL CARE,27.Jan.17,3542.99,LANGLEY COURT REST HOME,Invoice
ASC,SOCIAL SERVICES,PRIVATE,Revenue,EXTERNAL RESIDENTIAL CARE,27.Jan.17,5092.99,229 MITCHAM LANE LTD,Invoice
ASC,SOCIAL SERVICES,PRIVATE,Revenue,EXTERNAL RESIDENTIAL CARE,27.Jan.17,5143.7,229 MITCHAM LANE LTD,Invoice
ASC,SOCIAL SERVICES,PRIVATE,Revenue,EXTERNAL RESIDENTIAL CARE,27.Jan.17,4500,TOGETHER WORKING FOR WELLBEING,Invoice
ASC,SOCIAL SERVICES,PRIVATE,Revenue,EXTERNAL RESIDENTIAL CARE,25.Jan.17,2504.81,QUANTUM CARE LTD,Invoice
ASC,SOCIAL SERVICES,PRIVATE,Revenue,EXTERNAL RESIDENTIAL CARE,27.Jan.17,2524.29,THORNTON LODGE,Invoice
ASC,SOCIAL SERVICES,PRIVATE,Revenue,EXTERNAL RESIDENTIAL CARE,27.Jan.17,2418,THORNTON LODGE,Invoice
ASC,SOCIAL SERVICES,PRIVATE,Revenue,EXTERNAL RESIDENTIAL CARE,27.Jan.17,2250.56,THORNTON LODGE,Invoice
ASC,SOCIAL SERVICES,PRIVATE,Revenue,EXTERNAL RESIDENTIAL CARE,27.Jan.17,3077.86,DEEPDENE CARE LTD,Invoice
ASC,SOCIAL SERVICES,PRIVATE,Revenue,EXTERNAL RESIDENTIAL CARE,27.Jan.17,3058.99,DEEPDENE CARE LTD,Invoice
ASC,SOCIAL SERVICES,PRIVATE,Revenue,EXTERNAL RESIDENTIAL CARE,27.Jan.17,2228.72,DEEPDENE CARE LTD,Invoice
ASC,SOCIAL SERVICES,PRIVATE,Revenue,EXTERNAL RESIDENTIAL CARE,27.Jan.17,2460.07,DEEPDENE CARE LTD,Invoice
ASC,SOCIAL SERVICES,PRIVATE,Revenue,EXTERNAL RESIDENTIAL CARE,27.Jan.17,3136.67,DEEPDENE CARE LTD,Invoice
ASC,SOCIAL SERVICES,PRIVATE,Revenue,EXTERNAL RESIDENTIAL CARE,27.Jan.17,2228.68,DEEPDENE CARE LTD,Invoice
ASC,SOCIAL SERVICES,PRIVATE,Revenue,EXTERNAL RESIDENTIAL CARE,25.Jan.17,3259.3,REDACTED PERSONAL DATA,Invoice
ASC,SOCIAL SERVICES,PRIVATE,Revenue,EXTERNAL RESIDENTIAL CARE,25.Jan.17,3281.3,REDACTED PERSONAL DATA,Invoice
ASC,SOCIAL SERVICES,PRIVATE,Revenue,EXTERNAL RESIDENTIAL CARE,25.Jan.17,3393,REDACTED PERSONAL DATA,Invoice
ASC,SOCIAL SERVICES,PRIVATE,Revenue,EXTERNAL RESIDENTIAL CARE,27.Jan.17,-3600,CROWNWISE LTD,Invoice
ASC,SOCIAL SERVICES,PRIVATE,Revenue,EXTERNAL RESIDENTIAL CARE,27.Jan.17,3599.99,CROWNWISE LTD,Invoice
ASC,SOCIAL SERVICES,PRIVATE,Revenue,EXTERNAL RESIDENTIAL CARE,27.Jan.17,2917.16,CROWNWISE LTD,Invoice
ASC,SOCIAL SERVICES,PRIVATE,Revenue,EXTERNAL RESIDENTIAL CARE,27.Jan.17,3600,CROWNWISE LTD,Invoice
ASC,SOCIAL SERVICES,PRIVATE,Revenue,EXTERNAL RESIDENTIAL CARE,27.Jan.17,3525.01,CHRIST THE KING RESIDENTIAL CARE,Invoice
ASC,SOCIAL SERVICES,PRIVATE,Revenue,EXTERNAL RESIDENTIAL CARE,11.Jan.17,4702,ADMIRAL HEALTHCARE LTD,Invoice
ASC,SOCIAL SERVICES,PRIVATE,Revenue,EXTERNAL RESIDENTIAL CARE,16.Jan.17,7256,ADMIRAL HEALTHCARE LTD,Invoice
ASC,SOCIAL SERVICES,PRIVATE,Revenue,EXTERNAL RESIDENTIAL CARE,16.Jan.17,6800,ADMIRAL HEALTHCARE LTD,Invoice
ASC,SOCIAL SERVICES,PRIVATE,Revenue,EXTERNAL RESIDENTIAL CARE,16.Jan.17,3500,ADMIRAL HEALTHCARE LTD,Invoice
ASC,SOCIAL SERVICES,PRIVATE,Revenue,EXTERNAL RESIDENTIAL CARE,23.Jan.17,6800,ADMIRAL HEALTHCARE LTD,Invoice
ASC,SOCIAL SERVICES,PRIVATE,Revenue,EXTERNAL RESIDENTIAL CARE,23.Jan.17,6868,ADMIRAL HEALTHCARE LTD,Invoice
ASC,SOCIAL SERVICES,PRIVATE,Revenue,EXTERNAL RESIDENTIAL CARE,23.Jan.17,6800,ADMIRAL HEALTHCARE LTD,Invoice
ASC,SOCIAL SERVICES,PRIVATE,Revenue,EXTERNAL RESIDENTIAL CARE,27.Jan.17,2284.43,JEWISH CARE,Invoice
ASC,SOCIAL SERVICES,PRIVATE,Revenue,EXTERNAL RESIDENTIAL CARE,12.Jan.17,1917.14,MOUNT CARMEL,Invoice
ASC,SOCIAL SERVICES,PRIVATE,Revenue,EXTERNAL RESIDENTIAL CARE,12.Jan.17,2875.72,MOUNT CARMEL,Invoice
ASC,SOCIAL SERVICES,PRIVATE,Revenue,EXTERNAL RESIDENTIAL CARE,12.Jan.17,2971.58,MOUNT CARMEL,Invoice
ASC,SOCIAL SERVICES,PRIVATE,Revenue,EXTERNAL RESIDENTIAL CARE,18.Jan.17,3984.8,ACTION ON HEARING LOSS,Invoice
ASC,SOCIAL SERVICES,PRIVATE,Revenue,EXTERNAL RESIDENTIAL CARE,11.Jan.17,3808.57,COMMUNITY HOUSING & THERAPY,Invoice
ASC,SOCIAL SERVICES,PRIVATE,Revenue,EXTERNAL RESIDENTIAL CARE,25.Jan.17,3750,ABBEY HOUSE,Invoice
ASC,SOCIAL SERVICES,PRIVATE,Revenue,EXTERNAL RESIDENTIAL CARE,25.Jan.17,4212.91,ABBEY HOUSE,Invoice
ASC,SOCIAL SERVICES,PRIVATE,Revenue,EXTERNAL RESIDENTIAL CARE,25.Jan.17,3050,ABBEY HOUSE,Invoice
ASC,SOCIAL SERVICES,PRIVATE,Revenue,EXTERNAL RESIDENTIAL CARE,31.Jan.17,7307.13,ABBEY HOUSE,Invoice
ASC,SOCIAL SERVICES,PRIVATE,Revenue,EXTERNAL RESIDENTIAL CARE,23.Jan.17,2989.29,ROSENMANOR LTD,Invoice
ASC,SOCIAL SERVICES,PRIVATE,Revenue,EXTERNAL RESIDENTIAL CARE,23.Jan.17,3675.71,ROSENMANOR LTD,Invoice
ASC,SOCIAL SERVICES,PRIVATE,Revenue,EXTERNAL RESIDENTIAL CARE,23.Jan.17,3100,ROSENMANOR LTD,Invoice
ASC,SOCIAL SERVICES,PRIVATE,Revenue,EXTERNAL RESIDENTIAL CARE,23.Jan.17,3720,ROSENMANOR LTD,Invoice
ASC,SOCIAL SERVICES,PRIVATE,Revenue,EXTERNAL RESIDENTIAL CARE,23.Jan.17,3493.04,ROSENMANOR LTD,Invoice
ASC,SOCIAL SERVICES,PRIVATE,Revenue,EXTERNAL RESIDENTIAL CARE,27.Jan.17,4096.43,AMBLESIDE LODGE,Invoice
ASC,SOCIAL SERVICES,PRIVATE,Revenue,EXTERNAL RESIDENTIAL CARE,27.Jan.17,4030,AMBLESIDE LODGE,Invoice
ASC,SOCIAL SERVICES,PRIVATE,Revenue,EXTERNAL RESIDENTIAL CARE,23.Jan.17,5200,LONA LODGE,Invoice
ASC,SOCIAL SERVICES,PRIVATE,Revenue,EXTERNAL RESIDENTIAL CARE,03.Jan.17,1975.88,WILLOWMEAD RESIDENTIAL HOME LTD,Invoice
ASC,SOCIAL SERVICES,PRIVATE,Revenue,EXTERNAL RESIDENTIAL CARE,30.Jan.17,1975.88,WILLOWMEAD RESIDENTIAL HOME LTD,Invoice
ASC,SOCIAL SERVICES,PRIVATE,Revenue,EXTERNAL RESIDENTIAL CARE,25.Jan.17,3797.5,COMFORT CARE SERVICES (UK) LTD,Invoice
ASC,SOCIAL SERVICES,PRIVATE,Revenue,EXTERNAL RESIDENTIAL CARE,25.Jan.17,3075,COMFORT CARE SERVICES (UK) LTD,Invoice
ASC,SOCIAL SERVICES,PRIVATE,Revenue,EXTERNAL RESIDENTIAL CARE,25.Jan.17,3177.5,COMFORT CARE SERVICES (UK) LTD,Invoice
ASC,SOCIAL SERVICES,PRIVATE,Revenue,EXTERNAL RESIDENTIAL CARE,25.Jan.17,3177.5,COMFORT CARE SERVICES (UK) LTD,Invoice
ASC,SOCIAL SERVICES,PRIVATE,Revenue,EXTERNAL RESIDENTIAL CARE,23.Jan.17,3475.32,SIGNATURE HEALTH AND LIVING LTD,Invoice
ASC,SOCIAL SERVICES,PRIVATE,Revenue,EXTERNAL RESIDENTIAL CARE,23.Jan.17,3320.32,SIGNATURE HEALTH AND LIVING LTD,Invoice
ASC,SOCIAL SERVICES,PRIVATE,Revenue,EXTERNAL RESIDENTIAL CARE,23.Jan.17,3321.43,SIGNATURE HEALTH AND LIVING LTD,Invoice
ASC,SOCIAL SERVICES,PRIVATE,Revenue,EXTERNAL RESIDENTIAL CARE,16.Jan.17,2914.28,WESTCLIFFE HOUSE LTD,Invoice
ASC,SOCIAL SERVICES,PRIVATE,Revenue,EXTERNAL RESIDENTIAL CARE,16.Jan.17,2616.49,WESTCLIFFE HOUSE LTD,Invoice
ASC,SOCIAL SERVICES,PRIVATE,Revenue,EXTERNAL RESIDENTIAL CARE,27.Jan.17,3675.67,ASSURANCE CARE SERVICES LTD,Invoice
ASC,SOCIAL SERVICES,PRIVATE,Revenue,EXTERNAL RESIDENTIAL CARE,27.Jan.17,3764.33,ASSURANCE CARE SERVICES LTD,Invoice
ASC,SOCIAL SERVICES,PRIVATE,Revenue,EXTERNAL RESIDENTIAL CARE,27.Jan.17,3454.02,ASSURANCE CARE SERVICES LTD,Invoice
ASC,SOCIAL SERVICES,PRIVATE,Revenue,EXTERNAL RESIDENTIAL CARE,27.Jan.17,3525.01,ASSURANCE CARE SERVICES LTD,Invoice
ASC,SOCIAL SERVICES,PRIVATE,Revenue,EXTERNAL RESIDENTIAL CARE,05.Jan.17,10511.04,BUTTERFLYS CARE HOMES LTD,Invoice
ASC,SOCIAL SERVICES,PRIVATE,Revenue,EXTERNAL RESIDENTIAL CARE,11.Jan.17,10584.6,BUTTERFLYS CARE HOMES LTD,Invoice
ASC,SOCIAL SERVICES,PRIVATE,Revenue,EXTERNAL RESIDENTIAL CARE,27.Jan.17,2435.67,MINSA CARE LTD,Invoice
ASC,SOCIAL SERVICES,PRIVATE,Revenue,EXTERNAL RESIDENTIAL CARE,27.Jan.17,2546.43,MINSA CARE LTD,Invoice
ASC,SOCIAL SERVICES,PRIVATE,Revenue,EXTERNAL RESIDENTIAL CARE,27.Jan.17,2783.44,COUNTRY COURT CARE,Invoice
ASC,SOCIAL SERVICES,PRIVATE,Revenue,EXTERNAL RESIDENTIAL CARE,27.Jan.17,2435.71,FIRST CARE LODGE,Invoice
ASC,SOCIAL SERVICES,PRIVATE,Revenue,EXTERNAL RESIDENTIAL CARE,23.Jan.17,2907.36,ORCHID HOMES T/A LA ROSA 2,Invoice
ASC,SOCIAL SERVICES,PRIVATE,Revenue,EXTERNAL RESIDENTIAL CARE,03.Jan.17,5425,AGENCY ASSISTANCE,Invoice
ASC,SOCIAL SERVICES,PRIVATE,Revenue,EXTERNAL RESIDENTIAL CARE,25.Jan.17,968.75,AGENCY ASSISTANCE,Invoice
ASC,SOCIAL SERVICES,PRIVATE,Revenue,EXTERNAL RESIDENTIAL CARE,27.Jan.17,7085.67,THANET HEALTHCARE LTD,Invoice
ASC,SOCIAL SERVICES,VOL ASS,Revenue,SUPPORTED HOUSING PROGRAMME,27.Jan.17,1550,ASTRA HOMES LTD,Invoice
ASC,SOCIAL SERVICES,VOL ASS,Revenue,SUPPORTED HOUSING PROGRAMME,27.Jan.17,1545.57,ASTRA HOMES LTD,Invoice
ASC,SOCIAL SERVICES,VOL ASS,Revenue,SUPPORTED HOUSING PROGRAMME,19.Jan.17,1803,C M CARE LTD,Invoice
ASC,SOCIAL SERVICES,VOL ASS,Revenue,SUPPORTED HOUSING PROGRAMME,19.Jan.17,1895.04,C M CARE LTD,Invoice
ASC,SOCIAL SERVICES,VOL ASS,Revenue,SUPPORTED HOUSING PROGRAMME,19.Jan.17,1961.64,C M CARE LTD,Invoice
ASC,SOCIAL SERVICES,VOL ASS,Revenue,SUPPORTED HOUSING PROGRAMME,19.Jan.17,1895.04,C M CARE LTD,Invoice
ASC,SOCIAL SERVICES,VOL ASS,Revenue,SUPPORTED HOUSING PROGRAMME,19.Jan.17,1803,C M CARE LTD,Invoice
ASC,SOCIAL SERVICES,VOL ASS,Revenue,SUPPORTED HOUSING PROGRAMME,19.Jan.17,1803,C M CARE LTD,Invoice
ASC,SOCIAL SERVICES,VOL ASS,Revenue,SUPPORTED HOUSING PROGRAMME,19.Jan.17,1895.04,C M CARE LTD,Invoice
ASC,SOCIAL SERVICES,VOL ASS,Revenue,SUPPORTED HOUSING PROGRAMME,19.Jan.17,1803,C M CARE LTD,Invoice
ASC,SOCIAL SERVICES,VOL ASS,Revenue,SUPPORTED HOUSING PROGRAMME,19.Jan.17,1516.56,C M CARE LTD,Invoice
ASC,SOCIAL SERVICES,VOL ASS,Revenue,SUPPORTED HOUSING PROGRAMME,19.Jan.17,1803,C M CARE LTD,Invoice
ASC,SOCIAL SERVICES,VOL ASS,Revenue,SUPPORTED HOUSING PROGRAMME,19.Jan.17,1803,C M CARE LTD,Invoice
ASC,SOCIAL SERVICES,VOL ASS,Revenue,SUPPORTED HOUSING PROGRAMME,19.Jan.17,1218.44,C M CARE LTD,Invoice
ASC,SOCIAL SERVICES,VOL ASS,Revenue,SUPPORTED HOUSING PROGRAMME,19.Jan.17,473.2,C M CARE LTD,Invoice
ASC,SOCIAL SERVICES,VOL ASS,Revenue,SUPPORTED HOUSING PROGRAMME,19.Jan.17,2484.68,C M CARE LTD,Invoice
ASC,SOCIAL SERVICES,VOL ASS,Revenue,SUPPORTED HOUSING PROGRAMME,19.Jan.17,1895.04,C M CARE LTD,Invoice
ASC,SOCIAL SERVICES,VOL ASS,Revenue,SUPPORTED HOUSING PROGRAMME,19.Jan.17,432,C M CARE LTD,Invoice
ASC,SOCIAL SERVICES,VOL ASS,Revenue,SUPPORTED HOUSING PROGRAMME,19.Jan.17,1895.04,C M CARE LTD,Invoice
ASC,SOCIAL SERVICES,VOL ASS,Revenue,SUPPORTED HOUSING PROGRAMME,19.Jan.17,2274.84,C M CARE LTD,Invoice
ASC,SOCIAL SERVICES,VOL ASS,Revenue,SUPPORTED HOUSING PROGRAMME,30.Jan.17,736,C M CARE LTD,Invoice
ASC,SOCIAL SERVICES,VOL ASS,Revenue,SUPPORTED HOUSING PROGRAMME,16.Jan.17,812.58,SERVOL COMMUNITY TRUST,Invoice
ASC,SOCIAL SERVICES,VOL ASS,Revenue,SUPPORTED HOUSING PROGRAMME,27.Jan.17,745.9,SERVOL COMMUNITY TRUST,Invoice
ASC,SOCIAL SERVICES,VOL ASS,Revenue,SUPPORTED HOUSING PROGRAMME,27.Jan.17,678.19,SERVOL COMMUNITY TRUST,Invoice
ASC,SOCIAL SERVICES,VOL ASS,Revenue,SUPPORTED HOUSING PROGRAMME,27.Jan.17,745.9,SERVOL COMMUNITY TRUST,Invoice
ASC,SOCIAL SERVICES,VOL ASS,Revenue,SUPPORTED HOUSING PROGRAMME,27.Jan.17,678.19,SERVOL COMMUNITY TRUST,Invoice
ASC,SOCIAL SERVICES,VOL ASS,Revenue,SUPPORTED HOUSING PROGRAMME,27.Jan.17,745.9,SERVOL COMMUNITY TRUST,Invoice
ASC,SOCIAL SERVICES,VOL ASS,Revenue,SUPPORTED HOUSING PROGRAMME,27.Jan.17,655.25,SERVOL COMMUNITY TRUST,Invoice
ASC,SOCIAL SERVICES,VOL ASS,Revenue,SUPPORTED HOUSING PROGRAMME,27.Jan.17,682.97,SERVOL COMMUNITY TRUST,Invoice
ASC,SOCIAL SERVICES,VOL ASS,Revenue,SUPPORTED HOUSING PROGRAMME,27.Jan.17,873.31,SERVOL COMMUNITY TRUST,Invoice
ASC,SOCIAL SERVICES,VOL ASS,Revenue,SUPPORTED HOUSING PROGRAMME,27.Jan.17,932.97,SERVOL COMMUNITY TRUST,Invoice
ASC,SOCIAL SERVICES,VOL ASS,Revenue,SUPPORTED HOUSING PROGRAMME,27.Jan.17,932.97,SERVOL COMMUNITY TRUST,Invoice
ASC,SOCIAL SERVICES,VOL ASS,Revenue,SUPPORTED HOUSING PROGRAMME,27.Jan.17,932.97,SERVOL COMMUNITY TRUST,Invoice
ASC,SOCIAL SERVICES,VOL ASS,Revenue,SUPPORTED HOUSING PROGRAMME,27.Jan.17,932.97,SERVOL COMMUNITY TRUST,Invoice
ASC,SOCIAL SERVICES,VOL ASS,Revenue,SUPPORTED HOUSING PROGRAMME,27.Jan.17,932.97,SERVOL COMMUNITY TRUST,Invoice
ASC,SOCIAL SERVICES,VOL ASS,Revenue,SUPPORTED HOUSING PROGRAMME,27.Jan.17,932.97,SERVOL COMMUNITY TRUST,Invoice
ASC,SOCIAL SERVICES,VOL ASS,Revenue,SUPPORTED HOUSING PROGRAMME,27.Jan.17,932.97,SERVOL COMMUNITY TRUST,Invoice
ASC,SOCIAL SERVICES,VOL ASS,Revenue,SUPPORTED HOUSING PROGRAMME,27.Jan.17,879.43,SERVOL COMMUNITY TRUST,Invoice
ASC,SOCIAL SERVICES,VOL ASS,Revenue,SUPPORTED HOUSING PROGRAMME,27.Jan.17,932.97,SERVOL COMMUNITY TRUST,Invoice
ASC,SOCIAL SERVICES,VOL ASS,Revenue,SUPPORTED HOUSING PROGRAMME,27.Jan.17,932.97,SERVOL COMMUNITY TRUST,Invoice
ASC,SOCIAL SERVICES,VOL ASS,Revenue,SUPPORTED HOUSING PROGRAMME,27.Jan.17,1573.45,SERVOL COMMUNITY TRUST,Invoice
ASC,SOCIAL SERVICES,VOL ASS,Revenue,SUPPORTED HOUSING PROGRAMME,18.Jan.17,543.96,THE RICHMOND FELLOWSHIP,Invoice
ASC,SOCIAL SERVICES,VOL ASS,Revenue,SUPPORTED HOUSING PROGRAMME,18.Jan.17,543.96,THE RICHMOND FELLOWSHIP,Invoice
ASC,SOCIAL SERVICES,VOL ASS,Revenue,SUPPORTED HOUSING PROGRAMME,18.Jan.17,543.88,THE RICHMOND FELLOWSHIP,Invoice
ASC,SOCIAL SERVICES,VOL ASS,Revenue,SUPPORTED HOUSING PROGRAMME,18.Jan.17,543.88,THE RICHMOND FELLOWSHIP,Invoice
ASC,SOCIAL SERVICES,VOL ASS,Revenue,SUPPORTED HOUSING PROGRAMME,18.Jan.17,543.96,THE RICHMOND FELLOWSHIP,Invoice
ASC,SOCIAL SERVICES,VOL ASS,Revenue,SUPPORTED HOUSING PROGRAMME,27.Jan.17,2981.43,CROWNWISE LTD,Invoice
ASC,SOCIAL SERVICES,VOL ASS,Revenue,SUPPORTED HOUSING PROGRAMME,27.Jan.17,3375,CROWNWISE LTD,Invoice
ASC,SOCIAL SERVICES,VOL ASS,Revenue,SUPPORTED HOUSING PROGRAMME,27.Jan.17,6078.57,CROWNWISE LTD,Invoice
ASC,SOCIAL SERVICES,VOL ASS,Revenue,SUPPORTED HOUSING PROGRAMME,27.Jan.17,2750,CROWNWISE LTD,Invoice
ASC,SOCIAL SERVICES,VOL ASS,Revenue,SUPPORTED HOUSING PROGRAMME,27.Jan.17,2603.83,CROWNWISE LTD,Invoice
ASC,SOCIAL SERVICES,VOL ASS,Revenue,SUPPORTED HOUSING PROGRAMME,27.Jan.17,2981.43,CROWNWISE LTD,Invoice
ASC,SOCIAL SERVICES,VOL ASS,Revenue,SUPPORTED HOUSING PROGRAMME,27.Jan.17,3375,CROWNWISE LTD,Invoice
ASC,SOCIAL SERVICES,VOL ASS,Revenue,SUPPORTED HOUSING PROGRAMME,27.Jan.17,1450.2,CROWNWISE LTD,Invoice
ASC,SOCIAL SERVICES,VOL ASS,Revenue,SUPPORTED HOUSING PROGRAMME,27.Jan.17,2571.43,CROWNWISE LTD,Invoice
ASC,SOCIAL SERVICES,VOL ASS,Revenue,SUPPORTED HOUSING PROGRAMME,27.Jan.17,4307.14,CROWNWISE LTD,Invoice
ASC,SOCIAL SERVICES,VOL ASS,Revenue,SUPPORTED HOUSING PROGRAMME,18.Jan.17,1082.3,VIRIDIAN HOUSING,Invoice
ASC,SOCIAL SERVICES,VOL ASS,Revenue,SUPPORTED HOUSING PROGRAMME,11.Jan.17,2147.86,COMMUNITY HOUSING & THERAPY,Invoice
ASC,SOCIAL SERVICES,VOL ASS,Revenue,SUPPORTED HOUSING PROGRAMME,11.Jan.17,3844,COMMUNITY HOUSING & THERAPY,Invoice
ASC,SOCIAL SERVICES,VOL ASS,Revenue,SUPPORTED HOUSING PROGRAMME,11.Jan.17,3055.72,SUMMIT LODGE,Invoice
ASC,SOCIAL SERVICES,VOL ASS,Revenue,SUPPORTED HOUSING PROGRAMME,11.Jan.17,2967.15,SUMMIT LODGE,Invoice
ASC,SOCIAL SERVICES,VOL ASS,Revenue,SUPPORTED HOUSING PROGRAMME,11.Jan.17,2878.57,SUMMIT LODGE,Invoice
ASC,SOCIAL SERVICES,VOL ASS,Revenue,SUPPORTED HOUSING PROGRAMME,11.Jan.17,1300,SUMMIT LODGE,Invoice
ASC,SOCIAL SERVICES,VOL ASS,Revenue,SUPPORTED HOUSING PROGRAMME,09.Jan.17,2000,H FRANCIS,Invoice
ASC,SOCIAL SERVICES,VOL ASS,Revenue,SUPPORTED HOUSING PROGRAMME,09.Jan.17,5371.5,H FRANCIS,Invoice
ASC,SOCIAL SERVICES,VOL ASS,Revenue,SUPPORTED HOUSING PROGRAMME,09.Jan.17,3200,H FRANCIS,Invoice
ASC,SOCIAL SERVICES,VOL ASS,Revenue,SUPPORTED HOUSING PROGRAMME,26.Jan.17,2200,MR A A PALMER,Invoice
ASC,SOCIAL SERVICES,VOL ASS,Revenue,SUPPORTED HOUSING PROGRAMME,26.Jan.17,2200,MR A A PALMER,Invoice
ASC,SOCIAL SERVICES,VOL ASS,Revenue,SUPPORTED HOUSING PROGRAMME,26.Jan.17,2200,MR A A PALMER,Invoice
ASC,SOCIAL SERVICES,VOL ASS,Revenue,SUPPORTED HOUSING PROGRAMME,26.Jan.17,2610.72,ORDINARY LIVING LTD,Invoice
ASC,SOCIAL SERVICES,VOL ASS,Revenue,SUPPORTED HOUSING PROGRAMME,27.Jan.17,3526.96,COGHLAN LODGES LIMITED,Invoice
ASC,SOCIAL SERVICES,VOL ASS,Revenue,SUPPORTED HOUSING PROGRAMME,27.Jan.17,3526.96,COGHLAN LODGES LIMITED,Invoice
ASC,SOCIAL SERVICES,DIRECT,Revenue,DIRECT PAYMENTS,12.Jan.17,944.84,VIBRANCE,Invoice
ASC,SOCIAL SERVICES,DIRECT,Revenue,DIRECT PAYMENTS,12.Jan.17,3591.2,VIBRANCE,Invoice
ASC,SOCIAL SERVICES,DIRECT,Revenue,DIRECT PAYMENTS,12.Jan.17,2281.12,VIBRANCE,Invoice
ASC,SOCIAL SERVICES,DIRECT,Revenue,DIRECT PAYMENTS,24.Jan.17,3987.52,VIBRANCE,Invoice
ASC,SOCIAL SERVICES,DIRECT,Revenue,DIRECT PAYMENTS,24.Jan.17,537.33,VIBRANCE,Invoice
ASC,SOCIAL SERVICES,DIRECT,Revenue,DIRECT PAYMENTS,24.Jan.17,664.44,VIBRANCE,Invoice
ASC,SOCIAL SERVICES,DIRECT,Revenue,DIRECT PAYMENTS,24.Jan.17,1403.56,VIBRANCE,Invoice
ASC,SOCIAL SERVICES,DIRECT,Revenue,DIRECT PAYMENTS,24.Jan.17,718.16,VIBRANCE,Invoice
ASC,SOCIAL SERVICES,DIRECT,Revenue,DIRECT PAYMENTS,24.Jan.17,724.8,VIBRANCE,Invoice
ASC,SOCIAL SERVICES,DIRECT,Revenue,DIRECT PAYMENTS,24.Jan.17,1255.84,VIBRANCE,Invoice
ASC,SOCIAL SERVICES,DIRECT,Revenue,DIRECT PAYMENTS,24.Jan.17,1018.96,VIBRANCE,Invoice
ASC,SOCIAL SERVICES,DIRECT,Revenue,DIRECT PAYMENTS,24.Jan.17,2127.43,VIBRANCE,Invoice
ASC,SOCIAL SERVICES,CUSTOMER & CLIENT RECPTS - EXT,Revenue,CL CONT EXTERNAL NURSING S28A,27.Jan.17,-522.8,ROSEDENE NURSING HOME,Invoice
ASC,SOCIAL SERVICES,CUSTOMER & CLIENT RECPTS - EXT,Revenue,CL CONT EXTERNAL RESIDENTIAL,27.Jan.17,-578.81,REDACTED PERSONAL DATA,Invoice
ASC,SOCIAL SERVICES,CUSTOMER & CLIENT RECPTS - EXT,Revenue,CL CONT EXTERNAL RESIDENTIAL,25.Jan.17,-578.82,QUANTUM CARE LTD,Invoice
ASC,SOCIAL SERVICES,CUSTOMER & CLIENT RECPTS - EXT,Revenue,CL CONT EXTERNAL RESIDENTIAL,27.Jan.17,-443.52,DEEPDENE CARE LTD,Invoice
ASC,SOCIAL SERVICES,CUSTOMER & CLIENT RECPTS - EXT,Revenue,CL CONT EXTERNAL RESIDENTIAL,27.Jan.17,-578.81,DEEPDENE CARE LTD,Invoice
ASC,SOCIAL SERVICES,CUSTOMER & CLIENT RECPTS - EXT,Revenue,CL CONT EXTERNAL RESIDENTIAL,27.Jan.17,-578.81,DEEPDENE CARE LTD,Invoice
ASC,SOCIAL SERVICES,CUSTOMER & CLIENT RECPTS - EXT,Revenue,CL CONT EXTERNAL RESIDENTIAL,27.Jan.17,-559.33,DEEPDENE CARE LTD,Invoice
ASC,SOCIAL SERVICES,CUSTOMER & CLIENT RECPTS - EXT,Revenue,CL CONT EXTERNAL RESIDENTIAL,25.Jan.17,-677.7,REDACTED PERSONAL DATA,Invoice
ASC,SOCIAL SERVICES,CUSTOMER & CLIENT RECPTS - EXT,Revenue,CL CONT EXTERNAL RESIDENTIAL,25.Jan.17,-653.5,REDACTED PERSONAL DATA,Invoice
ASC,SOCIAL SERVICES,CUSTOMER & CLIENT RECPTS - EXT,Revenue,CL CONT EXTERNAL RESIDENTIAL,27.Jan.17,-515.06,CROWNWISE LTD,Invoice
ASC,SOCIAL SERVICES,CUSTOMER & CLIENT RECPTS - EXT,Revenue,CL CONT EXTERNAL RESIDENTIAL,27.Jan.17,-657.9,CROWNWISE LTD,Invoice
ASC,SOCIAL SERVICES,CUSTOMER & CLIENT RECPTS - EXT,Revenue,CL CONT EXTERNAL RESIDENTIAL,12.Jan.17,-203.28,MOUNT CARMEL,Invoice
ASC,SOCIAL SERVICES,CUSTOMER & CLIENT RECPTS - EXT,Revenue,CL CONT EXTERNAL RESIDENTIAL,12.Jan.17,-304.93,MOUNT CARMEL,Invoice
ASC,SOCIAL SERVICES,CUSTOMER & CLIENT RECPTS - EXT,Revenue,CL CONT EXTERNAL RESIDENTIAL,12.Jan.17,-315.1,MOUNT CARMEL,Invoice
ASC,SOCIAL SERVICES,CUSTOMER & CLIENT RECPTS - EXT,Revenue,CL CONT EXTERNAL RESIDENTIAL,18.Jan.17,-321.8,ACTION ON HEARING LOSS,Invoice
ASC,SOCIAL SERVICES,CUSTOMER & CLIENT RECPTS - EXT,Revenue,CL CONT EXTERNAL RESIDENTIAL,25.Jan.17,-1261.06,ABBEY HOUSE,Invoice
ASC,SOCIAL SERVICES,CUSTOMER & CLIENT RECPTS - EXT,Revenue,CL CONT EXTERNAL RESIDENTIAL,23.Jan.17,-443.52,ROSENMANOR LTD,Invoice
ASC,SOCIAL SERVICES,CUSTOMER & CLIENT RECPTS - EXT,Revenue,CL CONT EXTERNAL RESIDENTIAL,03.Jan.17,-522.8,WILLOWMEAD RESIDENTIAL HOME LTD,Invoice
ASC,SOCIAL SERVICES,CUSTOMER & CLIENT RECPTS - EXT,Revenue,CL CONT EXTERNAL RESIDENTIAL,30.Jan.17,-522.8,WILLOWMEAD RESIDENTIAL HOME LTD,Invoice
ASC,SOCIAL SERVICES,CUSTOMER & CLIENT RECPTS - EXT,Revenue,CL CONT EXTERNAL RESIDENTIAL,16.Jan.17,-345.58,WESTCLIFFE HOUSE LTD,Invoice
ASC,SOCIAL SERVICES,CUSTOMER & CLIENT RECPTS - EXT,Revenue,CL CONT EXTERNAL RESIDENTIAL,16.Jan.17,-274.44,WESTCLIFFE HOUSE LTD,Invoice
ASC,SOCIAL SERVICES,CUSTOMER & CLIENT RECPTS - EXT,Revenue,CL CONT EXTERNAL RESIDENTIAL,27.Jan.17,-522.8,COUNTRY COURT CARE,Invoice
ASC,SOCIAL SERVICES,CUSTOMER & CLIENT RECPTS - EXT,Revenue,CLIENT CONTS EXTERNAL NURSING,27.Jan.17,-522.8,ROSEDENE NURSING HOME,Invoice
ASC,SOCIAL SERVICES,CUSTOMER & CLIENT RECPTS - EXT,Revenue,CLIENT CONTS EXTERNAL NURSING,27.Jan.17,-511.48,TRINITY COURT NURSING HOME,Invoice
ASC,SOCIAL SERVICES,CUSTOMER & CLIENT RECPTS - EXT,Revenue,CLIENT CONTS EXTERNAL NURSING,27.Jan.17,-696.32,TRINITY COURT NURSING HOME,Invoice
ASC,SOCIAL SERVICES,CUSTOMER & CLIENT RECPTS - EXT,Revenue,CLIENT CONTS EXTERNAL NURSING,23.Jan.17,-882.92,TRILODGE LTD,Invoice
ASC,SOCIAL SERVICES,CUSTOMER & CLIENT RECPTS - EXT,Revenue,CLIENT CONTS EXTERNAL NURSING,27.Jan.17,-701.72,LIFESTYLE CARE MANAGEMENT LTD,Invoice
ASC,SOCIAL SERVICES,CUSTOMER & CLIENT RECPTS - EXT,Revenue,RNCC,27.Jan.17,-625,GEORGE POTTER CARE HOME LTD,Invoice
ASC,SOCIAL SERVICES,CUSTOMER & CLIENT RECPTS - EXT,Revenue,RNCC,27.Jan.17,-625,ROSEDENE NURSING HOME,Invoice
ASC,SOCIAL SERVICES,CUSTOMER & CLIENT RECPTS - EXT,Revenue,RNCC,27.Jan.17,-625,ROSEDENE NURSING HOME,Invoice
ASC,SOCIAL SERVICES,CUSTOMER & CLIENT RECPTS - EXT,Revenue,RNCC,27.Jan.17,-625,ROSEDENE NURSING HOME,Invoice
ASC,SOCIAL SERVICES,CUSTOMER & CLIENT RECPTS - EXT,Revenue,RNCC,27.Jan.17,-625,ROSEDENE NURSING HOME,Invoice
ASC,SOCIAL SERVICES,CUSTOMER & CLIENT RECPTS - EXT,Revenue,RNCC,27.Jan.17,-625,ROSEDENE NURSING HOME,Invoice
ASC,SOCIAL SERVICES,CUSTOMER & CLIENT RECPTS - EXT,Revenue,RNCC,27.Jan.17,-625,TRINITY COURT NURSING HOME,Invoice
ASC,SOCIAL SERVICES,CUSTOMER & CLIENT RECPTS - EXT,Revenue,RNCC,27.Jan.17,-625,TRINITY COURT NURSING HOME,Invoice
ASC,SOCIAL SERVICES,CUSTOMER & CLIENT RECPTS - EXT,Revenue,RNCC,27.Jan.17,-625,TRINITY COURT NURSING HOME,Invoice
ASC,SOCIAL SERVICES,CUSTOMER & CLIENT RECPTS - EXT,Revenue,RNCC,27.Jan.17,-625,TRINITY COURT NURSING HOME,Invoice
ASC,SOCIAL SERVICES,CUSTOMER & CLIENT RECPTS - EXT,Revenue,RNCC,27.Jan.17,-625,TRINITY COURT NURSING HOME,Invoice
ASC,SOCIAL SERVICES,CUSTOMER & CLIENT RECPTS - EXT,Revenue,RNCC,23.Jan.17,-691.96,TRILODGE LTD,Invoice
ASC,SOCIAL SERVICES,CUSTOMER & CLIENT RECPTS - EXT,Revenue,RNCC,27.Jan.17,-625,LIFESTYLE CARE MANAGEMENT LTD,Invoice
ASC,SOCIAL SERVICES,CUSTOMER & CLIENT RECPTS - EXT,Revenue,RNCC,27.Jan.17,-625,LIFESTYLE CARE MANAGEMENT LTD,Invoice
ASC,SOCIAL SERVICES,CUSTOMER & CLIENT RECPTS - EXT,Revenue,SECTION 117 CONT,27.Jan.17,-2747.2,ROSEDENE NURSING HOME,Invoice
ASC,SOCIAL SERVICES,CUSTOMER & CLIENT RECPTS - EXT,Revenue,SECTION 117 CONT,27.Jan.17,-1800.35,229 MITCHAM LANE LTD,Invoice
ASC,SOCIAL SERVICES,SERVICES,Revenue,TRAVEL BUDDY SCHEME,04.Jan.17,506.56,HARINGEY ASSOCIATION FOR INDEPENDENT LIV,Invoice
ASC,SOCIAL SERVICES,SERVICES,Revenue,TRAVEL BUDDY SCHEME,11.Jan.17,633.2,HARINGEY ASSOCIATION FOR INDEPENDENT LIV,Invoice
ASC,SOCIAL SERVICES,PRIVATE,Revenue,EXTERNAL DAYCARE,06.Jan.17,598.45,SHARE COMMUNITY,Invoice
ASC,SOCIAL SERVICES,PRIVATE,Revenue,EXTERNAL HOMECARE,16.Jan.17,505.78,SUPREME CARE SERVICE LTD,Invoice
ASC,SOCIAL SERVICES,PRIVATE,Revenue,EXTERNAL HOMECARE,09.Jan.17,696.6,DAY AND NITE CARE,Invoice
ASC,SOCIAL SERVICES,PRIVATE,Revenue,EXTERNAL HOMECARE,25.Jan.17,822.6,DAY AND NITE CARE,Invoice
ASC,SOCIAL SERVICES,PRIVATE,Revenue,EXTERNAL NURSING CARE,09.Jan.17,3198,MHA CARE GROUP,Invoice
ASC,SOCIAL SERVICES,PRIVATE,Revenue,EXTERNAL RESIDENTIAL CARE,27.Jan.17,5986.29,CROWNWISE LTD,Invoice
ASC,SOCIAL SERVICES,PRIVATE,Revenue,EXTERNAL RESIDENTIAL CARE,27.Jan.17,2829.19,CENTRAL AND CECIL HOUSING TRUST,Invoice
ASC,SOCIAL SERVICES,VOL ASS,Revenue,SUPPORTED HOUSING PROGRAMME,18.Jan.17,543.96,THE RICHMOND FELLOWSHIP,Invoice
ASC,SOCIAL SERVICES,CUSTOMER & CLIENT RECPTS - EXT,Revenue,CL CONT EXTERNAL RESIDENTIAL,27.Jan.17,-695.31,CROWNWISE LTD,Invoice
ASC,SOCIAL SERVICES,CUSTOMER & CLIENT RECPTS - EXT,Revenue,RNCC,09.Jan.17,-625,MHA CARE GROUP,Invoice
ASC,SOCIAL SERVICES,PRIVATE,Revenue,EXTERNAL DAYCARE,03.Jan.17,845.6,WANDSWORTH BENGALI WELFARE ASSOCIATION,Invoice
ASC,SOCIAL SERVICES,PRIVATE,Revenue,EXTERNAL DAYCARE,24.Jan.17,718.76,WANDSWORTH BENGALI WELFARE ASSOCIATION,Invoice
ASC,SOCIAL SERVICES,PRIVATE,Revenue,EXTERNAL HOMECARE,09.Jan.17,1853.6,RAINBOW MEDICAL SERVICES,Invoice
ASC,SOCIAL SERVICES,PRIVATE,Revenue,EXTERNAL HOMECARE,16.Jan.17,771.4,GOLDSBOROUGH HOMECARE & NURSING SERVICES,Invoice
ASC,SOCIAL SERVICES,PRIVATE,Revenue,EXTERNAL HOMECARE,16.Jan.17,1197.56,GOLDSBOROUGH HOMECARE & NURSING SERVICES,Invoice
ASC,SOCIAL SERVICES,PRIVATE,Revenue,EXTERNAL HOMECARE,16.Jan.17,2579.92,GOLDSBOROUGH HOMECARE & NURSING SERVICES,Invoice
ASC,SOCIAL SERVICES,PRIVATE,Revenue,EXTERNAL HOMECARE,16.Jan.17,891.38,GOLDSBOROUGH HOMECARE & NURSING SERVICES,Invoice
ASC,SOCIAL SERVICES,PRIVATE,Revenue,EXTERNAL HOMECARE,16.Jan.17,529.56,GOLDSBOROUGH HOMECARE & NURSING SERVICES,Invoice
ASC,SOCIAL SERVICES,PRIVATE,Revenue,EXTERNAL HOMECARE,16.Jan.17,796.45,GOLDSBOROUGH HOMECARE & NURSING SERVICES,Invoice
ASC,SOCIAL SERVICES,PRIVATE,Revenue,EXTERNAL HOMECARE,16.Jan.17,1112.44,GOLDSBOROUGH HOMECARE & NURSING SERVICES,Invoice
ASC,SOCIAL SERVICES,PRIVATE,Revenue,EXTERNAL HOMECARE,16.Jan.17,665,GOLDSBOROUGH HOMECARE & NURSING SERVICES,Invoice
ASC,SOCIAL SERVICES,PRIVATE,Revenue,EXTERNAL HOMECARE,30.Jan.17,532,GOLDSBOROUGH HOMECARE & NURSING SERVICES,Invoice
ASC,SOCIAL SERVICES,PRIVATE,Revenue,EXTERNAL HOMECARE,30.Jan.17,1723.88,PARKGATE NURSING AGENCY,Invoice
ASC,SOCIAL SERVICES,PRIVATE,Revenue,EXTERNAL HOMECARE,09.Jan.17,720.12,MUSHKIL AASAAN LTD,Invoice
ASC,SOCIAL SERVICES,PRIVATE,Revenue,EXTERNAL HOMECARE,09.Jan.17,568.76,MUSHKIL AASAAN LTD,Invoice
ASC,SOCIAL SERVICES,PRIVATE,Revenue,EXTERNAL HOMECARE,09.Jan.17,694.23,MUSHKIL AASAAN LTD,Invoice
ASC,SOCIAL SERVICES,PRIVATE,Revenue,EXTERNAL HOMECARE,09.Jan.17,840,SOMA HEALTHCARE LTD,Invoice
ASC,SOCIAL SERVICES,PRIVATE,Revenue,EXTERNAL HOMECARE,09.Jan.17,769.33,MEARS CARE LTD,Invoice
ASC,SOCIAL SERVICES,PRIVATE,Revenue,EXTERNAL HOMECARE,09.Jan.17,1032.49,MEARS CARE LTD,Invoice
ASC,SOCIAL SERVICES,PRIVATE,Revenue,EXTERNAL HOMECARE,09.Jan.17,576.87,MEARS CARE LTD,Invoice
ASC,SOCIAL SERVICES,PRIVATE,Revenue,EXTERNAL HOMECARE,09.Jan.17,692.84,MEARS CARE LTD,Invoice
ASC,SOCIAL SERVICES,PRIVATE,Revenue,EXTERNAL HOMECARE,16.Jan.17,901.76,SUPREME CARE SERVICE LTD,Invoice
ASC,SOCIAL SERVICES,PRIVATE,Revenue,EXTERNAL HOMECARE,16.Jan.17,1890.88,SUPREME CARE SERVICE LTD,Invoice
ASC,SOCIAL SERVICES,PRIVATE,Revenue,EXTERNAL HOMECARE,16.Jan.17,607.68,SUPREME CARE SERVICE LTD,Invoice
ASC,SOCIAL SERVICES,PRIVATE,Revenue,EXTERNAL HOMECARE,16.Jan.17,2040.08,SUPREME CARE SERVICE LTD,Invoice
ASC,SOCIAL SERVICES,PRIVATE,Revenue,EXTERNAL HOMECARE,16.Jan.17,552.72,SUPREME CARE SERVICE LTD,Invoice
ASC,SOCIAL SERVICES,PRIVATE,Revenue,EXTERNAL HOMECARE,16.Jan.17,802.1,SUPREME CARE SERVICE LTD,Invoice
ASC,SOCIAL SERVICES,PRIVATE,Revenue,EXTERNAL HOMECARE,16.Jan.17,1020.04,SUPREME CARE SERVICE LTD,Invoice
ASC,SOCIAL SERVICES,PRIVATE,Revenue,EXTERNAL HOMECARE,16.Jan.17,580.3,BLUEBIRD CARE (WANDSWORTH),Invoice
ASC,SOCIAL SERVICES,PRIVATE,Revenue,EXTERNAL HOMECARE,16.Jan.17,594.26,BLUEBIRD CARE (WANDSWORTH),Invoice
ASC,SOCIAL SERVICES,PRIVATE,Revenue,EXTERNAL HOMECARE,16.Jan.17,505.86,BLUEBIRD CARE (WANDSWORTH),Invoice
ASC,SOCIAL SERVICES,PRIVATE,Revenue,EXTERNAL HOMECARE,16.Jan.17,567.26,BLUEBIRD CARE (WANDSWORTH),Invoice
ASC,SOCIAL SERVICES,PRIVATE,Revenue,EXTERNAL HOMECARE,16.Jan.17,500.36,BLUEBIRD CARE (WANDSWORTH),Invoice
ASC,SOCIAL SERVICES,PRIVATE,Revenue,EXTERNAL HOMECARE,16.Jan.17,543.08,BLUEBIRD CARE (WANDSWORTH),Invoice
ASC,SOCIAL SERVICES,PRIVATE,Revenue,EXTERNAL HOMECARE,16.Jan.17,543.08,BLUEBIRD CARE (WANDSWORTH),Invoice
ASC,SOCIAL SERVICES,PRIVATE,Revenue,EXTERNAL HOMECARE,16.Jan.17,543.08,BLUEBIRD CARE (WANDSWORTH),Invoice
ASC,SOCIAL SERVICES,PRIVATE,Revenue,EXTERNAL HOMECARE,16.Jan.17,510.5,BLUEBIRD CARE (WANDSWORTH),Invoice
ASC,SOCIAL SERVICES,PRIVATE,Revenue,EXTERNAL HOMECARE,09.Jan.17,1131.6,DAY AND NITE CARE,Invoice
ASC,SOCIAL SERVICES,PRIVATE,Revenue,EXTERNAL HOMECARE,09.Jan.17,712.5,DAY AND NITE CARE,Invoice
ASC,SOCIAL SERVICES,PRIVATE,Revenue,EXTERNAL HOMECARE,09.Jan.17,806.6,DAY AND NITE CARE,Invoice
ASC,SOCIAL SERVICES,PRIVATE,Revenue,EXTERNAL HOMECARE,09.Jan.17,1100.1,DAY AND NITE CARE,Invoice
ASC,SOCIAL SERVICES,PRIVATE,Revenue,EXTERNAL HOMECARE,25.Jan.17,1341.6,DAY AND NITE CARE,Invoice
ASC,SOCIAL SERVICES,PRIVATE,Revenue,EXTERNAL HOMECARE,25.Jan.17,849,DAY AND NITE CARE,Invoice
ASC,SOCIAL SERVICES,PRIVATE,Revenue,EXTERNAL HOMECARE,25.Jan.17,953.6,DAY AND NITE CARE,Invoice
ASC,SOCIAL SERVICES,PRIVATE,Revenue,EXTERNAL HOMECARE,25.Jan.17,1331.1,DAY AND NITE CARE,Invoice
ASC,SOCIAL SERVICES,PRIVATE,Revenue,EXTERNAL HOMECARE,06.Jan.17,826.4,MANAGING CARE LIMITED,Invoice
ASC,SOCIAL SERVICES,PRIVATE,Revenue,EXTERNAL HOMECARE,06.Jan.17,978.95,MANAGING CARE LIMITED,Invoice
ASC,SOCIAL SERVICES,PRIVATE,Revenue,EXTERNAL HOMECARE,13.Jan.17,1043.6,MANAGING CARE LIMITED,Invoice
ASC,SOCIAL SERVICES,PRIVATE,Revenue,EXTERNAL HOMECARE,13.Jan.17,863.2,MANAGING CARE LIMITED,Invoice
ASC,SOCIAL SERVICES,PRIVATE,Revenue,EXTERNAL HOMECARE,18.Jan.17,753.2,MANAGING CARE LIMITED,Invoice
ASC,SOCIAL SERVICES,PRIVATE,Revenue,EXTERNAL HOMECARE,18.Jan.17,931.6,MANAGING CARE LIMITED,Invoice
ASC,SOCIAL SERVICES,PRIVATE,Revenue,EXTERNAL HOMECARE,23.Jan.17,829.6,MANAGING CARE LIMITED,Invoice
ASC,SOCIAL SERVICES,PRIVATE,Revenue,EXTERNAL HOMECARE,03.Jan.17,772.27,LONDON HOMECARE LTD,Invoice
ASC,SOCIAL SERVICES,PRIVATE,Revenue,EXTERNAL HOMECARE,03.Jan.17,1097.74,LONDON HOMECARE LTD,Invoice
ASC,SOCIAL SERVICES,PRIVATE,Revenue,EXTERNAL HOMECARE,03.Jan.17,544.32,LONDON HOMECARE LTD,Invoice
ASC,SOCIAL SERVICES,PRIVATE,Revenue,EXTERNAL HOMECARE,03.Jan.17,1324.8,LONDON HOMECARE LTD,Invoice
ASC,SOCIAL SERVICES,PRIVATE,Revenue,EXTERNAL HOMECARE,03.Jan.17,801.88,LONDON HOMECARE LTD,Invoice
ASC,SOCIAL SERVICES,PRIVATE,Revenue,EXTERNAL HOMECARE,03.Jan.17,878.44,LONDON HOMECARE LTD,Invoice
ASC,SOCIAL SERVICES,PRIVATE,Revenue,EXTERNAL HOMECARE,03.Jan.17,720.1,LONDON HOMECARE LTD,Invoice
ASC,SOCIAL SERVICES,PRIVATE,Revenue,EXTERNAL HOMECARE,03.Jan.17,532.9,LONDON HOMECARE LTD,Invoice
ASC,SOCIAL SERVICES,PRIVATE,Revenue,EXTERNAL HOMECARE,03.Jan.17,803.32,LONDON HOMECARE LTD,Invoice
ASC,SOCIAL SERVICES,PRIVATE,Revenue,EXTERNAL HOMECARE,03.Jan.17,720.52,LONDON HOMECARE LTD,Invoice
ASC,SOCIAL SERVICES,PRIVATE,Revenue,EXTERNAL HOMECARE,03.Jan.17,552,LONDON HOMECARE LTD,Invoice
ASC,SOCIAL SERVICES,PRIVATE,Revenue,EXTERNAL HOMECARE,03.Jan.17,1157.36,LONDON HOMECARE LTD,Invoice
ASC,SOCIAL SERVICES,PRIVATE,Revenue,EXTERNAL HOMECARE,26.Jan.17,775.72,LONDON HOMECARE LTD,Invoice
ASC,SOCIAL SERVICES,PRIVATE,Revenue,EXTERNAL HOMECARE,26.Jan.17,544.32,LONDON HOMECARE LTD,Invoice
ASC,SOCIAL SERVICES,PRIVATE,Revenue,EXTERNAL HOMECARE,26.Jan.17,847.68,LONDON HOMECARE LTD,Invoice
ASC,SOCIAL SERVICES,PRIVATE,Revenue,EXTERNAL HOMECARE,26.Jan.17,1158.94,LONDON HOMECARE LTD,Invoice
ASC,SOCIAL SERVICES,PRIVATE,Revenue,EXTERNAL HOMECARE,26.Jan.17,544.32,LONDON HOMECARE LTD,Invoice
ASC,SOCIAL SERVICES,PRIVATE,Revenue,EXTERNAL HOMECARE,26.Jan.17,552,LONDON HOMECARE LTD,Invoice
ASC,SOCIAL SERVICES,PRIVATE,Revenue,EXTERNAL HOMECARE,26.Jan.17,878.98,LONDON HOMECARE LTD,Invoice
ASC,SOCIAL SERVICES,PRIVATE,Revenue,EXTERNAL HOMECARE,26.Jan.17,720.52,LONDON HOMECARE LTD,Invoice
ASC,SOCIAL SERVICES,PRIVATE,Revenue,EXTERNAL HOMECARE,26.Jan.17,727.02,LONDON HOMECARE LTD,Invoice
ASC,SOCIAL SERVICES,PRIVATE,Revenue,EXTERNAL HOMECARE,26.Jan.17,803.32,LONDON HOMECARE LTD,Invoice
ASC,SOCIAL SERVICES,PRIVATE,Revenue,EXTERNAL HOMECARE,26.Jan.17,1324.8,LONDON HOMECARE LTD,Invoice
ASC,SOCIAL SERVICES,PRIVATE,Revenue,EXTERNAL HOMECARE,26.Jan.17,1157.36,LONDON HOMECARE LTD,Invoice
ASC,SOCIAL SERVICES,PRIVATE,Revenue,EXTERNAL HOMECARE,18.Jan.17,364.4,PROFESSIONAL CARE SUPPORT SERVICES LTD,Invoice
ASC,SOCIAL SERVICES,PRIVATE,Revenue,EXTERNAL HOMECARE,18.Jan.17,1098.02,PROFESSIONAL CARE SUPPORT SERVICES LTD,Invoice
ASC,SOCIAL SERVICES,PRIVATE,Revenue,EXTERNAL HOMECARE,18.Jan.17,1049.56,PROFESSIONAL CARE SUPPORT SERVICES LTD,Invoice
ASC,SOCIAL SERVICES,PRIVATE,Revenue,EXTERNAL HOMECARE,18.Jan.17,1671.16,PROFESSIONAL CARE SUPPORT SERVICES LTD,Invoice
ASC,SOCIAL SERVICES,PRIVATE,Revenue,EXTERNAL HOMECARE,18.Jan.17,1160.37,PROFESSIONAL CARE SUPPORT SERVICES LTD,Invoice
ASC,SOCIAL SERVICES,PRIVATE,Revenue,EXTERNAL HOMECARE,18.Jan.17,1317.96,PROFESSIONAL CARE SUPPORT SERVICES LTD,Invoice
ASC,SOCIAL SERVICES,PRIVATE,Revenue,EXTERNAL HOMECARE,18.Jan.17,1347.58,PROFESSIONAL CARE SUPPORT SERVICES LTD,Invoice
ASC,SOCIAL SERVICES,PRIVATE,Revenue,EXTERNAL HOMECARE,18.Jan.17,1392.29,PROFESSIONAL CARE SUPPORT SERVICES LTD,Invoice
ASC,SOCIAL SERVICES,PRIVATE,Revenue,EXTERNAL HOMECARE,20.Jan.17,1249.8,PROFESSIONAL CARE SUPPORT SERVICES LTD,Invoice
ASC,SOCIAL SERVICES,PRIVATE,Revenue,EXTERNAL HOMECARE,26.Jan.17,1249.8,PROFESSIONAL CARE SUPPORT SERVICES LTD,Invoice
ASC,SOCIAL SERVICES,PRIVATE,Revenue,EXTERNAL HOMECARE,26.Jan.17,34.5,PROFESSIONAL CARE SUPPORT SERVICES LTD,Invoice
ASC,SOCIAL SERVICES,PRIVATE,Revenue,EXTERNAL HOMECARE,26.Jan.17,1395.42,PROFESSIONAL CARE SUPPORT SERVICES LTD,Invoice
ASC,SOCIAL SERVICES,PRIVATE,Revenue,EXTERNAL HOMECARE,26.Jan.17,63.15,PROFESSIONAL CARE SUPPORT SERVICES LTD,Invoice
ASC,SOCIAL SERVICES,PRIVATE,Revenue,EXTERNAL HOMECARE,26.Jan.17,1392.29,PROFESSIONAL CARE SUPPORT SERVICES LTD,Invoice
ASC,SOCIAL SERVICES,PRIVATE,Revenue,EXTERNAL HOMECARE,11.Jan.17,1130,LIM INDEPENDENT LIVEING & COMMUNITY CARE,Invoice
ASC,SOCIAL SERVICES,PRIVATE,Revenue,EXTERNAL HOMECARE,18.Jan.17,560,LIM INDEPENDENT LIVEING & COMMUNITY CARE,Invoice
ASC,SOCIAL SERVICES,PRIVATE,Revenue,EXTERNAL HOMECARE,18.Jan.17,1033,LIM INDEPENDENT LIVEING & COMMUNITY CARE,Invoice
ASC,SOCIAL SERVICES,PRIVATE,Revenue,EXTERNAL HOMECARE,18.Jan.17,936,LIM INDEPENDENT LIVEING & COMMUNITY CARE,Invoice
ASC,SOCIAL SERVICES,PRIVATE,Revenue,EXTERNAL HOMECARE,18.Jan.17,1588,LIM INDEPENDENT LIVEING & COMMUNITY CARE,Invoice
ASC,SOCIAL SERVICES,PRIVATE,Revenue,EXTERNAL HOMECARE,18.Jan.17,902,LIM INDEPENDENT LIVEING & COMMUNITY CARE,Invoice
ASC,SOCIAL SERVICES,PRIVATE,Revenue,EXTERNAL HOMECARE,25.Jan.17,605,LIM INDEPENDENT LIVEING & COMMUNITY CARE,Invoice
ASC,SOCIAL SERVICES,PRIVATE,Revenue,EXTERNAL HOMECARE,25.Jan.17,960,LIM INDEPENDENT LIVEING & COMMUNITY CARE,Invoice
ASC,SOCIAL SERVICES,PRIVATE,Revenue,EXTERNAL HOMECARE,11.Jan.17,834.3,KERR-CARE AT HOME SERVICE LTD T/A RIGHT,Invoice
ASC,SOCIAL SERVICES,PRIVATE,Revenue,EXTERNAL HOMECARE,26.Jan.17,1014.62,KERR-CARE AT HOME SERVICE LTD T/A RIGHT,Invoice
ASC,SOCIAL SERVICES,PRIVATE,Revenue,EXTERNAL HOMECARE,27.Jan.17,775.44,KERR-CARE AT HOME SERVICE LTD T/A RIGHT,Invoice
ASC,SOCIAL SERVICES,PRIVATE,Revenue,EXTERNAL HOMECARE,31.Jan.17,681.28,KERR-CARE AT HOME SERVICE LTD T/A RIGHT,Invoice
ASC,SOCIAL SERVICES,PRIVATE,Revenue,EXTERNAL HOMECARE,09.Jan.17,637,SOUTHWARK AFRICAN FAMILY SUPPORT SERVICE,Invoice
ASC,SOCIAL SERVICES,PRIVATE,Revenue,EXTERNAL HOMECARE,26.Jan.17,637,SOUTHWARK AFRICAN FAMILY SUPPORT SERVICE,Invoice
ASC,SOCIAL SERVICES,PRIVATE,Revenue,EXTERNAL HOMECARE,06.Jan.17,1695.2,AQUAFLO CARE LTD,Invoice
ASC,SOCIAL SERVICES,PRIVATE,Revenue,EXTERNAL HOMECARE,18.Jan.17,2216,BETTER LIFE CARE LTD,Invoice
ASC,SOCIAL SERVICES,PRIVATE,Revenue,EXTERNAL NURSING CARE,09.Jan.17,3279.92,ANS HOMES LTD,Invoice
ASC,SOCIAL SERVICES,PRIVATE,Revenue,EXTERNAL NURSING CARE,09.Jan.17,3123.16,MHA CARE GROUP,Invoice
ASC,SOCIAL SERVICES,PRIVATE,Revenue,EXTERNAL NURSING CARE,26.Jan.17,3123.16,MHA CARE GROUP,Invoice
ASC,SOCIAL SERVICES,PRIVATE,Revenue,EXTERNAL NURSING CARE,17.Jan.17,2890.04,MULLINVAN LTD,Invoice
ASC,SOCIAL SERVICES,PRIVATE,Revenue,EXTERNAL NURSING CARE,27.Jan.17,2943.44,GEORGE POTTER CARE HOME LTD,Invoice
ASC,SOCIAL SERVICES,PRIVATE,Revenue,EXTERNAL NURSING CARE,27.Jan.17,2924.2,GEORGE POTTER CARE HOME LTD,Invoice
ASC,SOCIAL SERVICES,PRIVATE,Revenue,EXTERNAL NURSING CARE,09.Jan.17,10824.53,ROYAL HOSPITAL FOR NEURO-DISABILITY,Invoice
ASC,SOCIAL SERVICES,PRIVATE,Revenue,EXTERNAL NURSING CARE,18.Jan.17,4714.16,JESMUND CARE HOMES LIMITED,Invoice
ASC,SOCIAL SERVICES,PRIVATE,Revenue,EXTERNAL NURSING CARE,27.Jan.17,3054.72,CHEGWORTH NURSING HOME (BAYSWIFT LTD),Invoice
ASC,SOCIAL SERVICES,PRIVATE,Revenue,EXTERNAL NURSING CARE,27.Jan.17,3054.72,CHEGWORTH NURSING HOME (BAYSWIFT LTD),Invoice
ASC,SOCIAL SERVICES,PRIVATE,Revenue,EXTERNAL NURSING CARE,27.Jan.17,3577,CHEGWORTH NURSING HOME (BAYSWIFT LTD),Invoice
ASC,SOCIAL SERVICES,PRIVATE,Revenue,EXTERNAL NURSING CARE,27.Jan.17,3238.28,CHEGWORTH NURSING HOME (BAYSWIFT LTD),Invoice
ASC,SOCIAL SERVICES,PRIVATE,Revenue,EXTERNAL NURSING CARE,27.Jan.17,3054.72,CHEGWORTH NURSING HOME (BAYSWIFT LTD),Invoice
ASC,SOCIAL SERVICES,PRIVATE,Revenue,EXTERNAL NURSING CARE,27.Jan.17,1214.29,CHEGWORTH NURSING HOME (BAYSWIFT LTD),Invoice
ASC,SOCIAL SERVICES,PRIVATE,Revenue,EXTERNAL NURSING CARE,27.Jan.17,3054.72,TRINITY COURT NURSING HOME,Invoice
ASC,SOCIAL SERVICES,PRIVATE,Revenue,EXTERNAL NURSING CARE,27.Jan.17,3096.32,TRINITY COURT NURSING HOME,Invoice
ASC,SOCIAL SERVICES,PRIVATE,Revenue,EXTERNAL NURSING CARE,27.Jan.17,3977,CARE UK COMMUNITY PARTNERSHIP,Invoice
ASC,SOCIAL SERVICES,PRIVATE,Revenue,EXTERNAL NURSING CARE,27.Jan.17,3051,HYDEFALL LTD,Invoice
ASC,SOCIAL SERVICES,PRIVATE,Revenue,EXTERNAL NURSING CARE,26.Jan.17,2855,REDACTED PERSONAL DATA,Invoice
ASC,SOCIAL SERVICES,PRIVATE,Revenue,EXTERNAL NURSING CARE,30.Jan.17,8498.23,THE WHITE HOUSE NURSING HOME,Invoice
ASC,SOCIAL SERVICES,PRIVATE,Revenue,EXTERNAL NURSING CARE,27.Jan.17,2975.56,LIFE STYLE CARE (2011) PLC,Invoice
ASC,SOCIAL SERVICES,PRIVATE,Revenue,EXTERNAL NURSING CARE,27.Jan.17,2818.16,LIFE STYLE CARE (2011) PLC,Invoice
ASC,SOCIAL SERVICES,PRIVATE,Revenue,EXTERNAL NURSING CARE,27.Jan.17,2995.16,LIFE STYLE CARE (2011) PLC,Invoice
ASC,SOCIAL SERVICES,PRIVATE,Revenue,EXTERNAL NURSING CARE,27.Jan.17,3694.72,LIFE STYLE CARE (2011) PLC,Invoice
ASC,SOCIAL SERVICES,PRIVATE,Revenue,EXTERNAL NURSING CARE,09.Jan.17,2816.44,SUTTON NURSING HOMES LTD,Invoice
ASC,SOCIAL SERVICES,PRIVATE,Revenue,EXTERNAL NURSING CARE,16.Jan.17,2482.52,WESTBANK NURSING HOME T/A NEW CENTURY CA,Invoice
ASC,SOCIAL SERVICES,PRIVATE,Revenue,EXTERNAL NURSING CARE,10.Jan.17,4477,PENTLOW NURSING HOME LTD,Invoice
ASC,SOCIAL SERVICES,PRIVATE,Revenue,EXTERNAL NURSING CARE,31.Jan.17,4477,PENTLOW NURSING HOME LTD,Invoice
ASC,SOCIAL SERVICES,PRIVATE,Revenue,EXTERNAL NURSING CARE,27.Jan.17,3540.63,ASHTON LODGE,Invoice
ASC,SOCIAL SERVICES,PRIVATE,Revenue,EXTERNAL NURSING CARE,27.Jan.17,2846.4,LIFESTYLE CARE MANAGEMENT LTD,Invoice
ASC,SOCIAL SERVICES,PRIVATE,Revenue,EXTERNAL NURSING CARE,27.Jan.17,2800.2,LIFESTYLE CARE MANAGEMENT LTD,Invoice
ASC,SOCIAL SERVICES,PRIVATE,Revenue,EXTERNAL NURSING CARE,27.Jan.17,2800.2,LIFESTYLE CARE MANAGEMENT LTD,Invoice
ASC,SOCIAL SERVICES,PRIVATE,Revenue,EXTERNAL NURSING CARE,27.Jan.17,2800.2,LIFESTYLE CARE MANAGEMENT LTD,Invoice
ASC,SOCIAL SERVICES,PRIVATE,Revenue,EXTERNAL NURSING CARE,27.Jan.17,2899.76,LIFESTYLE CARE MANAGEMENT LTD,Invoice
ASC,SOCIAL SERVICES,PRIVATE,Revenue,EXTERNAL NURSING CARE,27.Jan.17,2899.76,LIFESTYLE CARE MANAGEMENT LTD,Invoice
ASC,SOCIAL SERVICES,PRIVATE,Revenue,EXTERNAL NURSING CARE,27.Jan.17,2899.76,LIFESTYLE CARE MANAGEMENT LTD,Invoice
ASC,SOCIAL SERVICES,PRIVATE,Revenue,EXTERNAL NURSING CARE,27.Jan.17,2899.76,LIFESTYLE CARE MANAGEMENT LTD,Invoice
ASC,SOCIAL SERVICES,PRIVATE,Revenue,EXTERNAL NURSING CARE,27.Jan.17,2899.76,LIFESTYLE CARE MANAGEMENT LTD,Invoice
ASC,SOCIAL SERVICES,PRIVATE,Revenue,EXTERNAL NURSING CARE,27.Jan.17,2899.76,LIFESTYLE CARE MANAGEMENT LTD,Invoice
ASC,SOCIAL SERVICES,PRIVATE,Revenue,EXTERNAL NURSING CARE,27.Jan.17,2899.76,LIFESTYLE CARE MANAGEMENT LTD,Invoice
ASC,SOCIAL SERVICES,PRIVATE,Revenue,EXTERNAL NURSING CARE,27.Jan.17,2800.2,LIFESTYLE CARE MANAGEMENT LTD,Invoice
ASC,SOCIAL SERVICES,PRIVATE,Revenue,EXTERNAL NURSING CARE,27.Jan.17,2899.76,LIFESTYLE CARE MANAGEMENT LTD,Invoice
ASC,SOCIAL SERVICES,PRIVATE,Revenue,EXTERNAL NURSING CARE,27.Jan.17,2800.2,LIFESTYLE CARE MANAGEMENT LTD,Invoice
ASC,SOCIAL SERVICES,PRIVATE,Revenue,EXTERNAL NURSING CARE,27.Jan.17,2911.28,LIFESTYLE CARE MANAGEMENT LTD,Invoice
ASC,SOCIAL SERVICES,PRIVATE,Revenue,EXTERNAL NURSING CARE,27.Jan.17,2899.76,LIFESTYLE CARE MANAGEMENT LTD,Invoice
ASC,SOCIAL SERVICES,PRIVATE,Revenue,EXTERNAL NURSING CARE,27.Jan.17,2899.76,LIFESTYLE CARE MANAGEMENT LTD,Invoice
ASC,SOCIAL SERVICES,PRIVATE,Revenue,EXTERNAL NURSING CARE,27.Jan.17,2800.2,LIFESTYLE CARE MANAGEMENT LTD,Invoice
ASC,SOCIAL SERVICES,PRIVATE,Revenue,EXTERNAL NURSING CARE,27.Jan.17,2880.84,LIFESTYLE CARE MANAGEMENT LTD,Invoice
ASC,SOCIAL SERVICES,PRIVATE,Revenue,EXTERNAL NURSING CARE,27.Jan.17,2899.76,LIFESTYLE CARE MANAGEMENT LTD,Invoice
ASC,SOCIAL SERVICES,PRIVATE,Revenue,EXTERNAL NURSING CARE,27.Jan.17,2899.76,LIFESTYLE CARE MANAGEMENT LTD,Invoice
ASC,SOCIAL SERVICES,PRIVATE,Revenue,EXTERNAL NURSING CARE,27.Jan.17,2899.76,LIFESTYLE CARE MANAGEMENT LTD,Invoice
ASC,SOCIAL SERVICES,PRIVATE,Revenue,EXTERNAL NURSING CARE,27.Jan.17,2880.84,LIFESTYLE CARE MANAGEMENT LTD,Invoice
ASC,SOCIAL SERVICES,PRIVATE,Revenue,EXTERNAL NURSING CARE,27.Jan.17,2800.2,LIFESTYLE CARE MANAGEMENT LTD,Invoice
ASC,SOCIAL SERVICES,PRIVATE,Revenue,EXTERNAL NURSING CARE,27.Jan.17,2800.2,LIFESTYLE CARE MANAGEMENT LTD,Invoice
ASC,SOCIAL SERVICES,PRIVATE,Revenue,EXTERNAL NURSING CARE,27.Jan.17,2800.2,LIFESTYLE CARE MANAGEMENT LTD,Invoice
ASC,SOCIAL SERVICES,PRIVATE,Revenue,EXTERNAL NURSING CARE,27.Jan.17,2807.76,LIFESTYLE CARE MANAGEMENT LTD,Invoice
ASC,SOCIAL SERVICES,PRIVATE,Revenue,EXTERNAL NURSING CARE,27.Jan.17,8656.56,LIFESTYLE CARE MANAGEMENT LTD,Invoice
ASC,SOCIAL SERVICES,PRIVATE,Revenue,EXTERNAL NURSING CARE,27.Jan.17,4259.31,LIFESTYLE CARE MANAGEMENT LTD,Invoice
ASC,SOCIAL SERVICES,PRIVATE,Revenue,EXTERNAL NURSING CARE,18.Jan.17,7624.19,RUSSETTINGS,Invoice
ASC,SOCIAL SERVICES,PRIVATE,Revenue,EXTERNAL NURSING RESPITE CARE,16.Jan.17,19343.93,LIFESTYLE CARE MANAGEMENT LTD,Invoice
ASC,SOCIAL SERVICES,PRIVATE,Revenue,EXTERNAL NURSING RESPITE CARE,16.Jan.17,3014.48,LIFESTYLE CARE MANAGEMENT LTD,Invoice
ASC,SOCIAL SERVICES,PRIVATE,Revenue,EXTERNAL NURSING RESPITE CARE,16.Jan.17,2566.75,LIFESTYLE CARE MANAGEMENT LTD,Invoice
ASC,SOCIAL SERVICES,PRIVATE,Revenue,EXTERNAL NURSING RESPITE CARE,17.Jan.17,8243.2,LIFESTYLE CARE MANAGEMENT LTD,Invoice
ASC,SOCIAL SERVICES,PRIVATE,Revenue,EXTERNAL NURSING RESPITE CARE,18.Jan.17,1427.56,LIFESTYLE CARE MANAGEMENT LTD,Invoice
ASC,SOCIAL SERVICES,PRIVATE,Revenue,EXTERNAL NURSING RESPITE CARE,18.Jan.17,6006.65,LIFESTYLE CARE MANAGEMENT LTD,Invoice
ASC,SOCIAL SERVICES,PRIVATE,Revenue,EXTERNAL NURSING RESPITE CARE,18.Jan.17,4200.3,LIFESTYLE CARE MANAGEMENT LTD,Invoice
ASC,SOCIAL SERVICES,PRIVATE,Revenue,EXTERNAL NURSING RESPITE CARE,18.Jan.17,5362.94,LIFESTYLE CARE MANAGEMENT LTD,Invoice
ASC,SOCIAL SERVICES,PRIVATE,Revenue,EXTERNAL NURSING RESPITE CARE,18.Jan.17,2899.76,LIFESTYLE CARE MANAGEMENT LTD,Invoice
ASC,SOCIAL SERVICES,PRIVATE,Revenue,EXTERNAL NURSING RESPITE CARE,18.Jan.17,3907.44,LIFESTYLE CARE MANAGEMENT LTD,Invoice
ASC,SOCIAL SERVICES,PRIVATE,Revenue,EXTERNAL NURSING RESPITE CARE,18.Jan.17,6400.46,LIFESTYLE CARE MANAGEMENT LTD,Invoice
ASC,SOCIAL SERVICES,PRIVATE,Revenue,EXTERNAL NURSING RESPITE CARE,18.Jan.17,3575.62,LIFESTYLE CARE MANAGEMENT LTD,Invoice
ASC,SOCIAL SERVICES,PRIVATE,Revenue,EXTERNAL NURSING RESPITE CARE,18.Jan.17,5317.76,LIFESTYLE CARE MANAGEMENT LTD,Invoice
ASC,SOCIAL SERVICES,PRIVATE,Revenue,EXTERNAL NURSING RESPITE CARE,20.Jan.17,5155.82,LIFESTYLE CARE MANAGEMENT LTD,Invoice
ASC,SOCIAL SERVICES,PRIVATE,Revenue,EXTERNAL NURSING RESPITE CARE,20.Jan.17,2077.83,LIFESTYLE CARE MANAGEMENT LTD,Invoice
ASC,SOCIAL SERVICES,PRIVATE,Revenue,EXTERNAL NURSING RESPITE CARE,20.Jan.17,1077.75,LIFESTYLE CARE MANAGEMENT LTD,Invoice
ASC,SOCIAL SERVICES,PRIVATE,Revenue,EXTERNAL NURSING RESPITE CARE,26.Jan.17,742,LIFESTYLE CARE MANAGEMENT LTD,Invoice
ASC,SOCIAL SERVICES,PRIVATE,Revenue,EXTERNAL NURSING RESPITE CARE,26.Jan.17,2495.18,LIFESTYLE CARE MANAGEMENT LTD,Invoice
ASC,SOCIAL SERVICES,PRIVATE,Revenue,EXTERNAL RESIDENTIAL CARE,23.Jan.17,2533.94,CRNH LTD,Invoice
ASC,SOCIAL SERVICES,PRIVATE,Revenue,EXTERNAL RESIDENTIAL CARE,27.Jan.17,2639.36,RICHARD CUSDEN HOMES LTD,Invoice
ASC,SOCIAL SERVICES,PRIVATE,Revenue,EXTERNAL RESIDENTIAL CARE,27.Jan.17,2639.36,RICHARD CUSDEN HOMES LTD,Invoice
ASC,SOCIAL SERVICES,PRIVATE,Revenue,EXTERNAL RESIDENTIAL CARE,27.Jan.17,2639.36,RICHARD CUSDEN HOMES LTD,Invoice
ASC,SOCIAL SERVICES,PRIVATE,Revenue,EXTERNAL RESIDENTIAL CARE,26.Jan.17,2046.08,KOLBE HOUSE SOCIETY,Invoice
ASC,SOCIAL SERVICES,PRIVATE,Revenue,EXTERNAL RESIDENTIAL CARE,27.Jan.17,2480.88,BUPA CARE SERVICES BACS RECEIPTS,Invoice
ASC,SOCIAL SERVICES,PRIVATE,Revenue,EXTERNAL RESIDENTIAL CARE,27.Jan.17,2480.88,BUPA CARE SERVICES BACS RECEIPTS,Invoice
ASC,SOCIAL SERVICES,PRIVATE,Revenue,EXTERNAL RESIDENTIAL CARE,27.Jan.17,2480.88,BUPA CARE SERVICES BACS RECEIPTS,Invoice
ASC,SOCIAL SERVICES,PRIVATE,Revenue,EXTERNAL RESIDENTIAL CARE,26.Jan.17,3221.84,MISSION CARE,Invoice
ASC,SOCIAL SERVICES,PRIVATE,Revenue,EXTERNAL RESIDENTIAL CARE,26.Jan.17,3221.84,MISSION CARE,Invoice
ASC,SOCIAL SERVICES,PRIVATE,Revenue,EXTERNAL RESIDENTIAL CARE,16.Jan.17,2360.8,LARCOMBE HOUSING ASSOCIATION,Invoice
ASC,SOCIAL SERVICES,PRIVATE,Revenue,EXTERNAL RESIDENTIAL CARE,16.Jan.17,2360.8,LARCOMBE HOUSING ASSOCIATION,Invoice
ASC,SOCIAL SERVICES,PRIVATE,Revenue,EXTERNAL RESIDENTIAL CARE,17.Jan.17,11278.4,LIFE STYLE CARE (2011) PLC,Invoice
ASC,SOCIAL SERVICES,PRIVATE,Revenue,EXTERNAL RESIDENTIAL CARE,19.Jan.17,2788.36,CHD CARE LTD,Invoice
ASC,SOCIAL SERVICES,PRIVATE,Revenue,EXTERNAL RESIDENTIAL CARE,27.Jan.17,2690.32,COUNTRY COURT CARE,Invoice
ASC,SOCIAL SERVICES,PRIVATE,Revenue,EXTERNAL RESIDENTIAL CARE,27.Jan.17,2635.48,COUNTRY COURT CARE,Invoice
ASC,SOCIAL SERVICES,PRIVATE,Revenue,EXTERNAL RESIDENTIAL CARE,27.Jan.17,2635.48,COUNTRY COURT CARE,Invoice
ASC,SOCIAL SERVICES,PRIVATE,Revenue,EXTERNAL RESIDENTIAL CARE,27.Jan.17,2690.32,COUNTRY COURT CARE,Invoice
ASC,SOCIAL SERVICES,PRIVATE,Revenue,EXTERNAL RESIDENTIAL CARE,27.Jan.17,2690.32,COUNTRY COURT CARE,Invoice
ASC,SOCIAL SERVICES,PRIVATE,Revenue,EXTERNAL RESIDENTIAL CARE,27.Jan.17,2783.44,COUNTRY COURT CARE,Invoice
ASC,SOCIAL SERVICES,PRIVATE,Revenue,EXTERNAL RESIDENTIAL CARE,27.Jan.17,2635.48,COUNTRY COURT CARE,Invoice
ASC,SOCIAL SERVICES,PRIVATE,Revenue,EXTERNAL RESIDENTIAL CARE,27.Jan.17,2635.48,COUNTRY COURT CARE,Invoice
ASC,SOCIAL SERVICES,PRIVATE,Revenue,EXTERNAL RESIDENTIAL CARE,27.Jan.17,2636.68,COUNTRY COURT CARE,Invoice
ASC,SOCIAL SERVICES,PRIVATE,Revenue,EXTERNAL RESIDENTIAL CARE,27.Jan.17,2635.48,COUNTRY COURT CARE,Invoice
ASC,SOCIAL SERVICES,PRIVATE,Revenue,EXTERNAL RESIDENTIAL CARE,27.Jan.17,2635.48,COUNTRY COURT CARE,Invoice
ASC,SOCIAL SERVICES,PRIVATE,Revenue,EXTERNAL RESIDENTIAL CARE,27.Jan.17,2635.48,COUNTRY COURT CARE,Invoice
ASC,SOCIAL SERVICES,PRIVATE,Revenue,EXTERNAL RESIDENTIAL CARE,27.Jan.17,2783.44,COUNTRY COURT CARE,Invoice
ASC,SOCIAL SERVICES,PRIVATE,Revenue,EXTERNAL RESIDENTIAL CARE,27.Jan.17,2783.36,COUNTRY COURT CARE,Invoice
ASC,SOCIAL SERVICES,PRIVATE,Revenue,EXTERNAL RESIDENTIAL CARE,27.Jan.17,2783.36,COUNTRY COURT CARE,Invoice
ASC,SOCIAL SERVICES,PRIVATE,Revenue,EXTERNAL RESIDENTIAL CARE,27.Jan.17,2764.08,COUNTRY COURT CARE,Invoice
ASC,SOCIAL SERVICES,PRIVATE,Revenue,EXTERNAL RESIDENTIAL CARE,27.Jan.17,2783.44,COUNTRY COURT CARE,Invoice
ASC,SOCIAL SERVICES,PRIVATE,Revenue,EXTERNAL RESIDENTIAL CARE,27.Jan.17,2690.32,COUNTRY COURT CARE,Invoice
ASC,SOCIAL SERVICES,PRIVATE,Revenue,EXTERNAL RESIDENTIAL CARE,27.Jan.17,2764.08,COUNTRY COURT CARE,Invoice
ASC,SOCIAL SERVICES,PRIVATE,Revenue,EXTERNAL RESIDENTIAL CARE,27.Jan.17,2783.44,COUNTRY COURT CARE,Invoice
ASC,SOCIAL SERVICES,PRIVATE,Revenue,EXTERNAL RESIDENTIAL CARE,27.Jan.17,2783.44,COUNTRY COURT CARE,Invoice
ASC,SOCIAL SERVICES,PRIVATE,Revenue,EXTERNAL RESIDENTIAL CARE,27.Jan.17,2783.44,COUNTRY COURT CARE,Invoice
ASC,SOCIAL SERVICES,PRIVATE,Revenue,EXTERNAL RESIDENTIAL CARE,09.Jan.17,2345.6,BARTON LODGE CARE HOME,Invoice
ASC,SOCIAL SERVICES,PRIVATE,Revenue,EXTERNAL RESIDENTIAL CARE,27.Jan.17,2345.59,BARTON LODGE CARE HOME,Invoice
ASC,SOCIAL SERVICES,PRIVATE,Revenue,EXTERNAL RESIDENTIAL CARE,31.Jan.17,3160,SANCTUARY CARE (ROWANWEALD RESIDENTIAL),Invoice
ASC,SOCIAL SERVICES,PRIVATE,Revenue,EXTERNAL RESIDENTIAL CARE,13.Jan.17,2100,GRANGE COTTAGE RESIDENTIAL HOME,Invoice
ASC,SOCIAL SERVICES,PRIVATE,Revenue,EXTERNAL RESIDENTIAL CARE,18.Jan.17,869.73,LIFESTYLE CARE MANAGEMENT LTD,Invoice
ASC,SOCIAL SERVICES,PRIVATE,Revenue,EXTERNAL RESI RESPITE CARE,27.Jan.17,2480.88,BUPA CARE SERVICES BACS RECEIPTS,Invoice
ASC,SOCIAL SERVICES,PRIVATE,Revenue,EXTERNAL RESI RESPITE CARE,27.Jan.17,1543.9,LIFESTYLE CARE MANAGEMENT LTD,Invoice
ASC,SOCIAL SERVICES,PRIVATE,Revenue,CLA SUPPORT,24.Jan.17,656,SEAP,Invoice
ASC,SOCIAL SERVICES,VOL ASS,Revenue,SUPPORTED HOUSING PROGRAMME,16.Jan.17,915.28,ROYAL MENCAP SOCIETY,Invoice
ASC,SOCIAL SERVICES,VOL ASS,Revenue,SUPPORTED HOUSING PROGRAMME,16.Jan.17,3311.32,ROYAL MENCAP SOCIETY,Invoice
ASC,SOCIAL SERVICES,DIRECT,Revenue,DIRECT PAYMENTS,24.Jan.17,749.76,HESTIA HOUSING & SUPPORT,Invoice
ASC,SOCIAL SERVICES,DIRECT,Revenue,DIRECT PAYMENTS,24.Jan.17,8557.6,VIBRANCE,Invoice
ASC,SOCIAL SERVICES,DIRECT,Revenue,DIRECT PAYMENTS,24.Jan.17,2779.52,VIBRANCE,Invoice
ASC,SOCIAL SERVICES,DIRECT,Revenue,DIRECT PAYMENTS,24.Jan.17,1546,VIBRANCE,Invoice
ASC,SOCIAL SERVICES,DIRECT,Revenue,DIRECT PAYMENTS,24.Jan.17,525.76,VIBRANCE,Invoice
ASC,SOCIAL SERVICES,DIRECT,Revenue,DIRECT PAYMENTS,24.Jan.17,595.12,VIBRANCE,Invoice
ASC,SOCIAL SERVICES,DIRECT,Revenue,DIRECT PAYMENTS,24.Jan.17,679.76,VIBRANCE,Invoice
ASC,SOCIAL SERVICES,DIRECT,Revenue,DIRECT PAYMENTS,24.Jan.17,1608.96,VIBRANCE,Invoice
